Trans Date,Supplier Name,Trans Ref/No,Net Amount,Expense Description,Service Code,Category
01/04/2021,A1 Electrics,826003,490,General Maintenance,Repairs To Void Properties,Premises
01/04/2021,Apple Central Taxies,826467,6237,Closure Grnt No Rv (=<15k Rv),Additional Restrictions Grants,Supplies & Services
01/04/2021,Apple Taxi,826460,6237,Closure Grnt No Rv (=<15k Rv),Additional Restrictions Grants,Supplies & Services
01/04/2021,C & P Contracting Solutions Ltd,825740,2250,Consultants Fees,General Management,Supplies & Services
01/04/2021,Dept For Communities & Local Government,826505,-10062,Grant,Business Rates 2% Inflatn Cap,Income
01/04/2021,Dept For Communities & Local Government,826505,29780,Grant,Discretionary Ndr Relief,Income
01/04/2021,Dept For Communities & Local Government,826505,146,Grant,Ndr Newspaper Relief,Income
01/04/2021,Dept For Communities & Local Government,826505,181468,Grant,Retail Relief (And Expanded),Income
01/04/2021,Dept For Communities & Local Government,826505,-110351,Grant,Sbrr,Income
01/04/2021,Dept For Communities & Local Government,826505,918,Grant,Support For Public Houses,Income
01/04/2021,Exeter Airport Hotel Trading Ltd,826410,2091.54,Bed And Breakfast,Glenthorne Rd Emergency Resp,Premises
01/04/2021,Fe Careers Ltd,826472,6237,Grants Rv < 15k,Additional Restrictions Grants,Supplies & Services
01/04/2021,First Class Builders Ltd,826178,9882,Contract Payments,Kitchen Replacements,Supplies & Services
01/04/2021,Hackney Carriage,826469,5102,Closure Grnt No Rv (=<15k Rv),Additional Restrictions Grants,Supplies & Services
01/04/2021,Hackney Carriage Taxi Driver,826462,5102,Closure Grnt No Rv (=<15k Rv),Additional Restrictions Grants,Supplies & Services
01/04/2021,Irfan Taxi,826465,5102,Closure Grnt No Rv (=<15k Rv),Additional Restrictions Grants,Supplies & Services
01/04/2021,Jh Buckerell Ltd,826406,982.85,Bed And Breakfast,Glenthorne Rd Emergency Resp,Premises
01/04/2021,Jh Buckerell Ltd,826409,1323.8,Bed And Breakfast,Glenthorne Rd Emergency Resp,Premises
01/04/2021,John Kennard,825896,4185,Bed And Breakfast,Bed And Breakfast,Premises
01/04/2021,Livesupport Event Services,826466,6237,Closure Grnt No Rv (=<15k Rv),Additional Restrictions Grants,Supplies & Services
01/04/2021,M W Gozna Services Ltd,826196,11345.51,Contract Payments,Adaptations,Supplies & Services
01/04/2021,Mears Ltd,826201,3509.58,General Maintenance,General Maintenance,Premises
01/04/2021,Mears Ltd,826202,118.94,General Maintenance,General Maintenance,Premises
01/04/2021,Mears Ltd,826202,923.27,Mears - Communal Areas/Non-Ppp,General Maintenance,Premises
01/04/2021,Mears Ltd,826202,3170.38,Mears -Ppp Repairs(Exclusions),General Maintenance,Premises
01/04/2021,Mears Ltd,826202,46.29,Mears -Psl Properties(Non-Ppp),General Maintenance,Premises
01/04/2021,Mears Ltd,826203,22842.43,Mears - Ppv Voids (Inc & Excl),Repairs To Void Properties,Premises
01/04/2021,Mo Taxi,826464,5102,Closure Grnt No Rv (=<15k Rv),Additional Restrictions Grants,Supplies & Services
01/04/2021,Morgan Hunt Uk Ltd,823381,473.23,Temp.Contract-Agency Staff,Revenues Recovery,Pay
01/04/2021,Nute Plumbing Services Ltd,826587,5357,Grants Issued,Disabled Facilities Grants,Supplies & Services
01/04/2021,O&O Management Ltd,826470,6237,Closure Grnt No Rv (=<15k Rv),Additional Restrictions Grants,Supplies & Services
01/04/2021,Patronus Security Uk Ltd,826263,1649,Other Expenses,Serviced Accommodation,Supplies & Services
01/04/2021,Plymouth City Council,819549,3100,Consultants Fees,Planning,Supplies & Services
01/04/2021,Private Taxi Driver,826457,6237,Closure Grnt No Rv (=<15k Rv),Additional Restrictions Grants,Supplies & Services
01/04/2021,REDACTED PERSONAL DATA,826459,6237,Closure Grnt No Rv (=<15k Rv),Additional Restrictions Grants,Supplies & Services
01/04/2021,Self Employed Taxi Driver,826461,5102,Closure Grnt No Rv (=<15k Rv),Additional Restrictions Grants,Supplies & Services
01/04/2021,Sodexo Motivation Solutions Uk,826510,1050,Excel & Longservice Awards,Human Resources,Pay
01/04/2021,Sodexo Motivation Solutions Uk,826510,9.27,Other Expenses,Human Resources,Supplies & Services
01/04/2021,Southern Electric,824105,8585.35,Electricity,S Electric A/C 04748 69417,Premises
01/04/2021,Specialist Fleet Services Ltd,826509,6333.71,Routine Maintenance,Transport Management,Transport
01/04/2021,Sunnymead Boarding Kennels,816456,648,Tenants Removal And Legal Exp,Housing Advice,Supplies & Services
01/04/2021,Taxi,826458,5102,Closure Grnt No Rv (=<15k Rv),Additional Restrictions Grants,Supplies & Services
01/04/2021,Taxi Driver.,826468,5102,Closure Grnt No Rv (=<15k Rv),Additional Restrictions Grants,Supplies & Services
01/04/2021,The Lead Laboratory Limited,826456,6237,Closure Grnt No Rv (=<15k Rv),Additional Restrictions Grants,Supplies & Services
01/04/2021,Ticket To Ride Ltd,826463,6237,Closure Grnt No Rv (=<15k Rv),Additional Restrictions Grants,Supplies & Services
01/04/2021,Westcountry Fire Protection Ltd,826259,5984,Emergency Light Testing,Service Contracts,Premises
06/04/2021, Taxi,826777,5102,Closure Grnt No Rv (=<15k Rv),Additional Restrictions Grants,Supplies & Services
06/04/2021,Alim Events Ltd,826774,6237,Closure Grnt No Rv (=<15k Rv),Additional Restrictions Grants,Supplies & Services
06/04/2021,Big Wave Media Ltd,826852,9350,Grants Rv 15k - 51k,Additional Restrictions Grants,Supplies & Services
06/04/2021,C & G Mobility Lifts T/A Hanover Lifts Ltd,826716,1700,Contract Payments,Adaptations,Supplies & Services
06/04/2021,Claire Hughes Sports Massage,826850,5102,Closure Grnt No Rv (=<15k Rv),Additional Restrictions Grants,Supplies & Services
06/04/2021,Edf Energy Customers Ltd,825382,1827.21,Electricity,Edf Electricity Suspense,Premises
06/04/2021,Environtec Ltd,826609,510,Asbestos Surveys,Asbestos,Premises
06/04/2021,Environtec Ltd,826729,525,Asbestos Surveys,Asbestos,Premises
06/04/2021,European Asbestos Services Ltd,826562,1178,Asbestos Removal,Asbestos,Premises
06/04/2021,Great Western Hotel,826484,8962.5,Bed And Breakfast,Nsap,Premises
06/04/2021,Hackney Cab,826841,5102,Closure Grnt No Rv (=<15k Rv),Additional Restrictions Grants,Supplies & Services
06/04/2021,Hackney Carriage Taxi Driver,826847,6237,Closure Grnt No Rv (=<15k Rv),Additional Restrictions Grants,Supplies & Services
06/04/2021,Hqn Ltd,825405,875,Staff Training,General Management,Pay
06/04/2021,Julian House,826706,2163.23,Other Expenses,Nsap,Supplies & Services
06/04/2021,Mears Ltd,826513,225.76,General Maintenance,General Maintenance,Premises
06/04/2021,Mears Ltd,826513,405.33,Mears - Communal Areas/Non-Ppp,General Maintenance,Premises
06/04/2021,Mears Ltd,826513,2744.45,Mears -Ppp Repairs(Exclusions),General Maintenance,Premises
06/04/2021,Mears Ltd,826513,541.57,Mears -Psl Properties(Non-Ppp),General Maintenance,Premises
06/04/2021,Private Hire,826839,5102,Closure Grnt No Rv (=<15k Rv),Additional Restrictions Grants,Supplies & Services
06/04/2021,REDACTED PERSONAL DATA,826778,5102,Closure Grnt No Rv (=<15k Rv),Additional Restrictions Grants,Supplies & Services
06/04/2021,REDACTED PERSONAL DATA,826837,5102,Closure Grnt No Rv (=<15k Rv),Additional Restrictions Grants,Supplies & Services
06/04/2021,REDACTED PERSONAL DATA,826840,5102,Closure Grnt No Rv (=<15k Rv),Additional Restrictions Grants,Supplies & Services
06/04/2021,REDACTED PERSONAL DATA,826842,6237,Closure Grnt No Rv (=<15k Rv),Additional Restrictions Grants,Supplies & Services
06/04/2021,REDACTED PERSONAL DATA,826844,5102,Closure Grnt No Rv (=<15k Rv),Additional Restrictions Grants,Supplies & Services
06/04/2021,REDACTED PERSONAL DATA,826846,6237,Closure Grnt No Rv (=<15k Rv),Additional Restrictions Grants,Supplies & Services
06/04/2021,Taste Devon Limited,826853,5102,Grants Rv < 15k,Additional Restrictions Grants,Supplies & Services
06/04/2021,Taxi,826845,5102,Closure Grnt No Rv (=<15k Rv),Additional Restrictions Grants,Supplies & Services
06/04/2021,Taxi,826849,5102,Closure Grnt No Rv (=<15k Rv),Additional Restrictions Grants,Supplies & Services
06/04/2021,Taxi Driver,826836,5102,Closure Grnt No Rv (=<15k Rv),Additional Restrictions Grants,Supplies & Services
06/04/2021,Taxi Driver,826843,6237,Closure Grnt No Rv (=<15k Rv),Additional Restrictions Grants,Supplies & Services
06/04/2021,Taxi Driver,826848,5102,Closure Grnt No Rv (=<15k Rv),Additional Restrictions Grants,Supplies & Services
06/04/2021,Taxi Driver (Exeter City Council),826775,5102,Closure Grnt No Rv (=<15k Rv),Additional Restrictions Grants,Supplies & Services
06/04/2021,Taxi Private Hire,826776,5102,Closure Grnt No Rv (=<15k Rv),Additional Restrictions Grants,Supplies & Services
06/04/2021,Taxi Service,826838,5102,Closure Grnt No Rv (=<15k Rv),Additional Restrictions Grants,Supplies & Services
06/04/2021,Telstar Guest House Ltd,826485,3323.81,Bed And Breakfast,Bed And Breakfast,Premises
06/04/2021,Telstar Guest House Ltd,826487,2866.67,Bed And Breakfast,Bed And Breakfast,Premises
06/04/2021,Vickery Holman,826559,650,Contract Payments,Structural Repairs,Supplies & Services
06/04/2021,Vickery Holman ,826599,2529.7,Contract Payments,Adaptations,Supplies & Services
07/04/2021,Apple Taxi,827112,6237,Closure Grnt No Rv (=<15k Rv),Additional Restrictions Grants,Supplies & Services
07/04/2021,Apple Taxis,827105,6237,Closure Grnt No Rv (=<15k Rv),Additional Restrictions Grants,Supplies & Services
07/04/2021,Approved Property Management (Apm P2 Ltd,826000,4114.32,Bed And Breakfast,Bed And Breakfast,Premises
07/04/2021,Corkscrew Ltd,827109,5102,Closure Grnt No Rv (=<15k Rv),Additional Restrictions Grants,Supplies & Services
07/04/2021,Cowork Ventures,827117,7650,Grants Rv 15k - 51k,Additional Restrictions Grants,Supplies & Services
07/04/2021,Edf Energy Customers Ltd,825372,494.07,Electricity,Edf Electricity Suspense,Premises
07/04/2021,Edf Energy Customers Ltd,825377,2456.3,Electricity,Edf Electricity Suspense,Premises
07/04/2021,Edf Energy Customers Ltd,825378,3619.82,Electricity,Edf Electricity Suspense,Premises
07/04/2021,Exeter Brewery Ltd,827118,5102,Grants Rv < 15k,Additional Restrictions Grants,Supplies & Services
07/04/2021,Hackney Carriage,827114,5102,Closure Grnt No Rv (=<15k Rv),Additional Restrictions Grants,Supplies & Services
07/04/2021,Hays Accountancy Personnel,826396,417.11,Temp.Contract-Agency Staff,Accountancy Services,Pay
07/04/2021,Imtiazul�S Taxi Service,827101,5102,Closure Grnt No Rv (=<15k Rv),Additional Restrictions Grants,Supplies & Services
07/04/2021,Isabel'S Pet Services,827107,6237,Closure Grnt No Rv (=<15k Rv),Additional Restrictions Grants,Supplies & Services
07/04/2021,Isca School Of English,827116,9350,Grants Rv 15k - 51k,Additional Restrictions Grants,Supplies & Services
07/04/2021,John Kennard,825989,4095,Bed And Breakfast,Bed And Breakfast,Premises
07/04/2021,John Kennard,825992,4950,Bed And Breakfast,Bed And Breakfast,Premises
07/04/2021,Livewest Ltd,826595,624.16,Spend To Save,Housing Advice,Supplies & Services
07/04/2021,Market Carpets,826973,1139.17,Tenant Decant Costs,Planned Works,Supplies & Services
07/04/2021,Non Stop 88 Ltd,827111,6237,Closure Grnt No Rv (=<15k Rv),Additional Restrictions Grants,Supplies & Services
07/04/2021,REDACTED PERSONAL DATA,827102,5102,Closure Grnt No Rv (=<15k Rv),Additional Restrictions Grants,Supplies & Services
07/04/2021,REDACTED PERSONAL DATA,827104,6237,Closure Grnt No Rv (=<15k Rv),Additional Restrictions Grants,Supplies & Services
07/04/2021,REDACTED PERSONAL DATA,827106,5102,Closure Grnt No Rv (=<15k Rv),Additional Restrictions Grants,Supplies & Services
07/04/2021,REDACTED PERSONAL DATA,827113,5102,Closure Grnt No Rv (=<15k Rv),Additional Restrictions Grants,Supplies & Services
07/04/2021,Self Employed Taxi Driver,827103,6237,Closure Grnt No Rv (=<15k Rv),Additional Restrictions Grants,Supplies & Services
07/04/2021,Taxi,827100,5102,Closure Grnt No Rv (=<15k Rv),Additional Restrictions Grants,Supplies & Services
07/04/2021,Taxi,827110,5102,Closure Grnt No Rv (=<15k Rv),Additional Restrictions Grants,Supplies & Services
07/04/2021,Taxi Driver,827108,6237,Closure Grnt No Rv (=<15k Rv),Additional Restrictions Grants,Supplies & Services
07/04/2021,Telstar Guest House Ltd,826908,3209.52,Bed And Breakfast,Bed And Breakfast,Premises
07/04/2021,The Museum Platform,827164,1000,Activities Web Site,Ramm,Supplies & Services
07/04/2021,Thirty8 Digital Ltd,827163,1200,Activities Web Site,Ramm,Supplies & Services
07/04/2021,Wemco Ltd,826477,2524.49,Planned Maintenance,Ramm,Premises
07/04/2021,Wemco Ltd,826502,1142.32,Planned Maintenance,Ramm,Premises
07/04/2021,Whistl Uk Ltd,826021,1748.47,Postage/Stamps,Civic Centre,Supplies & Services
08/04/2021,1010 Media Ltd,827237,1000,Activities Web Site,Ramm,Supplies & Services
08/04/2021,Airtech Humidity Controls Ltd T/A,827130,604.88,General Maintenance,General Maintenance,Premises
08/04/2021,Apse,826910,10800,Casuals Waged-Agency Staff,Refuse Collection,Pay
08/04/2021,Babu Taxi,827299,5102,Closure Grnt No Rv (=<15k Rv),Additional Restrictions Grants,Supplies & Services
08/04/2021,Baltimore Consulting Ltd,824954,3125,Temp.Contract-Agency Staff,New Build Site Investigations,Pay
08/04/2021,Bloom Procurement Services,801207,8431.14,Contract Payments,Bovemoors Lane,Supplies & Services
08/04/2021,Echelon Consultancy Ltd,827311,2250,Consultants Fees,Reactive Repairs,Supplies & Services
08/04/2021,Emma'S Beauty,827304,6237,Closure Grnt No Rv (=<15k Rv),Additional Restrictions Grants,Supplies & Services
08/04/2021,Exeter Hackney Taxi,827303,5102,Closure Grnt No Rv (=<15k Rv),Additional Restrictions Grants,Supplies & Services
08/04/2021,In Control Debt Solutions Ltd,827306,9350,Grants Rv 15k - 51k,Additional Restrictions Grants,Supplies & Services
08/04/2021,Jrc Consulting Engineers Ltd,827127,585,Contract Payments,Common Area Footpth/Wall Imps,Supplies & Services
08/04/2021,Kendall Kingscott Ltd,825762,4600,Contract Payments,Laings Refurbishments,Supplies & Services
08/04/2021,Mallard Consultancy,824936,990,Subscriptions,Monitoring Private Housing,Supplies & Services
08/04/2021,Masons Kings,824305,5689.45,Plant Acquisitions,Cemeteries - Operational,Transport
08/04/2021,Masons Kings,824305,13988.67,Plant Acquisitions,Parks And Playing Fields,Transport
08/04/2021,Mears Ltd,827124,218.27,Mears - Communal Areas/Non-Ppp,General Maintenance,Premises
08/04/2021,Mears Ltd,827124,23.44,Mears - Ppp Repairs,General Maintenance,Premises
08/04/2021,Mears Ltd,827124,1058.13,Mears -Ppp Repairs(Exclusions),General Maintenance,Premises
08/04/2021,Mears Ltd,827144,6374.92,General Maintenance,General Maintenance,Premises
08/04/2021,Mears Ltd,827145,528.24,General Maintenance,General Maintenance,Premises
08/04/2021,Mears Ltd,827145,1148.72,Mears - Communal Areas/Non-Ppp,General Maintenance,Premises
08/04/2021,Mears Ltd,827145,697.13,Mears - Ppp Repairs,General Maintenance,Premises
08/04/2021,Mears Ltd,827145,253.19,Mears - Rechargeable Works,General Maintenance,Premises
08/04/2021,Mears Ltd,827145,977.21,Mears -Ppp Repairs(Exclusions),General Maintenance,Premises
08/04/2021,Moorland Fuels,826928,606.85,Motor Fuel,Parks And Playing Fields,Transport
08/04/2021,Moorland Fuels,826929,576.64,Motor Fuel,Materials Reclamation Facility,Transport
08/04/2021,Rays Driver Training,827297,6237,Closure Grnt No Rv (=<15k Rv),Additional Restrictions Grants,Supplies & Services
08/04/2021,REDACTED PERSONAL DATA,827293,5102,Closure Grnt No Rv (=<15k Rv),Additional Restrictions Grants,Supplies & Services
08/04/2021,REDACTED PERSONAL DATA,827294,6237,Closure Grnt No Rv (=<15k Rv),Additional Restrictions Grants,Supplies & Services
08/04/2021,REDACTED PERSONAL DATA,827296,5102,Closure Grnt No Rv (=<15k Rv),Additional Restrictions Grants,Supplies & Services
08/04/2021,REDACTED PERSONAL DATA,827298,5102,Closure Grnt No Rv (=<15k Rv),Additional Restrictions Grants,Supplies & Services
08/04/2021,REDACTED PERSONAL DATA,827300,5102,Closure Grnt No Rv (=<15k Rv),Additional Restrictions Grants,Supplies & Services
08/04/2021,Rh Environmental Ltd,826504,648,Subscriptions,Business Regulation Team,Supplies & Services
08/04/2021,Roberts Limbrick Ltd,826501,4200,Consultants Fees,Leisure Complex - Build,Supplies & Services
08/04/2021,Self Employed Taxi Driver,827295,5102,Closure Grnt No Rv (=<15k Rv),Additional Restrictions Grants,Supplies & Services
08/04/2021,Spektrix Ltd,827348,851.5,Event Promotion,Exeter Corn Exchange,Supplies & Services
08/04/2021,Strata Service Solutions Ltd,823574,627801,Bailiffs Fees,Strata Contract Payment,Supplies & Services
08/04/2021,Taxi,827292,5102,Closure Grnt No Rv (=<15k Rv),Additional Restrictions Grants,Supplies & Services
08/04/2021,Taxi Trade,827302,6237,Closure Grnt No Rv (=<15k Rv),Additional Restrictions Grants,Supplies & Services
08/04/2021,The List Ltd,826516,4500,Project Work,Communications & Marketing,Supplies & Services
08/04/2021,Thirty8 Digital Ltd,827238,1700,Activities Web Site,Ramm,Supplies & Services
08/04/2021,Twofold Ltd,826211,830.32,Equipment Tools And Materials,Civic Centre,Supplies & Services
08/04/2021,Wills Taxi,827301,5102,Closure Grnt No Rv (=<15k Rv),Additional Restrictions Grants,Supplies & Services
09/04/2021,A-Class Transfers,827559,6237,Closure Grnt No Rv (=<15k Rv),Additional Restrictions Grants,Supplies & Services
09/04/2021,Ar Land & Planning,827346,3500,Consultants Fees,Social Housing Delivery,Supplies & Services
09/04/2021,Baltimore Consulting Ltd,826113,3125,Temp.Contract-Agency Staff,New Build Site Investigations,Pay
09/04/2021,Bloom Procurement Services,825122,1310,Contract Payments,Heavitree (Cob Wave Iii),Supplies & Services
09/04/2021,D G Electrical Services,824581,1288.8,Aim Reactive Repairs,Property Maintenance,Premises
09/04/2021,D G Electrical Services,824665,2201.74,Aim Reactive Repairs,Property Maintenance,Premises
09/04/2021,Devon Tree Services,827055,1035,Sub-Contractors,Arboricultural,Premises
09/04/2021,Devon Tree Services,827055,1755,Hra Shrubs & Trees - Communal,Estate Maintenance,Premises
09/04/2021,Devon Wildlife Enterprises Ltd,827379,2560,Contract Payments,Energy Saving Projects,Supplies & Services
09/04/2021,Exeter & District Funeral Service,826905,1013,Burial Expenses-Section 46,Cemeteries,Supplies & Services
09/04/2021,Filcris Ltd,825736,16676,Sub-Contractors,Anti-Intrusion Measures,Premises
09/04/2021,First Class Builders Ltd,827377,2128,General Maintenance,General Maintenance,Premises
09/04/2021,Integrated Water Services,826022,685.2,Legionella Testing,Engineering & Construction,Premises
09/04/2021,James Andrews Recruitment Solutions Ltd,823060,767.75,Temp.Contract-Agency Staff,General Management,Pay
09/04/2021,Jtt Contracting Ltd,826545,3750,Sub-Contractors,Footpaths Maint - Assets,Premises
09/04/2021,M W Gozna Services Ltd,827371,1086.8,General Maintenance,General Maintenance,Premises
09/04/2021,Need-A-Cab,827562,6237,Closure Grnt No Rv (=<15k Rv),Additional Restrictions Grants,Supplies & Services
09/04/2021,REDACTED PERSONAL DATA,827561,6237,Closure Grnt No Rv (=<15k Rv),Additional Restrictions Grants,Supplies & Services
09/04/2021,Secureforce Uk Ltd,827413,849.17,Security Patrol,Livestock/Matford Centre,Premises
09/04/2021,Taxi,827560,5102,Closure Grnt No Rv (=<15k Rv),Additional Restrictions Grants,Supplies & Services
09/04/2021,Taxi Driver,827557,6237,Closure Grnt No Rv (=<15k Rv),Additional Restrictions Grants,Supplies & Services
09/04/2021,Taxi Driver,827558,6237,Closure Grnt No Rv (=<15k Rv),Additional Restrictions Grants,Supplies & Services
09/04/2021,Wales Environmental Ltd T/A Drainology,823389,420,Sub-Contractors,Cleansing Overheads,Premises
09/04/2021,West End Welding,826915,5750,Sub-Contractors,Anti-Intrusion Measures,Premises
09/04/2021,William Hackett Chains Ltd,826558,1727.5,Maintenance Of Buoys,River Exe,Premises
12/04/2021,1010 Media Ltd,827692,500,Activities Web Site,Ramm,Supplies & Services
12/04/2021,Ashton Cleaning Services (Sw) Ltd,826199,991.2,Grants Issued,Disabled Facilities Grants,Supplies & Services
12/04/2021,Chartered Institute Of Housing,827160,1400,Staff Training,General Management,Pay
12/04/2021,Cieh,825900,515,Subscriptions,Environmental Quality Team,Supplies & Services
12/04/2021,Devon Tree Services,825765,1440,Sub-Contractors,Exeter Arena,Premises
12/04/2021,Devon Tree Services,826013,3600,Sub-Contractors,Exeter Quay Cellars Cliff Face,Premises
12/04/2021,Dolphin Lifts South West,826262,2519,Grants Issued,Disabled Facilities Grants,Supplies & Services
12/04/2021,Edf Energy Customers Ltd,825268,824.33,Electricity,Edf Electricity Suspense,Premises
12/04/2021,Edf Energy Customers Ltd,825269,6622.68,Electricity,Edf Electricity Suspense,Premises
12/04/2021,Edf Energy Customers Ltd,825270,12884.43,Electricity,Edf Electricity Suspense,Premises
12/04/2021,Goldsworthy Heating,826514,4360,Grants Issued,Disabled Facilities Grants,Supplies & Services
12/04/2021,Haymarket Media  Ltd,827141,1460,Advertising Of Posts,Planning,Pay
12/04/2021,James Andrews Recruitment Solutions Ltd,826179,568.8,Temp.Contract-Agency Staff,Premises Licensing,Pay
12/04/2021,James Andrews Recruitment Solutions Ltd,826179,853.2,Temp.Contract-Agency Staff,Vehicles Licensing,Pay
12/04/2021,James Andrews Recruitment Solutions Ltd,826180,307.1,Temp.Contract-Agency Staff,Planned Works,Pay
12/04/2021,James Andrews Recruitment Solutions Ltd,826180,460.65,Temp.Contract-Agency Staff,Reactive Repairs,Pay
12/04/2021,James Andrews Recruitment Solutions Ltd,826181,309.17,Temp.Contract-Agency Staff,Planned Works,Pay
12/04/2021,James Andrews Recruitment Solutions Ltd,826181,463.77,Temp.Contract-Agency Staff,Reactive Repairs,Pay
12/04/2021,Jtt Contracting Ltd,826542,1550,Sub-Contractors,Salmonpool Swing Bridge,Premises
12/04/2021,Jtt Contracting Ltd,826544,750,Sub-Contractors,Salmonpool Swing Bridge,Premises
12/04/2021,Jtt Contracting Ltd,827389,1753.8,Out Of Hours Maintenance,Cctv Control Room,Supplies & Services
12/04/2021,Landmark Chambers Dx 1042,824964,1200,Solicitors And Legal Fees/Lics,Corporate Costs,Supplies & Services
12/04/2021,Landscape Supply Company(Endura Group T/A),826107,431.6,Materials,Parks And Playing Fields,Supplies & Services
12/04/2021,Lavat Consulting Ltd,826556,2065,Subscriptions,Accountancy Services,Supplies & Services
12/04/2021,Mears Ltd,827580,402.72,Mears - Communal Areas/Non-Ppp,General Maintenance,Premises
12/04/2021,Mears Ltd,827580,127.29,Mears - Rechargeable Works,General Maintenance,Premises
12/04/2021,Mears Ltd,827580,244.12,Mears -Ppp Repairs(Exclusions),General Maintenance,Premises
12/04/2021,Mears Ltd,827581,4611.68,Mears - Capital Response Costs,Adaptations,Premises
12/04/2021,Orchestra Ltd,827778,6237,Grants Rv < 15k,Additional Restrictions Grants,Supplies & Services
12/04/2021,Reach Publishing Services,826906,2281.35,Advertising,Pcc - Area Returning Officer,Supplies & Services
12/04/2021,REDACTED PERSONAL DATA,826031,500,Tenant Decant Costs,Planned Works,Supplies & Services
12/04/2021,REDACTED PERSONAL DATA,827774,6237,Closure Grnt No Rv (=<15k Rv),Additional Restrictions Grants,Supplies & Services
12/04/2021,Rose Removals & Storage,825980,550.44,Tenants Removal And Legal Exp,Lettings & Home Ownership,Supplies & Services
12/04/2021,Secureforce Uk Ltd,827308,537.8,Central Alarm Service,Ramm,Premises
12/04/2021,Secureforce Uk Ltd,827309,742,Central Alarm Service,Ramm,Premises
12/04/2021,Secureforce Uk Ltd,827309,477,Central Alarm Service,"The Ark Museum Store, Exton Rd",Premises
12/04/2021,Shaw & Sons Ltd,826949,1791,Stationery,District Council Elections,Supplies & Services
12/04/2021,Sutcliffe Play (South West) Ltd,826205,703,Materials,Childrens Play Areas,Supplies & Services
12/04/2021,Taxi B,827775,6237,Closure Grnt No Rv (=<15k Rv),Additional Restrictions Grants,Supplies & Services
12/04/2021,Taxi Driver,827773,6237,Closure Grnt No Rv (=<15k Rv),Additional Restrictions Grants,Supplies & Services
12/04/2021,Taxi Private Hire,827776,6237,Closure Grnt No Rv (=<15k Rv),Additional Restrictions Grants,Supplies & Services
12/04/2021,The Obligations Office Ltd,826194,7695,Other Expenses,Community Infrastructure Levy,Supplies & Services
12/04/2021,Venn Group Ltd,822212,127.5,Temp.Contract-Agency Staff,Business Regulation Team,Pay
12/04/2021,Venn Group Ltd,822212,127.5,Temp.Contract-Agency Staff,Environmental Quality Team,Pay
12/04/2021,Venn Group Ltd,822212,127.5,Temp.Contract-Agency Staff,Neighbourhood Team,Pay
12/04/2021,Venn Group Ltd,822212,127.5,Temp.Contract-Agency Staff,Premises Licensing,Pay
12/04/2021,Venn Group Ltd,822212,127.5,Temp.Contract-Agency Staff,Vehicles Licensing,Pay
12/04/2021,Venn Group Ltd,824350,440,Temp.Contract-Agency Staff,Legal Services 3rd Party Work,Pay
12/04/2021,Venn Group Ltd,824351,125.8,Temp.Contract-Agency Staff,Business Regulation Team,Pay
12/04/2021,Venn Group Ltd,824351,125.8,Temp.Contract-Agency Staff,Environmental Quality Team,Pay
12/04/2021,Venn Group Ltd,824351,125.8,Temp.Contract-Agency Staff,Neighbourhood Team,Pay
12/04/2021,Venn Group Ltd,824351,125.8,Temp.Contract-Agency Staff,Premises Licensing,Pay
12/04/2021,Venn Group Ltd,824351,125.8,Temp.Contract-Agency Staff,Vehicles Licensing,Pay
12/04/2021,Venn Group Ltd,825905,125.8,Temp.Contract-Agency Staff,Business Regulation Team,Pay
12/04/2021,Venn Group Ltd,825905,125.8,Temp.Contract-Agency Staff,Environmental Quality Team,Pay
12/04/2021,Venn Group Ltd,825905,125.8,Temp.Contract-Agency Staff,Premises Licensing,Pay
12/04/2021,Venn Group Ltd,825905,125.8,Temp.Contract-Agency Staff,The Haven,Pay
12/04/2021,Venn Group Ltd,825905,125.8,Temp.Contract-Agency Staff,Vehicles Licensing,Pay
12/04/2021,Venn Group Ltd,826481,440,Temp.Contract-Agency Staff,Legal Services 3rd Party Work,Pay
12/04/2021,Venn Group Ltd,826482,814.05,Temp.Contract-Agency Staff,Legal Services,Pay
12/04/2021,Venn Group Ltd,826483,125.8,Temp.Contract-Agency Staff,Business Regulation Team,Pay
12/04/2021,Venn Group Ltd,826483,125.8,Temp.Contract-Agency Staff,Environmental Quality Team,Pay
12/04/2021,Venn Group Ltd,826483,125.8,Temp.Contract-Agency Staff,Neighbourhood Team,Pay
12/04/2021,Venn Group Ltd,826483,125.8,Temp.Contract-Agency Staff,Premises Licensing,Pay
12/04/2021,Venn Group Ltd,826483,125.8,Temp.Contract-Agency Staff,Vehicles Licensing,Pay
13/04/2021,Apple Taxi,828087,2302,Closure Grnt No Rv (=<15k Rv),Additional Restrictions Grants,Supplies & Services
13/04/2021,Apple Taxi,828092,2036,Closure Grnt No Rv (=<15k Rv),Additional Restrictions Grants,Supplies & Services
13/04/2021,Apple Taxis,828085,2302,Closure Grnt No Rv (=<15k Rv),Additional Restrictions Grants,Supplies & Services
13/04/2021,Beauty,828082,6237,Closure Grnt No Rv (=<15k Rv),Additional Restrictions Grants,Supplies & Services
13/04/2021,C4yourself Productions,826901,520.32,Filming,Sport England Pathfinder,Supplies & Services
13/04/2021,Charly'S Taxis,828095,6237,Closure Grnt No Rv (=<15k Rv),Additional Restrictions Grants,Supplies & Services
13/04/2021,Citizens Advice Bureau,827381,50000,Contract Payments,Ia&A Contract (Cab),Supplies & Services
13/04/2021,Devon County Council,826900,50000,Pay,Sport England,Pay
13/04/2021,Devon Dairy Fresh,828098,6237,Grants Rv < 15k,Additional Restrictions Grants,Supplies & Services
13/04/2021,Devon Tree Services,827058,720,Sub-Contractors,Arboricultural,Premises
13/04/2021,Felix Northover Photography + Video,824280,785,Marketing,Building Greater Exeter,Supplies & Services
13/04/2021,Glassfast Ltd,828097,6237,Grants Rv < 15k,Additional Restrictions Grants,Supplies & Services
13/04/2021,Hackney,828090,6237,Closure Grnt No Rv (=<15k Rv),Additional Restrictions Grants,Supplies & Services
13/04/2021,M A Vernon Ltd,827349,450,General Maintenance,Repairs To Void Properties,Premises
13/04/2021,M A Vernon Ltd,827353,475,General Maintenance,Repairs To Void Properties,Premises
13/04/2021,M A Vernon Ltd,827380,1800,General Maintenance,General Maintenance,Premises
13/04/2021,M A Vernon Ltd,827404,950,General Maintenance,Repairs To Void Properties,Premises
13/04/2021,Mears Ltd,827340,616.59,Mears - Communal Areas/Non-Ppp,General Maintenance,Premises
13/04/2021,Mears Ltd,827340,268.28,Mears - Rechargeable Works,General Maintenance,Premises
13/04/2021,Mears Ltd,827340,1865.85,Mears -Ppp Repairs(Exclusions),General Maintenance,Premises
13/04/2021,Mears Ltd,827860,830.05,Mears - Communal Areas/Non-Ppp,General Maintenance,Premises
13/04/2021,Mears Ltd,827860,335.89,Mears -Ppp Repairs(Exclusions),General Maintenance,Premises
13/04/2021,Mears Ltd,827860,69.63,Mears -Psl Properties(Non-Ppp),General Maintenance,Premises
13/04/2021,Naomi Nutters Hair,828094,5102,Closure Grnt No Rv (=<15k Rv),Additional Restrictions Grants,Supplies & Services
13/04/2021,Naz Taxi,828088,6237,Closure Grnt No Rv (=<15k Rv),Additional Restrictions Grants,Supplies & Services
13/04/2021,Platinum Lashes,828091,6237,Closure Grnt No Rv (=<15k Rv),Additional Restrictions Grants,Supplies & Services
13/04/2021,Purity Boutique Spa Ltd,828083,6237,Closure Grnt No Rv (=<15k Rv),Additional Restrictions Grants,Supplies & Services
13/04/2021,Recruitment Solutions (Sw) Ltd,823552,587.93,Casuals Waged-Agency Staff,Waste Agency Costs,Pay
13/04/2021,REDACTED PERSONAL DATA,828089,6237,Closure Grnt No Rv (=<15k Rv),Additional Restrictions Grants,Supplies & Services
13/04/2021,Shaw & Sons Ltd,826268,673.5,Stationery,District Council Elections,Supplies & Services
13/04/2021,Taxi Driver,828086,5102,Closure Grnt No Rv (=<15k Rv),Additional Restrictions Grants,Supplies & Services
13/04/2021,Taxi Driver ( Exeter City Council),828084,5102,Closure Grnt No Rv (=<15k Rv),Additional Restrictions Grants,Supplies & Services
13/04/2021,Taxi Private  Hire,828093,6237,Closure Grnt No Rv (=<15k Rv),Additional Restrictions Grants,Supplies & Services
13/04/2021,Ventro Ltd,827894,2277.92,Contract Payments,Fire Risk Assessment Works,Supplies & Services
13/04/2021,Ventro Ltd,827895,2277.92,Contract Payments,Fire Risk Assessment Works,Supplies & Services
13/04/2021,Ventro Ltd,827896,2756.56,Contract Payments,Fire Risk Assessment Works,Supplies & Services
13/04/2021,Wider Plan Ltd,827513,8.12,Commission,Payroll,Supplies & Services
14/04/2021,Berry Recruitment,824338,494.69,Casuals Waged-Agency Staff,Waste Agency Costs,Pay
14/04/2021,Concept Staffing Ltd,824708,2088.79,Casuals Waged-Agency Staff,Waste Agency Costs,Pay
14/04/2021,Devon County Council,826895,150000,Contract Payments,Sport England Pathfinder,Supplies & Services
14/04/2021,Djibiapple Taxis,828273,5102,Closure Grnt No Rv (=<15k Rv),Additional Restrictions Grants,Supplies & Services
14/04/2021,Driver Hire Exeter Ltd,824959,675.25,Casuals Waged-Agency Staff,Waste Agency Costs,Pay
14/04/2021,Environment Agency,824303,500,Licences,Materials Reclamation Facility,Supplies & Services
14/04/2021,Glen Cleaning,824695,583.51,Cleaning,Oakwood House,Premises
14/04/2021,I Taxi Exe Ltd,828272,6237,Closure Grnt No Rv (=<15k Rv),Additional Restrictions Grants,Supplies & Services
14/04/2021,Liberty Gas Group Ltd,828249,73800.17,Contract Payments,Boiler Replacement Programme,Supplies & Services
14/04/2021,Mears Ltd,828131,1032.98,Mears - Capital Response Costs,Adaptations,Premises
14/04/2021,Mears Ltd,828143,3155.84,General Maintenance,Repairs To Void Properties,Premises
14/04/2021,Mears Ltd,828143,38932.39,Mears - Ppv Voids (Inc & Excl),Repairs To Void Properties,Premises
14/04/2021,Mears Ltd,828144,6145.31,General Maintenance,General Maintenance,Premises
14/04/2021,Patronus Security Uk Ltd,828297,862.75,Other Expenses,Nsap,Supplies & Services
14/04/2021,Patronus Security Uk Ltd,828298,2864.5,Other Expenses,Nsap,Supplies & Services
14/04/2021,Patronus Security Uk Ltd,828299,2847.5,Other Expenses,Nsap,Supplies & Services
14/04/2021,Patronus Security Uk Ltd,828300,862.75,Other Expenses,Nsap,Supplies & Services
14/04/2021,Patronus Security Uk Ltd,828301,1785,Other Expenses,Nsap,Supplies & Services
14/04/2021,Patronus Security Uk Ltd,828305,3463.75,Other Expenses,Serviced Accommodation,Supplies & Services
14/04/2021,Patronus Security Uk Ltd,828306,2911.25,Other Expenses,Serviced Accommodation,Supplies & Services
14/04/2021,Recruitment Solutions (Sw) Ltd,823559,828.75,Casuals Waged-Agency Staff,Materials Reclamation Facility,Pay
14/04/2021,REDACTED PERSONAL DATA,828274,5102,Closure Grnt No Rv (=<15k Rv),Additional Restrictions Grants,Supplies & Services
14/04/2021,REDACTED PERSONAL DATA,828276,6237,Closure Grnt No Rv (=<15k Rv),Additional Restrictions Grants,Supplies & Services
14/04/2021,Revise Right Ltd,828271,6237,Closure Grnt No Rv (=<15k Rv),Additional Restrictions Grants,Supplies & Services
14/04/2021,Taxi Driver,828275,6237,Closure Grnt No Rv (=<15k Rv),Additional Restrictions Grants,Supplies & Services
14/04/2021,Telstar Guest House Ltd,827920,2909.52,Bed And Breakfast,Bed And Breakfast,Premises
14/04/2021,The Oyster Partnership Ltd,825916,937.5,Temp.Contract-Agency Staff,Rough Sleeper Co-Ordinator,Pay
14/04/2021,The Oyster Partnership Ltd,827401,937.5,Temp.Contract-Agency Staff,Rough Sleeper Co-Ordinator,Pay
14/04/2021,Trump Engineering Ltd,805213,628,Maintenance Of Equipment,Materials Reclamation Facility,Supplies & Services
14/04/2021,Trump Engineering Ltd,828168,428.5,Maintenance Of Equipment,Materials Reclamation Facility,Supplies & Services
14/04/2021,Trump Engineering Ltd,828169,602,Maintenance Of Equipment,Materials Reclamation Facility,Supplies & Services
15/04/2021,Aquarius Solutions,827889,2437.8,Materials,Graffiti Cleaning,Supplies & Services
15/04/2021,Ashborne Construction Solutions Ltd,828148,24713.97,Contract Payments,Structural Repairs,Supplies & Services
15/04/2021,Bam Construction Ltd - Site Solutions,827872,5310,"Clothing, Laundry, & Uniforms",Cleansing Overheads,Supplies & Services
15/04/2021,Building Recruitment Co Ltd,826705,967.8,Temp.Contract-Agency Staff,Reactive Repairs,Pay
15/04/2021,Central Apple Taxi�S Exeter,828463,5102,Closure Grnt No Rv (=<15k Rv),Additional Restrictions Grants,Supplies & Services
15/04/2021,Couch Perry & Wilkes Environmental Llp,827409,4718.75,Contract Payments,Leisure Complex - Build,Supplies & Services
15/04/2021,Devon County Council,823515,29400,Contract Payments,Bus Station Construction,Supplies & Services
15/04/2021,Dolphin Lifts South West,828426,2495,Grants Issued,Disabled Facilities Grants,Supplies & Services
15/04/2021,Faithful & Gould/Atkins Group,828529,9021,Contract Payments,Riverside,Supplies & Services
15/04/2021,Goldsworthy Heating,828425,3590,Grants Issued,Disabled Facilities Grants,Supplies & Services
15/04/2021,Hays Accountancy Personnel,822217,1060.42,Temp.Contract-Agency Staff,Planned Works,Pay
15/04/2021,Hays Accountancy Personnel,822218,1242.67,Temp.Contract-Agency Staff,Planned Works,Pay
15/04/2021,Home Lead Gen Limited,828459,6237,Closure Grnt No Rv (=<15k Rv),Additional Restrictions Grants,Supplies & Services
15/04/2021,Integrated Water Services,828322,1169.93,Legionella Testing,Service Contracts,Premises
15/04/2021,Integrated Water Services,828323,3638.99,Legionella Testing,Service Contracts,Premises
15/04/2021,Kier Construction Ltd,828530,526485.62,Contract Payments,Leisure Complex - Build,Supplies & Services
15/04/2021,Lavat Consulting Ltd,828334,5400,Consultants Fees,Accountancy Services,Supplies & Services
15/04/2021,Monsieur Tacos Kebab Pizza,828461,6237,Closure Grnt No Rv (=<15k Rv),Additional Restrictions Grants,Supplies & Services
15/04/2021,Red Rock Geoscience Ltd,828326,485,General Maintenance,General Maintenance,Premises
15/04/2021,REDACTED PERSONAL DATA,828173,588,General Maintenance,General Maintenance,Premises
15/04/2021,REDACTED PERSONAL DATA,828464,6237,Closure Grnt No Rv (=<15k Rv),Additional Restrictions Grants,Supplies & Services
15/04/2021,Se3 Design Ltd,826553,2400,Contract Payments,Leisure Complex - Build,Supplies & Services
15/04/2021,Signs Express (Exeter),827604,1328,Signage,Riverside Leisure Centre,Supplies & Services
15/04/2021,Source For Business T/A Sw Water Business,828557,755.76,Water,Allotments,Premises
15/04/2021,Specialist Fleet Services Ltd,816993,506.67,Fleet Supply & Maintenance,Fleet Contract Hire,Transport
15/04/2021,Specialist Fleet Services Ltd,819588,484.33,Fleet Supply & Maintenance,Fleet Contract Hire,Transport
15/04/2021,Specialist Fleet Services Ltd,819589,1147.53,Fleet Supply & Maintenance,Fleet Contract Hire,Transport
15/04/2021,Specialist Fleet Services Ltd,819596,685,Fleet Supply & Maintenance,Fleet Contract Hire,Transport
15/04/2021,Specialist Fleet Services Ltd,819601,685,Fleet Supply & Maintenance,Fleet Contract Hire,Transport
15/04/2021,Specialist Fleet Services Ltd,819602,895,Fleet Supply & Maintenance,Fleet Contract Hire,Transport
15/04/2021,Specialist Fleet Services Ltd,819603,658.8,Fleet Supply & Maintenance,Fleet Contract Hire,Transport
15/04/2021,Specialist Fleet Services Ltd,819611,766.58,Fleet Supply & Maintenance,Fleet Contract Hire,Transport
15/04/2021,Specialist Fleet Services Ltd,821185,4071.94,Fleet Supply & Maintenance,Fleet Contract Hire,Transport
15/04/2021,Specialist Fleet Services Ltd,821188,3812.09,Fleet Supply & Maintenance,Fleet Contract Hire,Transport
15/04/2021,Specialist Fleet Services Ltd,823522,3865.81,Fleet Supply & Maintenance,Fleet Contract Hire,Transport
15/04/2021,Specialist Fleet Services Ltd,823530,710,Fleet Supply & Maintenance,Fleet Contract Hire,Transport
15/04/2021,Specialist Fleet Services Ltd,823531,3865.81,Fleet Supply & Maintenance,Fleet Contract Hire,Transport
15/04/2021,Specialist Fleet Services Ltd,823533,685,Fleet Supply & Maintenance,Fleet Contract Hire,Transport
15/04/2021,Specialist Fleet Services Ltd,823534,685,Fleet Supply & Maintenance,Fleet Contract Hire,Transport
15/04/2021,Specialist Fleet Services Ltd,823536,685,Fleet Supply & Maintenance,Fleet Contract Hire,Transport
15/04/2021,Specialist Fleet Services Ltd,823537,685,Fleet Supply & Maintenance,Fleet Contract Hire,Transport
15/04/2021,Specialist Fleet Services Ltd,823543,1194,Fleet Supply & Maintenance,Fleet Contract Hire,Transport
15/04/2021,Specialist Fleet Services Ltd,823544,2193.6,Fleet Supply & Maintenance,Fleet Contract Hire,Transport
15/04/2021,Specialist Fleet Services Ltd,823545,500.17,Fleet Supply & Maintenance,Fleet Contract Hire,Transport
15/04/2021,Specialist Fleet Services Ltd,823547,620.8,Fleet Supply & Maintenance,Fleet Contract Hire,Transport
15/04/2021,Specialist Fleet Services Ltd,823551,641.23,Fleet Supply & Maintenance,Fleet Contract Hire,Transport
15/04/2021,Specialist Fleet Services Ltd,823553,484,Fleet Supply & Maintenance,Fleet Contract Hire,Transport
15/04/2021,Specialist Fleet Services Ltd,823565,500.17,Fleet Supply & Maintenance,Fleet Contract Hire,Transport
15/04/2021,Specialist Fleet Services Ltd,823579,612.92,Other Expenses,Fleet Contract Hire,Supplies & Services
15/04/2021,Specialist Fleet Services Ltd,823581,620.8,Fleet Supply & Maintenance,Fleet Contract Hire,Transport
15/04/2021,Specialist Fleet Services Ltd,823789,506.67,Fleet Supply & Maintenance,Fleet Contract Hire,Transport
15/04/2021,Specialist Fleet Services Ltd,828576,721.76,Fleet Supply & Maintenance,Fleet Contract Hire,Transport
15/04/2021,Specialist Fleet Services Ltd,828579,4124.88,Fleet Supply & Maintenance,Fleet Contract Hire,Transport
15/04/2021,Specialist Fleet Services Ltd,828581,487,Fleet Supply & Maintenance,Fleet Contract Hire,Transport
15/04/2021,Taxi,828460,3701,Closure Grnt No Rv (=<15k Rv),Additional Restrictions Grants,Supplies & Services
15/04/2021,Taxi Private Hire,828462,1135,Closure Grnt No Rv (=<15k Rv),Additional Restrictions Grants,Supplies & Services
15/04/2021,Wireless Cctv Ltd,826115,14000,Cctv Camera Maintenance,Community Safety Partnerships,Supplies & Services
15/04/2021,Zurich,827398,4141.98,Plant/ Eqpt Insurance Premiums,Canal,Transport
15/04/2021,Zurich,827398,4141.98,Plant/ Eqpt Insurance Premiums,River Exe,Transport
16/04/2021,A Mclay And Company Ltd,826552,3498,Marketing,Visit Exeter,Supplies & Services
16/04/2021,Adler & Allan Ltd,828527,2252,Sub-Contractors,River Exe,Premises
16/04/2021,Aramark Ltd Plc(Museum Cafe),826506,500,Project Work,Ramm,Supplies & Services
16/04/2021,Bloom Procurement Services,828668,6720,Consultants Fees,Leisure Complex - Build,Supplies & Services
16/04/2021,Bloom Procurement Services,828669,14000,Consultants Fees,Leisure Complex - Build,Supplies & Services
16/04/2021,Blue Frog Cleaning Services,826707,6256.2,Cleaning,Civic Centre,Premises
16/04/2021,Davies Roofing Ltd,828520,565,General Maintenance,General Maintenance,Premises
16/04/2021,Davies Roofing Ltd,828521,1985,General Maintenance,General Maintenance,Premises
16/04/2021,Dolphin Lifts South West,827176,2510,Grants Issued,Disabled Facilities Grants,Supplies & Services
16/04/2021,Edf Energy Customers Ltd,828434,974.89,Electricity,Facilities Management,Premises
16/04/2021,European Asbestos Services Ltd,828500,625,Asbestos Removal,Asbestos,Premises
16/04/2021,European Asbestos Services Ltd,828502,504,Asbestos Removal,Asbestos,Premises
16/04/2021,European Asbestos Services Ltd,828524,2068,Asbestos Removal,Asbestos,Premises
16/04/2021,European Asbestos Services Ltd,828531,681.4,Asbestos Removal,Asbestos,Premises
16/04/2021,Experian Ltd,826586,544.67,Experian,Revenues Recovery,Supplies & Services
16/04/2021,First Class Builders Ltd,828479,3084,General Maintenance,General Maintenance,Premises
16/04/2021,Glen Cleaning,825142,568.75,Cleaning,Materials Reclamation Facility,Premises
16/04/2021,H & S Transport Ltd,827240,1377,Sub-Contractors,Land Drainage Water C - Assets,Premises
16/04/2021,H & S Transport Ltd,828766,2181,Sub-Contractors,Land Drainage Water C - Assets,Premises
16/04/2021,Kier Construction Ltd,828770,159989.88,Contract Payments,Riverside,Supplies & Services
16/04/2021,Marine & Civil Solutions Ltd,826474,44511.8,Sub-Contractors,Salmonpool Swing Bridge,Premises
16/04/2021,Mears Ltd,828537,14.33,General Maintenance,General Maintenance,Premises
16/04/2021,Mears Ltd,828537,1463.52,Mears - Communal Areas/Non-Ppp,General Maintenance,Premises
16/04/2021,Mears Ltd,828537,23.05,Mears - Ppp Repairs,General Maintenance,Premises
16/04/2021,Mears Ltd,828537,80.65,Mears - Rechargeable Works,General Maintenance,Premises
16/04/2021,Mears Ltd,828537,807.03,Mears -Ppp Repairs(Exclusions),General Maintenance,Premises
16/04/2021,Morgan Hunt Uk Ltd,824976,473.23,Temp.Contract-Agency Staff,Revenues Recovery,Pay
16/04/2021,Ms Mobility Equipment Servicing Ltd,828709,6237,Grants Rv < 15k,Additional Restrictions Grants,Supplies & Services
16/04/2021,Office Angels Limited,826490,566.63,Temp.Contract-Agency Staff,Community Safety Projects,Pay
16/04/2021,Office Angels Limited,827397,566.63,Temp.Contract-Agency Staff,Community Safety Projects,Pay
16/04/2021,Park Now Ltd,827234,1326,Paybyphone Charges,Car Parks,Supplies & Services
16/04/2021,Pell Frischmann Consultants Ltd,826951,1500,Sub-Contractors,Riverside,Premises
16/04/2021,Pell Frischmann Consultants Ltd,826952,2200,Sub-Contractors,Riverside,Premises
16/04/2021,Pell Frischmann Consultants Ltd,826953,560,Sub-Contractors,Riverside,Premises
16/04/2021,Recruitment Solutions (Sw) Ltd,824973,714,Casuals Waged-Agency Staff,Materials Reclamation Facility,Pay
16/04/2021,REDACTED PERSONAL DATA,828707,6237,Closure Grnt No Rv (=<15k Rv),Additional Restrictions Grants,Supplies & Services
16/04/2021,Shoreline Surveys,826500,2750,Special Works,River Exe,Premises
16/04/2021,South West Councils,826947,7578,Subscriptions,Democratic Costs,Supplies & Services
16/04/2021,Specialist Fleet Services Ltd,828574,612.92,Fleet Supply & Maintenance,Fleet Contract Hire,Transport
16/04/2021,Specialist Fleet Services Ltd,828582,803.31,Fleet Supply & Maintenance,Fleet Contract Hire,Transport
16/04/2021,Specialist Fleet Services Ltd,828586,4124.88,Fleet Supply & Maintenance,Fleet Contract Hire,Transport
16/04/2021,Stalite Signs Ltd,826971,831.46,Other Expenses,Rhss & Welcome Back Funds,Supplies & Services
16/04/2021,Tam Marketing Ltd,827695,515.1,Materials,Public Conveniences,Supplies & Services
16/04/2021,The Best Connection Group Ltd,824356,1245.83,Casuals Waged-Agency Staff,Materials Reclamation Facility,Pay
16/04/2021,Thistle Insurance Services,826583,4122.33,Insurance - Contents Policy,Lettings & Home Ownership,Premises
19/04/2021,Aesthetica By Alice Ltd,828949,6237,Closure Grnt No Rv (=<15k Rv),Additional Restrictions Grants,Supplies & Services
19/04/2021,Aj Sands Ltd,827382,600,Contract Payments,Energy Saving Projects,Supplies & Services
19/04/2021,Ben Ford Carriages Ltd,827142,1300,Equipment Rental,Guildhall Chambers,Supplies & Services
19/04/2021,C & P Contracting Solutions Ltd,826922,1800,Consultants Fees,General Management,Supplies & Services
19/04/2021,Coastal C & I Ltd,827357,12627,Processing Comingled Materials,Materials & Goods For Resale,Supplies & Services
19/04/2021,Dan Hall Fitness,828948,6237,Closure Grnt No Rv (=<15k Rv),Additional Restrictions Grants,Supplies & Services
19/04/2021,Dark Matter Traiding,828957,5102,Grants Rv < 15k,Additional Restrictions Grants,Supplies & Services
19/04/2021,Ecc HackneY,829000,6237,Closure Grnt No Rv (=<15k Rv),Additional Restrictions Grants,Supplies & Services
19/04/2021,Exeter Park Flat,829002,1135,Grants Rv < 15k,Additional Restrictions Grants,Supplies & Services
19/04/2021,Exeter Phoenix,827050,36800,Grants Issued,Arts & Events,Supplies & Services
19/04/2021,Giant Deckchairs Limited,828958,6237,Grants Rv < 15k,Additional Restrictions Grants,Supplies & Services
19/04/2021,Health & Safety Executive,825375,549.5,Consultants Fees,Materials Reclamation Facility,Supplies & Services
19/04/2021,Impact Marketing + Publicity Ltd,828764,995,Home Call Alarm Equipment,Home Call Alarm Service,Supplies & Services
19/04/2021,James Andrews Recruitment Solutions Ltd,827405,504,Temp.Contract-Agency Staff,Premises Licensing,Pay
19/04/2021,James Andrews Recruitment Solutions Ltd,827405,756,Temp.Contract-Agency Staff,Vehicles Licensing,Pay
19/04/2021,James Andrews Recruitment Solutions Ltd,827406,207.5,Temp.Contract-Agency Staff,Planned Works,Pay
19/04/2021,James Andrews Recruitment Solutions Ltd,827406,311.25,Temp.Contract-Agency Staff,Reactive Repairs,Pay
19/04/2021,James Andrews Recruitment Solutions Ltd,828309,767.75,Temp.Contract-Agency Staff,General Management,Pay
19/04/2021,Jason Smith  Signs,828947,6237,Closure Grnt No Rv (=<15k Rv),Additional Restrictions Grants,Supplies & Services
19/04/2021,Jh Buckerell Ltd,827599,1323.8,Bed And Breakfast,Glenthorne Rd Emergency Resp,Premises
19/04/2021,Kaleider Ltd,827051,6400,Grants Issued,Arts & Events,Supplies & Services
19/04/2021,Leanne Jory Hair,828951,6237,Closure Grnt No Rv (=<15k Rv),Additional Restrictions Grants,Supplies & Services
19/04/2021,Liberty Gas Group Ltd,828067,24644.66,Gas & Central Heating,Service Contracts,Premises
19/04/2021,Liberty Gas Group Ltd,828068,4330.65,Gas & Central Heating,Service Contracts,Premises
19/04/2021,Libraries Unlimited South West,827052,8000,Grants Issued,Arts & Events,Supplies & Services
19/04/2021,Luminous Show Technology Ltd,828959,9350,Grants Rv 15k - 51k,Additional Restrictions Grants,Supplies & Services
19/04/2021,Morgan Hunt Uk Ltd,827235,473.23,Temp.Contract-Agency Staff,Revenues Recovery,Pay
19/04/2021,Recruitment Solutions (Sw) Ltd,827399,1032.39,Casuals Waged-Agency Staff,Materials Reclamation Facility,Pay
19/04/2021,REDACTED PERSONAL DATA,828950,6237,Closure Grnt No Rv (=<15k Rv),Additional Restrictions Grants,Supplies & Services
19/04/2021,REDACTED PERSONAL DATA,828952,6237,Closure Grnt No Rv (=<15k Rv),Additional Restrictions Grants,Supplies & Services
19/04/2021,REDACTED PERSONAL DATA,828953,6237,Closure Grnt No Rv (=<15k Rv),Additional Restrictions Grants,Supplies & Services
19/04/2021,Regency Wines Ltd,828956,7650,Grants Rv 15k - 51k,Additional Restrictions Grants,Supplies & Services
19/04/2021,Source For Business T/A Sw Water Business,828560,1661.63,Water,Northbrook Pool,Premises
19/04/2021,Source For Business T/A Sw Water Business,828658,534.49,Water,Livestock/Matford Centre,Premises
19/04/2021,Taxi,828954,5102,Closure Grnt No Rv (=<15k Rv),Additional Restrictions Grants,Supplies & Services
19/04/2021,The Exeter Northcott Theatre Company,827049,52000,Grants Issued,Arts & Events,Supplies & Services
19/04/2021,Theatre Alibi,827053,12288,Grants Issued,Arts & Events,Supplies & Services
19/04/2021,Wise Employment,828360,546.83,Temp.Contract-Agency Staff,Community Safety Projects,Pay
20/04/2021,Airtech Humidity Controls Ltd T/A,828480,1966.92,General Maintenance,General Maintenance,Premises
20/04/2021,Ben Shipton Architectural Joinery,827129,1000,Aim Lease Requirements,Miscellaneous Properties,Premises
20/04/2021,Berry Recruitment,825741,494.69,Casuals Waged-Agency Staff,Waste Agency Costs,Pay
20/04/2021,Berry Recruitment,825742,421.16,Casuals Waged-Agency Staff,Other Street Sweeping,Pay
20/04/2021,British Gas Business,828344,1265.25,Contract Payments,St Loyes Extracare Scheme,Supplies & Services
20/04/2021,Concept Staffing Ltd,826029,2583.57,Casuals Waged-Agency Staff,Waste Agency Costs,Pay
20/04/2021,Exeter City Living,827611,463.52,Contract Payments,Hamlin Gardens,Supplies & Services
20/04/2021,Exeter City Living,827612,8494.4,Contract Payments,Hamlin Gardens,Supplies & Services
20/04/2021,Exeter City Living,827888,815.65,Contract Payments,Bovemoors Lane,Supplies & Services
20/04/2021,Mears Ltd,829126,2966.06,General Maintenance,General Maintenance,Premises
20/04/2021,Mears Ltd,829127,530.05,Mears - Communal Areas/Non-Ppp,General Maintenance,Premises
20/04/2021,Mears Ltd,829127,52.53,Mears - Rechargeable Works,General Maintenance,Premises
20/04/2021,Mears Ltd,829127,2918.44,Mears -Ppp Repairs(Exclusions),General Maintenance,Premises
20/04/2021,Mears Ltd,829128,13008.18,Mears - Ppv Voids (Inc & Excl),Repairs To Void Properties,Premises
20/04/2021,Recruitment Solutions (Sw) Ltd,822893,612.01,Casuals Waged-Agency Staff,Materials Reclamation Facility,Pay
20/04/2021,Recruitment Solutions (Sw) Ltd,823378,471.75,Casuals Waged-Agency Staff,Other Street Sweeping,Pay
20/04/2021,Recruitment Solutions (Sw) Ltd,823378,564.3,Casuals Waged-Agency Staff,Public Conveniences,Pay
20/04/2021,Recruitment Solutions (Sw) Ltd,824974,943.5,Casuals Waged-Agency Staff,Other Street Sweeping,Pay
20/04/2021,Recruitment Solutions (Sw) Ltd,824974,554.4,Casuals Waged-Agency Staff,Public Conveniences,Pay
20/04/2021,Recruitment Solutions (Sw) Ltd,826399,1370.63,Casuals Waged-Agency Staff,Materials Reclamation Facility,Pay
20/04/2021,Recruitment Solutions (Sw) Ltd,826400,860.63,Casuals Waged-Agency Staff,Other Street Sweeping,Pay
20/04/2021,Recruitment Solutions (Sw) Ltd,826400,415.8,Casuals Waged-Agency Staff,Public Conveniences,Pay
20/04/2021,Recruitment Solutions (Sw) Ltd,826401,587.93,Casuals Waged-Agency Staff,Waste Agency Costs,Pay
20/04/2021,Recruitment Solutions (Sw) Ltd,829271,1292.02,Casuals Waged-Agency Staff,Materials Reclamation Facility,Pay
20/04/2021,The Best Connection Group Ltd,824352,709.8,Casuals Waged-Agency Staff,Other Street Sweeping,Pay
20/04/2021,The Best Connection Group Ltd,824352,302.12,Casuals Waged-Agency Staff,Public Conveniences,Pay
20/04/2021,The Best Connection Group Ltd,825735,2543.28,Casuals Waged-Agency Staff,Materials Reclamation Facility,Pay
21/04/2021,A1 Electrics,829429,809.56,General Maintenance,Repairs To Void Properties,Premises
21/04/2021,Advantage South West Llp,828063,12976.25,Subscriptions,Planned Works,Supplies & Services
21/04/2021,Airtech Humidity Controls Ltd T/A,829441,709.05,General Maintenance,General Maintenance,Premises
21/04/2021,Airtech Humidity Controls Ltd T/A,829463,1018.18,General Maintenance,General Maintenance,Premises
21/04/2021,Berry Recruitment,826902,561.54,Casuals Waged-Agency Staff,Waste Agency Costs,Pay
21/04/2021,Berry Recruitment,826903,494.69,Casuals Waged-Agency Staff,Waste Agency Costs,Pay
21/04/2021,Building Recruitment Co Ltd,823070,969,Temp.Contract-Agency Staff,Reactive Repairs,Pay
21/04/2021,C & G Mobility Lifts T/A Hanover Lifts Ltd,829519,2250,Contract Payments,Adaptations,Supplies & Services
21/04/2021,Concept Staffing Ltd,826920,2502.19,Casuals Waged-Agency Staff,Waste Agency Costs,Pay
21/04/2021,Driver Hire Exeter Ltd,826904,675.25,Casuals Waged-Agency Staff,Waste Agency Costs,Pay
21/04/2021,Edf Energy Customers Ltd,828355,1134.54,Electricity,Edf Electricity Suspense,Premises
21/04/2021,Energyserv Uk Ltd,829828,1361.65,General Maintenance,Service Contracts,Premises
21/04/2021,John Kennard,829470,12692.4,Serviced Accommodation,Serviced Accommodation,Premises
21/04/2021,Lyreco Uk Ltd,819791,527.5,Equipment Tools And Materials,Procurement,Supplies & Services
21/04/2021,M A Vernon Ltd,829267,1450,General Maintenance,Repairs To Void Properties,Premises
21/04/2021,M A Vernon Ltd,829270,1250,General Maintenance,Repairs To Void Properties,Premises
21/04/2021,M A Vernon Ltd,829431,1300,General Maintenance,Repairs To Void Properties,Premises
21/04/2021,Matching Staff Solutions,826384,586.95,Casuals Waged-Agency Staff,Waste Agency Costs,Pay
21/04/2021,Mears Ltd,828145,8512.2,Mears - Communal Areas/Non-Ppp,General Maintenance,Premises
21/04/2021,Mears Ltd,828145,4227.16,Mears -Ppp Repairs(Exclusions),General Maintenance,Premises
21/04/2021,Mears Ltd,829496,979.14,Mears - Communal Areas/Non-Ppp,General Maintenance,Premises
21/04/2021,Mears Ltd,829496,40.42,Mears - Rechargeable Works,General Maintenance,Premises
21/04/2021,Mears Ltd,829496,509.18,Mears -Ppp Repairs(Exclusions),General Maintenance,Premises
21/04/2021,Mi-Space (Uk) Ltd,829465,9240,Asbestos Surveys,Asbestos,Premises
21/04/2021,Mr M N Hassan,829471,17040.8,Serviced Accommodation,Serviced Accommodation,Premises
21/04/2021,Peter Stevens,827891,4185,Bed And Breakfast,Bed And Breakfast,Premises
21/04/2021,Propoint Southwest Ltd,829493,5818,General Maintenance,General Maintenance,Premises
21/04/2021,Source For Business T/A Sw Water Business,828162,969.56,Water,Pyramids Swim & Leisure Centre,Premises
21/04/2021,Southern Electric,829820,941.94,Electricity,Commercial Properties,Premises
21/04/2021,Stuart Crewes,828342,3200,Contract Payments,Sport England Pathfinder,Supplies & Services
21/04/2021,Westcountry Fire Protection Ltd,829464,1050,Fire Alarm Testing,Service Contracts,Premises
22/04/2021,A Mclay And Company Ltd,830074,2782,Marketing,Visit Exeter,Supplies & Services
22/04/2021,Allstar Business Solutions,828166,424.56,Motor Fuel,Canal,Transport
22/04/2021,Allstar Business Solutions,828166,65.57,Motor Fuel,Cash Collection,Transport
22/04/2021,Allstar Business Solutions,828166,371.04,Motor Fuel,Cemeteries - Operational,Transport
22/04/2021,Allstar Business Solutions,828166,282.19,Motor Fuel,Cleansing Overheads,Transport
22/04/2021,Allstar Business Solutions,828166,45.56,Motor Fuel,Graffiti Cleaning,Transport
22/04/2021,Allstar Business Solutions,828166,2191.53,Motor Fuel,Green Waste Collection Service,Transport
22/04/2021,Allstar Business Solutions,828166,170.93,Motor Fuel,Housing Cleansing Round,Transport
22/04/2021,Allstar Business Solutions,828166,174.75,Motor Fuel,Litter Bins,Transport
22/04/2021,Allstar Business Solutions,828166,711.98,Motor Fuel,Materials Reclamation Facility,Transport
22/04/2021,Allstar Business Solutions,828166,3505.96,Motor Fuel,Other Street Sweeping,Transport
22/04/2021,Allstar Business Solutions,828166,2730.88,Motor Fuel,Parks And Playing Fields,Transport
22/04/2021,Allstar Business Solutions,828166,578.86,Motor Fuel,Parks Operational Overheads,Transport
22/04/2021,Allstar Business Solutions,828166,80.21,Motor Fuel,Property Assets - Builders,Transport
22/04/2021,Allstar Business Solutions,828166,45.83,Motor Fuel,Public Conveniences,Transport
22/04/2021,Allstar Business Solutions,828166,98.72,Motor Fuel,Ramm,Transport
22/04/2021,Allstar Business Solutions,828166,526.62,Motor Fuel,Reactive Team,Transport
22/04/2021,Allstar Business Solutions,828166,23.49,Motor Fuel,Recycling Management /Strategy,Transport
22/04/2021,Allstar Business Solutions,828166,629.99,Motor Fuel,Recycling Round,Transport
22/04/2021,Allstar Business Solutions,828166,11192.7,Motor Fuel,Refuse Collection,Transport
22/04/2021,Allstar Business Solutions,828166,109.17,Motor Fuel,Special Collections,Transport
22/04/2021,Allstar Business Solutions,828166,3382.85,Motor Fuel,Trade Refuse & Recycling,Transport
22/04/2021,Aquarius Solutions,829455,2635.2,Grants Issued,Arg - Business Support,Supplies & Services
22/04/2021,Aw Jenkinson Transport Ltd,826398,700,Comingled Haulage Out,Materials Reclamation Facility,Transport
22/04/2021,Baltimore Consulting Ltd,829094,1875,Temp.Contract-Agency Staff,New Build Site Investigations,Pay
22/04/2021,Barnfather Wire (Midlands) Ltd,824689,1900,Equipment Tools And Materials,Materials Reclamation Facility,Supplies & Services
22/04/2021,Benchmark (Exeter) Ltd,825761,5575,Consultants Fees,Social Housing Delivery,Supplies & Services
22/04/2021,Bloom Procurement Services,828667,8112.23,Consultants Fees,Planned Works,Supplies & Services
22/04/2021,Building Recruitment Co Ltd,829809,471.42,Temp.Contract-Agency Staff,Community Safety Projects,Pay
22/04/2021,Carrington West Ltd,825910,587.5,Consultants Fees,Planning,Supplies & Services
22/04/2021,Concept Staffing Ltd,829426,551.31,Temp.Contract-Agency Staff,Community Safety Projects,Pay
22/04/2021,Croft Surveyors,829799,760,Contract Payments,Adaptations,Supplies & Services
22/04/2021,Driver Hire Exeter Ltd,827177,547.51,Casuals Waged-Agency Staff,Waste Agency Costs,Pay
22/04/2021,Edf Energy Customers Ltd,828484,779.99,Electricity,Edf Electricity Suspense,Premises
22/04/2021,European Asbestos Services Ltd,829826,659.6,Asbestos Removal,Refuse Collection,Premises
22/04/2021,Exeter Arts Trading Services Ltd,829830,752.43,Electricity,Ramm,Premises
22/04/2021,Exeter Arts Trading Services Ltd,829830,1011.59,Gas,Ramm,Premises
22/04/2021,Exeter Arts Trading Services Ltd,829830,201.82,Water,Ramm,Premises
22/04/2021,Exeter Canal And Quay Trust,827149,1217.71,Commission,Canal,Supplies & Services
22/04/2021,First Class Builders Ltd,829472,23522,General Maintenance,Repairs To Void Properties,Premises
22/04/2021,Irrv,829044,1200,Subscriptions,Council Tax Collection,Supplies & Services
22/04/2021,James Andrews Recruitment Solutions Ltd,827407,648.44,Temp.Contract-Agency Staff,General Management,Pay
22/04/2021,James Andrews Recruitment Solutions Ltd,829698,249,Temp.Contract-Agency Staff,Planned Works,Pay
22/04/2021,James Andrews Recruitment Solutions Ltd,829698,373.5,Temp.Contract-Agency Staff,Reactive Repairs,Pay
22/04/2021,M A Vernon Ltd,829795,650,General Maintenance,Repairs To Void Properties,Premises
22/04/2021,M A Vernon Ltd,829797,450,General Maintenance,Repairs To Void Properties,Premises
22/04/2021,Malcolm Robertson,829462,697,Artist Fees,Liveable Garden City,Supplies & Services
22/04/2021,Mears Ltd,829789,1495.12,General Maintenance,General Maintenance,Premises
22/04/2021,Mears Ltd,829792,225.61,Mears - Communal Areas/Non-Ppp,General Maintenance,Premises
22/04/2021,Mears Ltd,829792,646.41,Mears -Ppp Repairs(Exclusions),General Maintenance,Premises
22/04/2021,Morgan Hunt Uk Ltd,821148,946.46,Temp.Contract-Agency Staff,Revenues Recovery,Pay
22/04/2021,Morrell Electrical Ltd,830068,1500,Grants Issued,Kickstart Payments & Receipts,Supplies & Services
22/04/2021,Mrs Debbie Grennan,829700,630,Solicitors And Legal Fees/Lics,Exeter Corn Exchange,Supplies & Services
22/04/2021,Mrs Debbie Grennan,829806,1265,Solicitors And Legal Fees/Lics,Exeter Corn Exchange,Supplies & Services
22/04/2021,Nicholas Rowell Haulage Ltd,827148,4200,Comingled Haulage Out,Materials Reclamation Facility,Transport
22/04/2021,Pickle Shack Ltd,830067,1500,Grants Issued,Kickstart Payments & Receipts,Supplies & Services
22/04/2021,Ppm South West Ltd,830066,1500,Grants Issued,Kickstart Payments & Receipts,Supplies & Services
22/04/2021,Scheidt & Bachmann (Uk) Ltd,829514,33811.59,Maintenance Of Equipment,Car Parks,Supplies & Services
22/04/2021,Source For Business T/A Sw Water Business,828151,1009.83,Water,Oakwood House,Premises
22/04/2021,Southern Electric,827913,698.51,Electricity,Commercial Properties,Premises
22/04/2021,Southern Electric,829821,985.9,Electricity,Commercial Properties,Premises
22/04/2021,Southern Electric,829822,670.59,Electricity,Commercial Properties,Premises
22/04/2021,Specialist Fleet Services Ltd,823525,2318,Fleet Supply & Maintenance,Fleet Contract Hire,Transport
22/04/2021,Specialist Fleet Services Ltd,823526,2318,Fleet Supply & Maintenance,Fleet Contract Hire,Transport
22/04/2021,Specialist Fleet Services Ltd,823539,685,Fleet Supply & Maintenance,Fleet Contract Hire,Transport
22/04/2021,Specialist Fleet Services Ltd,823540,685,Fleet Supply & Maintenance,Fleet Contract Hire,Transport
22/04/2021,Specialist Fleet Services Ltd,823548,685,Fleet Supply & Maintenance,Fleet Contract Hire,Transport
22/04/2021,Specialist Fleet Services Ltd,829027,3296.84,Routine Maintenance,Transport Management,Transport
22/04/2021,Specialist Fleet Services Ltd,829030,716.53,Fleet Supply & Maintenance,Fleet Contract Hire,Transport
22/04/2021,Specialist Fleet Services Ltd,829031,1204.98,Fleet Supply & Maintenance,Fleet Contract Hire,Transport
22/04/2021,Specialist Fleet Services Ltd,829034,2339.33,Fleet Supply & Maintenance,Fleet Contract Hire,Transport
22/04/2021,Specialist Fleet Services Ltd,829036,2339.33,Fleet Supply & Maintenance,Fleet Contract Hire,Transport
22/04/2021,Specialist Fleet Services Ltd,829038,810.7,Fleet Supply & Maintenance,Fleet Contract Hire,Transport
22/04/2021,Specialist Fleet Services Ltd,829039,691.3,Fleet Supply & Maintenance,Fleet Contract Hire,Transport
22/04/2021,Specialist Fleet Services Ltd,829040,482.46,Fleet Supply & Maintenance,Fleet Contract Hire,Transport
22/04/2021,Specialist Fleet Services Ltd,829041,691.3,Fleet Supply & Maintenance,Fleet Contract Hire,Transport
22/04/2021,Specialist Fleet Services Ltd,829042,691.3,Fleet Supply & Maintenance,Fleet Contract Hire,Transport
22/04/2021,Specialist Fleet Services Ltd,829043,691.3,Fleet Supply & Maintenance,Fleet Contract Hire,Transport
22/04/2021,Specialist Fleet Services Ltd,829051,691.3,Fleet Supply & Maintenance,Fleet Contract Hire,Transport
22/04/2021,Specialist Fleet Services Ltd,829052,751.4,Fleet Supply & Maintenance,Fleet Contract Hire,Transport
22/04/2021,Specialist Fleet Services Ltd,829055,488.45,Fleet Supply & Maintenance,Fleet Contract Hire,Transport
22/04/2021,Specialist Fleet Services Ltd,829056,598.77,Fleet Supply & Maintenance,Fleet Contract Hire,Transport
22/04/2021,Specialist Fleet Services Ltd,829057,895.33,Fleet Supply & Maintenance,Transport Management,Transport
22/04/2021,Specialist Fleet Services Ltd,829058,895.33,Fleet Supply & Maintenance,Fleet Contract Hire,Transport
22/04/2021,Specialist Fleet Services Ltd,829059,691.3,Fleet Supply & Maintenance,Fleet Contract Hire,Transport
22/04/2021,Specialist Fleet Services Ltd,829062,598.77,Fleet Supply & Maintenance,Fleet Contract Hire,Transport
22/04/2021,Specialist Fleet Services Ltd,829063,598.77,Fleet Supply & Maintenance,Fleet Contract Hire,Transport
22/04/2021,Specialist Fleet Services Ltd,829073,2213.78,Fleet Supply & Maintenance,Fleet Contract Hire,Transport
22/04/2021,Specialist Fleet Services Ltd,829077,618.55,Fleet Supply & Maintenance,Fleet Contract Hire,Transport
22/04/2021,Specialist Fleet Services Ltd,829080,626.51,Fleet Supply & Maintenance,Fleet Contract Hire,Transport
22/04/2021,Specialist Fleet Services Ltd,829089,1147.53,Fleet Supply & Maintenance,Fleet Contract Hire,Transport
22/04/2021,Suez Recycling & Recovery Ltd,826264,2762.6,Comingled Haulage Out,Materials & Goods For Resale,Transport
22/04/2021,Suez Recycling & Recovery Ltd,827410,2616.3,Comingled Haulage Out,Materials & Goods For Resale,Transport
22/04/2021,Trade Refuse & Salvage Handlers (Trash),826950,845.9,Paper Buy In,Materials & Goods For Resale,Supplies & Services
22/04/2021,Trump Engineering Ltd,826391,2802.06,Maintenance Of Equipment,Materials Reclamation Facility,Supplies & Services
22/04/2021,Trump Engineering Ltd,826405,590,Maintenance Of Equipment,Materials Reclamation Facility,Supplies & Services
22/04/2021,Venn Group Ltd,829423,101.15,Temp.Contract-Agency Staff,Business Regulation Team,Pay
22/04/2021,Venn Group Ltd,829423,101.15,Temp.Contract-Agency Staff,Environmental Quality Team,Pay
22/04/2021,Venn Group Ltd,829423,101.15,Temp.Contract-Agency Staff,Neighbourhood Team,Pay
22/04/2021,Venn Group Ltd,829423,101.15,Temp.Contract-Agency Staff,Premises Licensing,Pay
22/04/2021,Venn Group Ltd,829423,101.15,Temp.Contract-Agency Staff,Vehicles Licensing,Pay
22/04/2021,Wales Environmental Ltd T/A Drainology,829961,2467.6,Sub-Contractors,Oakwood House,Premises
23/04/2021,A1 Electrics,829504,989.84,Contract Payments,Electrical Central Heating,Supplies & Services
23/04/2021,A1 Electrics,829507,1490.39,Electrical Works - Domestic,Prog'D Elec Re-Wiring General,Supplies & Services
23/04/2021,Baltimore Consulting Ltd,829093,3125,Temp.Contract-Agency Staff,New Build Site Investigations,Pay
23/04/2021,Bloom Procurement Services,829959,2000,Contract Payments,Heavitree (Cob Wave Iii),Supplies & Services
23/04/2021,Carrington West Ltd,829432,562.5,Consultants Fees,Planning,Supplies & Services
23/04/2021,Clc Contractors Ltd,830167,1914,Asbestos Surveys,Asbestos,Premises
23/04/2021,Clc Contractors Ltd,830167,445,General Maintenance,Low Maint & Painting Flats,Premises
23/04/2021,Devon Commercial Stationers Ltd,829107,1364,Stationery,Electoral Registration,Supplies & Services
23/04/2021,Devon County Council,828100,3235.3,Devon County Council Consult.,Land Charges,Supplies & Services
23/04/2021,Dolphin Lifts South West,828505,1850,Grants Issued,Disabled Facilities Grants,Supplies & Services
23/04/2021,Edf Energy Customers Ltd,827856,1670.08,Electricity,Edf Electricity Suspense,Premises
23/04/2021,Edf Energy Customers Ltd,827859,6836.66,Electricity,Edf Electricity Suspense,Premises
23/04/2021,Edf Energy Customers Ltd,827861,474.82,Electricity,Edf Electricity Suspense,Premises
23/04/2021,Edf Energy Customers Ltd,827864,3867.41,Electricity,Edf Electricity Suspense,Premises
23/04/2021,Edf Energy Customers Ltd,827865,1620.56,Electricity,Edf Electricity Suspense,Premises
23/04/2021,Exeter Coachworks Ltd,827136,3561.39,Accident Repairs,Cleansing Overheads,Transport
23/04/2021,Exjet Services,829511,900,Aim Lease Requirements,Livestock/Matford Centre,Premises
23/04/2021,Faye Cole Hair,830336,6237,Closure Grnt No Rv (=<15k Rv),Additional Restrictions Grants,Supplies & Services
23/04/2021,H & S Transport Ltd,830087,952,Sub-Contractors,Land Drainage Water C - Assets,Premises
23/04/2021,Hmr & C - Xs0068276863,830406,3478.46,Excel & Longservice Awards,Human Resources,Pay
23/04/2021,James Andrews Recruitment Solutions Ltd,828307,511.2,Temp.Contract-Agency Staff,Premises Licensing,Pay
23/04/2021,James Andrews Recruitment Solutions Ltd,828307,766.8,Temp.Contract-Agency Staff,Vehicles Licensing,Pay
23/04/2021,Mark Dunn Ltd,830424,1075,Spend To Save,Housing Advice,Supplies & Services
23/04/2021,Masons Kings,825144,428.81,Reactive Repairs,Parks And Playing Fields,Transport
23/04/2021,Masons Kings,826479,895.47,Reactive Repairs,Cemeteries - Operational,Transport
23/04/2021,Masons Kings,826480,910.78,Reactive Repairs,Parks Operational Overheads,Transport
23/04/2021,Masons Kings,826507,862.41,Reactive Repairs,Parks And Playing Fields,Transport
23/04/2021,Mears Ltd,830058,808.58,Mears - Communal Areas/Non-Ppp,General Maintenance,Premises
23/04/2021,Mears Ltd,830058,31.6,Mears - Ppp Repairs,General Maintenance,Premises
23/04/2021,Mears Ltd,830058,84.25,Mears - Rechargeable Works,General Maintenance,Premises
23/04/2021,Mears Ltd,830058,962.95,Mears -Ppp Repairs(Exclusions),General Maintenance,Premises
23/04/2021,Mears Ltd,830059,2566.12,General Maintenance,Repairs To Void Properties,Premises
23/04/2021,Mears Ltd,830059,26156.08,Mears - Ppv Voids (Inc & Excl),Repairs To Void Properties,Premises
23/04/2021,Mears Ltd,830060,1401.42,Mears - Capital Response Costs,Adaptations,Premises
23/04/2021,Mears Ltd,830061,32.7,Blocks Of Flat Repairs,General Maintenance,Premises
23/04/2021,Mears Ltd,830061,1326.83,General Maintenance,General Maintenance,Premises
23/04/2021,"Newtown Community Association (Exeter, Devon)",830343,4201,Grants Rv < 15k,Additional Restrictions Grants,Supplies & Services
23/04/2021,REDACTED PERSONAL DATA,830335,5102,Closure Grnt No Rv (=<15k Rv),Additional Restrictions Grants,Supplies & Services
23/04/2021,REDACTED PERSONAL DATA,830337,5102,Closure Grnt No Rv (=<15k Rv),Additional Restrictions Grants,Supplies & Services
23/04/2021,Simon Bastone Associates Ltd,830057,600,Sub-Contractors,Farm Hill Wall Repairs,Premises
23/04/2021,Sky Platform Hire Ltd,828180,713,Other Expenses,Rhss & Welcome Back Funds,Supplies & Services
23/04/2021,Stonewater Ltd,827922,4713.6,Serviced Accommodation,Serviced Accommodation,Premises
23/04/2021,Strata Service Solutions Ltd,827829,2201.18,Payment To Strata,Recharges From Strata,Supplies & Services
23/04/2021,Strata Service Solutions Ltd,828438,4233.48,Payment To Strata,Mobile Device Chgs For Rechge,Supplies & Services
23/04/2021,Strata Service Solutions Ltd,830064,88974.3,Payment To Strata,Recharges From Strata,Supplies & Services
23/04/2021,The Oyster Partnership Ltd,829491,1862.5,Temp.Contract-Agency Staff,Rough Sleeper Co-Ordinator,Pay
23/04/2021,The Website And Marketing Company Limited,830338,6237,Closure Grnt No Rv (=<15k Rv),Additional Restrictions Grants,Supplies & Services
23/04/2021,Venn Group Ltd,825920,440,Temp.Contract-Agency Staff,Legal Services 3rd Party Work,Pay
23/04/2021,Wales Environmental Ltd T/A Drainology,829962,845,General Maintenance,General Maintenance,Premises
23/04/2021,Wise Employment,829841,570.6,Temp.Contract-Agency Staff,Community Safety Projects,Pay
23/04/2021,Wsp Uk Ltd,828350,819.2,Contract Payments,Leisure Complex - Build,Supplies & Services
26/04/2021,Apex Scaffolding Services (Exeter) Ltd,827585,1512.36,Aim Reactive Repairs,Property Maintenance,Premises
26/04/2021,Apex Scaffolding Services (Exeter) Ltd,827586,1080.57,Aim Lease Requirements,Miscellaneous Properties,Premises
26/04/2021,Apex Scaffolding Services (Exeter) Ltd,827587,677.58,Aim Reactive Repairs,Property Maintenance,Premises
26/04/2021,C & P Contracting Solutions Ltd,827903,1800,Consultants Fees,General Management,Supplies & Services
26/04/2021,Clc Contractors Ltd,830169,4671.88,General Maintenance,Low Maint & Painting Flats,Premises
26/04/2021,Clc Contractors Ltd,830169,2696.88,Re-Roofing Flats,Programmed Re-Roofing,Supplies & Services
26/04/2021,Clc Contractors Ltd,830382,19368.09,Contract Payments,Door Replacements,Supplies & Services
26/04/2021,Clc Contractors Ltd,830382,9304.56,General Maintenance,Low Maint & Painting Flats,Premises
26/04/2021,Clc Contractors Ltd,830382,75872.64,Re-Roofing Houses,Programmed Re-Roofing,Supplies & Services
26/04/2021,Clc Contractors Ltd,830382,20050.04,Contract Payments,Structural Repairs,Supplies & Services
26/04/2021,Clc Contractors Ltd,830382,40832.73,Contract Payments,Window Replacements,Supplies & Services
26/04/2021,Clc Contractors Ltd,830383,1163.64,General Maintenance,Low Maint & Painting Flats,Premises
26/04/2021,Clc Contractors Ltd,830383,15469.59,Re-Roofing Houses,Programmed Re-Roofing,Supplies & Services
26/04/2021,D G Electrical Services,828321,899.25,Aim Reactive Repairs,Property Maintenance,Premises
26/04/2021,D G Electrical Services,829495,5375.86,Aim Reactive Repairs,Property Maintenance,Premises
26/04/2021,Devon County Council,819561,35861.04,Miscellaneous Expenditure,Rapid Rehousing Pathway Fund,Supplies & Services
26/04/2021,Driver Hire Exeter Ltd,823228,675.25,Casuals Waged-Agency Staff,Oakwood House,Pay
26/04/2021,Edf Energy Customers Ltd,827854,10604.77,Electricity,Edf Electricity Suspense,Premises
26/04/2021,Edf Energy Customers Ltd,827858,3468.25,Electricity,Edf Electricity Suspense,Premises
26/04/2021,Enelco Ltd,830414,129968.29,Contract Payments,Laings Refurbishments,Supplies & Services
26/04/2021,First Class Builders Ltd,830381,5430,Bathroom Adaptations,Bathroom Replacements,Supplies & Services
26/04/2021,Great Western Hotel,830022,517.37,Other Expenses,Nsap,Supplies & Services
26/04/2021,I J Cannings & Son Limited,826728,62.24,Service Charges,Bradninch Place,Premises
26/04/2021,I J Cannings & Son Limited,826728,198.13,Aim Lease Requirements,Commercial Properties,Premises
26/04/2021,I J Cannings & Son Limited,826728,15.56,Sub-Contractors,Ecqt Suspense,Premises
26/04/2021,I J Cannings & Son Limited,826728,95.36,Aim Lease Requirements,Miscellaneous Properties,Premises
26/04/2021,I J Cannings & Son Limited,826728,1913.88,Pmf Compliance,Property Maintenance,Premises
26/04/2021,Integrated Water Services,827880,1889.93,Pmf Compliance,Property Maintenance,Premises
26/04/2021,James Andrews Recruitment Solutions Ltd,828308,263.52,Temp.Contract-Agency Staff,Planned Works,Pay
26/04/2021,James Andrews Recruitment Solutions Ltd,828308,395.29,Temp.Contract-Agency Staff,Reactive Repairs,Pay
26/04/2021,Kendall Kingscott Ltd,830415,9200,Contract Payments,Laings Refurbishments,Supplies & Services
26/04/2021,Kier Construction Ltd,830746,189820.23,Contract Payments,Leisure Complex - Build,Supplies & Services
26/04/2021,Livewest Homes Ltd (Formerly Liverty),829459,11243.84,Serviced Accommodation,Serviced Accommodation,Premises
26/04/2021,Mercury Construction (South West) Ltd,829521,7267.63,Decoration / Alterations,Arg - Business Support,Premises
26/04/2021,Ministry Of Play,825764,5742.86,Sub-Contractors,Childrens Play Areas,Premises
26/04/2021,Mitie Property Services,826261,1820,Cleaning Materials,Cctv Control Room,Premises
26/04/2021,Orona,827372,97.08,Service Charges,Bradninch Place,Premises
26/04/2021,Orona,827372,731.87,Rechargeable Repairs,Commercial Properties,Premises
26/04/2021,Orona,827372,1231.99,Aim Reactive Repairs,Property Maintenance,Premises
26/04/2021,Orona,827372,352.4,Aim Service & Maintenance,Property Maintenance,Premises
26/04/2021,Philip Steele Building Equipment Ltd,827882,1006.07,Aim Lease Requirements,Miscellaneous Properties,Premises
26/04/2021,Propoint Southwest Ltd,830387,3440,General Maintenance,Repairs To Void Properties,Premises
26/04/2021,Purchase Power,828164,3039,Stationery,Mail,Supplies & Services
26/04/2021,Ruddlesden Geotechnical Ltd,830413,1100,Consultants Fees,Social Housing Delivery,Supplies & Services
26/04/2021,Shield Environmental Services,827345,820,Property Maintenance Fund,Commercial Properties,Premises
26/04/2021,Single Ply Structures Ltd,827373,2108,Aim Lease Requirements,Commercial Properties,Premises
26/04/2021,Stq Vantage,826557,835,Pmf Compliance,Property Maintenance,Premises
26/04/2021,Telstar Guest House Ltd,829457,2609.52,Bed And Breakfast,Bed And Breakfast,Premises
26/04/2021,The Housing Forum,828503,750,Staff Training,General Management,Pay
26/04/2021,Uk Bride T/A Whitespace Publishers Ltd,829526,1342,Marketing,Communications & Marketing,Supplies & Services
26/04/2021,Whistl Uk Ltd,827918,535.57,Data Line Rental,Mail,Supplies & Services
27/04/2021,Boothbook Limited,831039,2302,Grants Rv < 15k,Additional Restrictions Grants,Supplies & Services
27/04/2021,Chubb Fire & Security Ltd,828665,517.65,Planned Maintenance,Ramm,Premises
27/04/2021,Clc Contractors Ltd,830775,6456.03,Contract Payments,Door Replacements,Supplies & Services
27/04/2021,Clc Contractors Ltd,830775,6701.38,General Maintenance,Low Maint & Painting Flats,Premises
27/04/2021,Clc Contractors Ltd,830775,61889.73,Re-Roofing Houses,Programmed Re-Roofing,Supplies & Services
27/04/2021,Clc Contractors Ltd,830775,20207.81,Contract Payments,Structural Repairs,Supplies & Services
27/04/2021,Clc Contractors Ltd,830775,13059.96,Contract Payments,Window Replacements,Supplies & Services
27/04/2021,Clc Contractors Ltd,830795,224.25,Asbestos Removal,Asbestos,Premises
27/04/2021,Clc Contractors Ltd,830795,1312.5,Contract Payments,Fire Risk Assessment Works,Supplies & Services
27/04/2021,Clc Contractors Ltd,830922,6818.35,Asbestos Removal,Asbestos,Premises
27/04/2021,Clc Contractors Ltd,830922,4280.82,Communal Areas,Internal Decoration Prog,Premises
27/04/2021,Clc Contractors Ltd,830922,25315.7,General Maintenance,Low Maint & Painting Flats,Premises
27/04/2021,Clc Contractors Ltd,830922,22705.86,Contract Payments,Window Replacements,Supplies & Services
27/04/2021,Concept Staffing Ltd,828066,2616.02,Casuals Waged-Agency Staff,Waste Agency Costs,Pay
27/04/2021,Edf Energy Customers Ltd,827857,12617.97,Electricity,Ramm,Premises
27/04/2021,Edf Energy Customers Ltd,827857,568.05,Electricity,"The Ark Museum Store, Exton Rd",Premises
27/04/2021,European Asbestos Services Ltd,830777,2068,Asbestos Removal,Asbestos,Premises
27/04/2021,European Asbestos Services Ltd,830779,601,Asbestos Removal,Asbestos,Premises
27/04/2021,European Asbestos Services Ltd,830787,705.6,Asbestos Removal,Asbestos,Premises
27/04/2021,European Asbestos Services Ltd,830789,806.4,Asbestos Removal,Asbestos,Premises
27/04/2021,European Asbestos Services Ltd,830796,1242.6,Asbestos Removal,Asbestos,Premises
27/04/2021,European Asbestos Services Ltd,830797,748.8,Asbestos Removal,Asbestos,Premises
27/04/2021,European Asbestos Services Ltd,830798,554.4,Asbestos Removal,Asbestos,Premises
27/04/2021,European Asbestos Services Ltd,830800,907.2,Asbestos Removal,Asbestos,Premises
27/04/2021,First Class Builders Ltd,830794,1027.75,Contract Payments,Adaptations,Supplies & Services
27/04/2021,First Class Builders Ltd,830918,3480,Bathroom Adaptations,Bathroom Replacements,Supplies & Services
27/04/2021,First Class Builders Ltd,830919,5295,Bathroom Adaptations,Bathroom Replacements,Supplies & Services
27/04/2021,Liberty Gas Group Ltd,829480,24676.99,Gas & Central Heating,Service Contracts,Premises
27/04/2021,Liberty Gas Group Ltd,829838,91219.92,Contract Payments,Boiler Replacement Programme,Supplies & Services
27/04/2021,Liberty Gas Group Ltd,830802,19949.46,Gas & Central Heating,Service Contracts,Premises
27/04/2021,Liberty Gas Group Ltd,830804,5427.93,Gas Equip Replacement,General Maintenance,Premises
27/04/2021,Mears Ltd,830781,1451.39,Mears - Communal Areas/Non-Ppp,General Maintenance,Premises
27/04/2021,Mears Ltd,830781,1971.91,Mears -Ppp Repairs(Exclusions),General Maintenance,Premises
27/04/2021,Reach Publishing Services,828315,479.52,Public Notices,Planning,Supplies & Services
27/04/2021,Recruitment Solutions (Sw) Ltd,829272,873.28,Casuals Waged-Agency Staff,Other Street Sweeping,Pay
27/04/2021,Recruitment Solutions (Sw) Ltd,829272,426.83,Casuals Waged-Agency Staff,Public Conveniences,Pay
27/04/2021,The Best Connection Group Ltd,824354,505.05,Casuals Waged-Agency Staff,Childrens Play Areas,Pay
27/04/2021,The Best Connection Group Ltd,824354,505.05,Casuals Waged-Agency Staff,Other Street Sweeping,Pay
27/04/2021,The Best Connection Group Ltd,824354,1597.05,Casuals Waged-Agency Staff,Parks And Playing Fields,Pay
27/04/2021,University Of Exeter,828763,475,Project Work,Museum Npo,Supplies & Services
27/04/2021,W B Employment Ltd,824953,624.15,Casuals Waged-Agency Staff,Other Street Sweeping,Pay
27/04/2021,W B Employment Ltd,824953,700.94,Casuals Waged-Agency Staff,Parks And Playing Fields,Pay
28/04/2021,Aw Jenkinson Transport Ltd,828320,700,Comingled Haulage Out,Materials Reclamation Facility,Transport
28/04/2021,Aw Jenkinson Transport Ltd,829839,700,Comingled Haulage Out,Materials Reclamation Facility,Transport
28/04/2021,Bridge Civil Engineering,826965,1785,Other Expenses,Rhss & Welcome Back Funds,Supplies & Services
28/04/2021,Clc Contractors Ltd,831048,10142.05,Contract Payments,Door Replacements,Supplies & Services
28/04/2021,Clc Contractors Ltd,831048,12492.01,General Maintenance,Low Maint & Painting Flats,Premises
28/04/2021,Clc Contractors Ltd,831048,21653.21,Re-Roofing Houses,Programmed Re-Roofing,Supplies & Services
28/04/2021,Clc Contractors Ltd,831048,23349.79,Contract Payments,Structural Repairs,Supplies & Services
28/04/2021,Clc Contractors Ltd,831048,20429.31,Contract Payments,Window Replacements,Supplies & Services
28/04/2021,Concept Staffing Ltd,826954,586.21,Casuals Waged-Agency Staff,Other Street Sweeping,Pay
28/04/2021,Concept Staffing Ltd,826955,457.69,Casuals Waged-Agency Staff,Childrens Play Areas,Pay
28/04/2021,Concept Staffing Ltd,826956,505.05,Casuals Waged-Agency Staff,Other Street Sweeping,Pay
28/04/2021,Corona Energy,827076,1419.97,Gas,Riverside Leisure Centre,Premises
28/04/2021,Corona Energy,827077,1506.92,Gas,Isca Centre,Premises
28/04/2021,Corona Energy,827078,2267.98,Gas,Northbrook Pool,Premises
28/04/2021,Corona Energy,827080,549.14,Gas,Wonford Sports Centre,Premises
28/04/2021,Corona Energy,827081,3618.95,Gas,Pyramids Swim & Leisure Centre,Premises
28/04/2021,Corona Energy,827172,1169.8,Gas,Riverside Leisure Centre,Premises
28/04/2021,Corona Energy,827173,1321.63,Gas,Isca Centre,Premises
28/04/2021,Corona Energy,827174,1686.19,Gas,Northbrook Pool,Premises
28/04/2021,Gae Smith Holdings Ltd T/A Casepak,828424,5829.16,Processing Comingled Materials,Materials Reclamation Facility,Supplies & Services
28/04/2021,Matching Staff Solutions,827870,600.76,Casuals Waged-Agency Staff,Other Street Sweeping,Pay
28/04/2021,Mears Ltd,831054,1990.01,General Maintenance,General Maintenance,Premises
28/04/2021,Mears Ltd,831055,1004.27,Mears - Capital Response Costs,Adaptations,Premises
28/04/2021,Mears Ltd,831057,1644.2,General Maintenance,General Maintenance,Premises
28/04/2021,Mears Ltd,831057,736.75,Mears - Communal Areas/Non-Ppp,General Maintenance,Premises
28/04/2021,Mears Ltd,831057,285.92,Mears - Rechargeable Works,General Maintenance,Premises
28/04/2021,Mears Ltd,831057,1760.7,Mears -Ppp Repairs(Exclusions),General Maintenance,Premises
28/04/2021,Skinner Construction Ltd,829829,902.5,General Maintenance,General Maintenance,Premises
28/04/2021,The Best Connection Group Ltd,827887,409.5,Casuals Waged-Agency Staff,Childrens Play Areas,Pay
28/04/2021,The Best Connection Group Ltd,827887,409.5,Casuals Waged-Agency Staff,Other Street Sweeping,Pay
28/04/2021,The Best Connection Group Ltd,827887,873.6,Casuals Waged-Agency Staff,Parks And Playing Fields,Pay
28/04/2021,The Best Connection Group Ltd,827905,2427.1,Casuals Waged-Agency Staff,Materials Reclamation Facility,Pay
28/04/2021,The Best Connection Group Ltd,828435,1994.84,Casuals Waged-Agency Staff,Materials Reclamation Facility,Pay
28/04/2021,The Best Connection Group Ltd,829466,1454.16,Casuals Waged-Agency Staff,Materials Reclamation Facility,Pay
28/04/2021,The Best Connection Group Ltd,829516,1975.24,Casuals Waged-Agency Staff,Materials Reclamation Facility,Pay
28/04/2021,W B Employment Ltd,827232,560.7,Casuals Waged-Agency Staff,Other Street Sweeping,Pay
28/04/2021,W B Employment Ltd,827232,427.2,Casuals Waged-Agency Staff,Parks And Playing Fields,Pay
28/04/2021,Wise Employment,828359,417.88,Casuals Waged-Agency Staff,Parks And Playing Fields,Pay
28/04/2021,Wsp Uk Ltd,830069,614.4,Contract Payments,Leisure Complex - Build,Supplies & Services
29/04/2021,Acs Ltd (Airey Consultancy Services Ltd),828566,800,Grants Issued,Nndr Collection,Supplies & Services
29/04/2021,Advanced Business Solutions,827126,2550,Contract Payments,Finance System Upgrade,Supplies & Services
29/04/2021,Bam Construction Ltd - Site Solutions,826554,2100,"Clothing, Laundry, & Uniforms",Materials Reclamation Facility,Supplies & Services
29/04/2021,Building Recruitment Co Ltd,831315,471.42,Temp.Contract-Agency Staff,Community Safety Projects,Pay
29/04/2021,Claire Russell,828304,1581.23,Rents,Premises,Premises
29/04/2021,Clc Contractors Ltd,831293,12989.25,General Maintenance,Low Maint & Painting Flats,Premises
29/04/2021,Concept Staffing Ltd,829810,2970.51,Casuals Waged-Agency Staff,Waste Agency Costs,Pay
29/04/2021,Concept Staffing Ltd,831063,431.46,Temp.Contract-Agency Staff,Community Safety Projects,Pay
29/04/2021,Corona Energy,827061,1575.82,Gas,Riverside Leisure Centre,Premises
29/04/2021,Corona Energy,827062,1780.29,Gas,Northbrook Pool,Premises
29/04/2021,Corona Energy,827063,1611.08,Gas,Wonford Sports Centre,Premises
29/04/2021,Corona Energy,827071,752.07,Gas,Isca Centre,Premises
29/04/2021,Corona Energy,827074,4547.03,Gas,Pyramids Swim & Leisure Centre,Premises
29/04/2021,Driver Hire Exeter Ltd,829827,675.25,Casuals Waged-Agency Staff,Waste Agency Costs,Pay
29/04/2021,Edf Energy Customers Ltd,828432,3643.88,Electricity,Edf Electricity Suspense,Premises
29/04/2021,Edf Energy Customers Ltd,828433,8087.91,Electricity,Edf Electricity Suspense,Premises
29/04/2021,Environment Agency,827914,4585.9,Licences,Materials Reclamation Facility,Supplies & Services
29/04/2021,European Asbestos Services Ltd,831404,480,Asbestos Removal,Asbestos,Premises
29/04/2021,European Asbestos Services Ltd,831405,809,Asbestos Removal,Asbestos,Premises
29/04/2021,Exeter & District Funeral Service,829951,1013,Burial Expenses-Section 46,Cemeteries,Supplies & Services
29/04/2021,Exeter & District Funeral Service,829952,1013,Burial Expenses-Section 46,Cemeteries,Supplies & Services
29/04/2021,Exjet Services,830044,440,Sub-Contractors,Exeter Arena Skatepark,Premises
29/04/2021,Future Industrial Services Ltd,829958,1719.31,Sub-Contractors,Oakwood House,Premises
29/04/2021,Gap Personnel,829473,499.92,Casuals Waged-Agency Staff,Waste Agency Costs,Pay
29/04/2021,Gap Personnel,829949,457.32,Casuals Waged-Agency Staff,Waste Agency Costs,Pay
29/04/2021,Glendale Countryside Ltd,831322,1506.82,General Maintenance,General Maintenance,Premises
29/04/2021,Greensquare Estates Ltd,826571,597.06,Service Charges,Tenancy Services,Premises
29/04/2021,Intercard Ltd,827598,449.35,Stationery,Income Recovery,Supplies & Services
29/04/2021,Mears Ltd,831278,712.62,Mears - Communal Areas/Non-Ppp,General Maintenance,Premises
29/04/2021,Mears Ltd,831278,1012.66,Mears -Ppp Repairs(Exclusions),General Maintenance,Premises
29/04/2021,Mears Ltd,831278,66.98,Mears -Psl Properties(Non-Ppp),General Maintenance,Premises
29/04/2021,Pennington Choices Ltd,831290,695,Fire Risk Assessment,Northbrook Pool,Premises
29/04/2021,Propoint Southwest Ltd,831292,5818,General Maintenance,General Maintenance,Premises
29/04/2021,Propoint Southwest Ltd,831308,2040,General Maintenance,General Maintenance,Premises
29/04/2021,Rose Removals & Storage,827350,711.68,Tenants Removal And Legal Exp,Lettings & Home Ownership,Supplies & Services
29/04/2021,Rose Removals & Storage,827364,556,Tenants Removal And Legal Exp,Lettings & Home Ownership,Supplies & Services
29/04/2021,Source For Business T/A Sw Water Business,828157,1455.23,Electricity,Tenancy Services,Premises
29/04/2021,Specialist Fleet Services Ltd,823576,612.92,Fleet Supply & Maintenance,Fleet Contract Hire,Transport
29/04/2021,Specialist Fleet Services Ltd,829028,2218.22,Fleet Supply & Maintenance,Fleet Contract Hire,Transport
29/04/2021,Specialist Fleet Services Ltd,829064,1437.7,Fleet Supply & Maintenance,Fleet Contract Hire,Transport
29/04/2021,Specialist Fleet Services Ltd,829065,641.74,Fleet Supply & Maintenance,Transport Management,Transport
29/04/2021,Specialist Fleet Services Ltd,829066,895.33,Fleet Supply & Maintenance,Fleet Contract Hire,Transport
29/04/2021,Specialist Fleet Services Ltd,829067,658.8,Fleet Supply & Maintenance,Fleet Contract Hire,Transport
29/04/2021,Specialist Fleet Services Ltd,829069,601.36,Fleet Supply & Maintenance,Fleet Contract Hire,Transport
29/04/2021,Specialist Fleet Services Ltd,829070,4124.88,Fleet Supply & Maintenance,Fleet Contract Hire,Transport
29/04/2021,Specialist Fleet Services Ltd,829072,4124.88,Fleet Supply & Maintenance,Fleet Contract Hire,Transport
29/04/2021,Specialist Fleet Services Ltd,829074,4124.88,Fleet Supply & Maintenance,Fleet Contract Hire,Transport
29/04/2021,Specialist Fleet Services Ltd,829075,4124.88,Fleet Supply & Maintenance,Fleet Contract Hire,Transport
29/04/2021,Specialist Fleet Services Ltd,829076,4124.88,Other Expenses,Fleet Contract Hire,Supplies & Services
29/04/2021,Specialist Fleet Services Ltd,829078,3861.65,Fleet Supply & Maintenance,Fleet Contract Hire,Transport
29/04/2021,Specialist Fleet Services Ltd,829079,3861.65,Fleet Supply & Maintenance,Fleet Contract Hire,Transport
29/04/2021,Specialist Fleet Services Ltd,829081,685,Fleet Supply & Maintenance,Fleet Contract Hire,Transport
29/04/2021,Specialist Fleet Services Ltd,829085,487,Fleet Supply & Maintenance,Fleet Contract Hire,Transport
29/04/2021,Specialist Fleet Services Ltd,829088,511.33,Fleet Supply & Maintenance,Fleet Contract Hire,Transport
29/04/2021,Specialist Fleet Services Ltd,829097,511.33,Fleet Supply & Maintenance,Fleet Contract Hire,Transport
29/04/2021,Specialist Fleet Services Ltd,829098,511.33,Fleet Supply & Maintenance,Fleet Contract Hire,Transport
29/04/2021,Specialist Fleet Services Ltd,829099,504.77,Fleet Supply & Maintenance,Fleet Contract Hire,Transport
29/04/2021,Specialist Fleet Services Ltd,829110,473.75,Fleet Supply & Maintenance,Fleet Contract Hire,Transport
29/04/2021,Specialist Fleet Services Ltd,829111,685,Fleet Supply & Maintenance,Fleet Contract Hire,Transport
29/04/2021,Specialist Fleet Services Ltd,829113,766.58,Fleet Supply & Maintenance,Fleet Contract Hire,Transport
29/04/2021,Specialist Fleet Services Ltd,829114,766.58,Fleet Supply & Maintenance,Fleet Contract Hire,Transport
29/04/2021,Specialist Fleet Services Ltd,829115,766.58,Fleet Supply & Maintenance,Fleet Contract Hire,Transport
29/04/2021,Specialist Fleet Services Ltd,829116,895,Fleet Supply & Maintenance,Fleet Contract Hire,Transport
29/04/2021,Specialist Fleet Services Ltd,829117,1147.53,Fleet Supply & Maintenance,Fleet Contract Hire,Transport
29/04/2021,Specialist Fleet Services Ltd,829118,484.33,Fleet Supply & Maintenance,Fleet Contract Hire,Transport
29/04/2021,Specialist Fleet Services Ltd,829119,626.51,Fleet Supply & Maintenance,Fleet Contract Hire,Transport
29/04/2021,Specialist Fleet Services Ltd,830793,20337.74,Fleet Supply & Maintenance,Fleet Contract Hire,Transport
29/04/2021,Specialist Fleet Services Ltd,831062,511.33,Repairs,Transport Management,Transport
29/04/2021,The Oyster Partnership Ltd,829957,3171.25,Temp.Contract-Agency Staff,Accountancy Services,Pay
29/04/2021,Trump Engineering Ltd,826272,1013,Maintenance Of Equipment,Materials Reclamation Facility,Supplies & Services
29/04/2021,Venn Group Ltd,829424,102,Temp.Contract-Agency Staff,Business Regulation Team,Pay
29/04/2021,Venn Group Ltd,829424,102,Temp.Contract-Agency Staff,Environmental Quality Team,Pay
29/04/2021,Venn Group Ltd,829424,102,Temp.Contract-Agency Staff,Neighbourhood Team,Pay
29/04/2021,Venn Group Ltd,829424,102,Temp.Contract-Agency Staff,Premises Licensing,Pay
29/04/2021,Venn Group Ltd,829424,102,Temp.Contract-Agency Staff,Vehicles Licensing,Pay
29/04/2021,Venn Group Ltd,831065,127.5,Temp.Contract-Agency Staff,Contaminated Land Survey,Pay
29/04/2021,Venn Group Ltd,831065,127.5,Temp.Contract-Agency Staff,Environmental Quality Team,Pay
29/04/2021,Venn Group Ltd,831065,127.5,Temp.Contract-Agency Staff,Neighbourhood Team,Pay
29/04/2021,Venn Group Ltd,831065,127.5,Temp.Contract-Agency Staff,Premises Licensing,Pay
29/04/2021,Venn Group Ltd,831065,127.5,Temp.Contract-Agency Staff,Vehicles Licensing,Pay
29/04/2021,Wise Employment,831402,570.6,Temp.Contract-Agency Staff,Community Safety Projects,Pay
30/04/2021,Apple Central Taxis Ltd,830390,440,Other Expenses,Rapid Rehousing Pathway Fund,Supplies & Services
30/04/2021,Baltimore Consulting Ltd,829798,2250,Consultants Fees,Planning,Supplies & Services
30/04/2021,Berry Recruitment,829444,494.69,Casuals Waged-Agency Staff,Waste Agency Costs,Pay
30/04/2021,Devon & Dorset Bathrooms,830158,2640,Grants Issued,Disabled Facilities Grants,Supplies & Services
30/04/2021,Devon Norse Ltd,828734,536.64,Cleaning,Cctv Control Room,Premises
30/04/2021,Dickens Showrooms Ltd,830420,603.6,Other Expenses,Individual Budgets,Supplies & Services
30/04/2021,District Councils Network,830174,1970,Subscriptions,Democratic Costs,Supplies & Services
30/04/2021,Dolphin Lifts South West,830170,2119,Grants Issued,Disabled Facilities Grants,Supplies & Services
30/04/2021,Dolphin Lifts South West,830171,4938,Grants Issued,Disabled Facilities Grants,Supplies & Services
30/04/2021,Dolphin Lifts South West,830172,1899,Grants Issued,Disabled Facilities Grants,Supplies & Services
30/04/2021,Dolphin Lifts South West,830173,2970,Grants Issued,Disabled Facilities Grants,Supplies & Services
30/04/2021,European Asbestos Services Ltd,830799,1141.8,Asbestos Removal,Asbestos,Premises
30/04/2021,European Asbestos Services Ltd,831507,907.2,Asbestos Removal,Asbestos,Premises
30/04/2021,European Asbestos Services Ltd,831508,1351,Asbestos Removal,Asbestos,Premises
30/04/2021,European Asbestos Services Ltd,831510,846.4,Asbestos Removal,Asbestos,Premises
30/04/2021,Inexeter Ltd,829477,3174.6,Contract Payments,Exeter Bid Company,Supplies & Services
30/04/2021,Inexeter Ltd,829479,56260.99,Contract Payments,Exeter Bid Company - From 2020,Supplies & Services
30/04/2021,Integrated Water Services,831398,649.6,Planned Maintenance,Ramm,Premises
30/04/2021,James Andrews Recruitment Solutions Ltd,829696,547.2,Temp.Contract-Agency Staff,Premises Licensing,Pay
30/04/2021,James Andrews Recruitment Solutions Ltd,829696,820.8,Temp.Contract-Agency Staff,Vehicles Licensing,Pay
30/04/2021,James Andrews Recruitment Solutions Ltd,829697,311.25,Temp.Contract-Agency Staff,Planned Works,Pay
30/04/2021,James Andrews Recruitment Solutions Ltd,829697,466.88,Temp.Contract-Agency Staff,Reactive Repairs,Pay
30/04/2021,Les Mills Fitness Uk Ltd,829443,545,Licences,Riverside Leisure Centre,Supplies & Services
30/04/2021,Local Government Association,828664,10872.18,Subscriptions,Democratic Costs,Supplies & Services
30/04/2021,Mahmood Hameed,831713,390,Spend To Save,Housing Access,Supplies & Services
30/04/2021,Mahmood Hameed,831713,390,Spend To Save,Housing Advice,Supplies & Services
30/04/2021,Mears Ltd,830767,70.07,Contract Payments,Fire Risk Assessment Works,Supplies & Services
30/04/2021,Mears Ltd,830767,572.4,Mears - Communal Areas/Non-Ppp,General Maintenance,Premises
30/04/2021,Mears Ltd,830767,4384.71,Mears -Ppp Repairs(Exclusions),General Maintenance,Premises
30/04/2021,Mears Ltd,831513,1451.18,Mears - Communal Areas/Non-Ppp,General Maintenance,Premises
30/04/2021,Mears Ltd,831513,1515.46,Mears -Ppp Repairs(Exclusions),General Maintenance,Premises
30/04/2021,Nute Plumbing Services Ltd,831512,2980,General Maintenance,General Maintenance,Premises
30/04/2021,Rose Removals & Storage,830065,683.88,Tenants Removal And Legal Exp,Lettings & Home Ownership,Supplies & Services
30/04/2021,Rose Removals & Storage,830075,467.04,Tenants Removal And Legal Exp,Lettings & Home Ownership,Supplies & Services
30/04/2021,Rose Removals & Storage,830076,661.64,Tenants Removal And Legal Exp,Lettings & Home Ownership,Supplies & Services
30/04/2021,Service Gym,829047,500,General Maintenance,Riverside Leisure Centre,Premises
30/04/2021,Specialist Fleet Services Ltd,829032,3901.38,Fleet Supply & Maintenance,Fleet Contract Hire,Transport
30/04/2021,Specialist Fleet Services Ltd,829035,3901.38,Fleet Supply & Maintenance,Fleet Contract Hire,Transport
30/04/2021,Specialist Fleet Services Ltd,829053,647.13,Fleet Supply & Maintenance,Fleet Contract Hire,Transport
30/04/2021,Specialist Fleet Services Ltd,829054,647.13,Fleet Supply & Maintenance,Fleet Contract Hire,Transport
30/04/2021,Specialist Fleet Services Ltd,829084,1169.81,Fleet Supply & Maintenance,Fleet Contract Hire,Transport
30/04/2021,Stagecoach Services Ltd,829456,2413.8,Public Transport,Green Travel Plan,Transport
30/04/2021,Stagecoach Services Ltd,829812,1810.35,Public Transport,Green Travel Plan,Transport
30/04/2021,The Oyster Partnership Ltd,831213,937.5,Temp.Contract-Agency Staff,Rough Sleeper Co-Ordinator,Pay
30/04/2021,Therm-Eco Ewi Ltd,829090,2000,Grants Issued,Warm Up Exeter,Supplies & Services
30/04/2021,Therm-Eco Ewi Ltd,829091,2000,Grants Issued,Warm Up Exeter,Supplies & Services
30/04/2021,Wemco Ltd,830738,1671.72,Planned Maintenance,Ramm,Premises
30/04/2021,Wemco Ltd,830739,1142.32,Planned Maintenance,Ramm,Premises
30/04/2021,Whistl Uk Ltd,829510,510.63,Data Line Rental,Mail,Supplies & Services
04/05/2021,1st Topsham Sea Scout Group,826930,500,Grants Issued,Ward Grants,Supplies & Services
04/05/2021,Avery Weigh-Tronix,829046,2355.65,Maintenance Of Equipment,Materials Reclamation Facility,Supplies & Services
04/05/2021,Berry Recruitment,827881,421.16,Casuals Waged-Agency Staff,Other Street Sweeping,Pay
04/05/2021,C & P Contracting Solutions Ltd,829450,2250,Consultants Fees,General Management,Supplies & Services
04/05/2021,Chubb Fire & Security Ltd,829262,450,Cctv Camera Maintenance,Riverside Leisure Centre,Supplies & Services
04/05/2021,Chubb Fire & Security Ltd,829264,1075.25,Central Alarm Service,Riverside Leisure Centre,Premises
04/05/2021,Concept Staffing Ltd,829499,575.79,Casuals Waged-Agency Staff,Other Street Sweeping,Pay
04/05/2021,Contemporary Art Society,831501,1700,Museum - Temp Exhibitions,Museum Npo,Supplies & Services
04/05/2021,European Asbestos Services Ltd,831734,480,Asbestos Removal,Asbestos,Premises
04/05/2021,Exeter City Living,827902,3600,Contract Payments,Wonford Health & Wellbeing Hub,Supplies & Services
04/05/2021,Exeter Ymca Community Projects,827574,500,Grants Issued,Ward Grants,Supplies & Services
04/05/2021,I J Cannings & Son Limited,828354,1733.05,Aim Reactive Repairs,Property Maintenance,Premises
04/05/2021,Integrated Water Services,824799,2104.08,Pmf Compliance,Property Maintenance,Premises
04/05/2021,Integrated Water Services,824800,2062.67,Pmf Compliance,Property Maintenance,Premises
04/05/2021,Integrated Water Services,824801,2089.87,Pmf Compliance,Property Maintenance,Premises
04/05/2021,Ks Engineering,828779,565.16,Aim Lease Requirements,Miscellaneous Properties,Premises
04/05/2021,Liberty Gas Group Ltd,830803,2266.35,Gas & Central Heating,Service Contracts,Premises
04/05/2021,Propoint Southwest Ltd,831737,2150,General Maintenance,General Maintenance,Premises
04/05/2021,Recruitment Solutions (Sw) Ltd,827359,1936.34,Casuals Waged-Agency Staff,Materials Reclamation Facility,Pay
04/05/2021,REDACTED PERSONAL DATA,829835,600,Exclusive Rights Of Burial,Cemeteries,Income
04/05/2021,Schneider Electric Ltd,827602,2561.67,Aim Reactive Repairs,Property Maintenance,Premises
04/05/2021,South West Compactor Services,828365,517.65,Maintenance Of Equipment,Materials Reclamation Facility,Supplies & Services
04/05/2021,St Petrocks (Exeter) Ltd,826580,500,Grants Issued,Ward Grants,Supplies & Services
04/05/2021,Strata Service Solutions Ltd,830423,2973.3,Payment To Strata,Recharges From Strata,Supplies & Services
04/05/2021,Suez Recycling & Recovery Ltd,829503,1176.1,Comingled Haulage Out,Materials & Goods For Resale,Transport
04/05/2021,The Best Connection Group Ltd,826923,505.05,Casuals Waged-Agency Staff,Other Street Sweeping,Pay
04/05/2021,The Best Connection Group Ltd,826923,737.1,Casuals Waged-Agency Staff,Parks And Playing Fields,Pay
04/05/2021,The Best Connection Group Ltd,829467,307.13,Casuals Waged-Agency Staff,Childrens Play Areas,Pay
04/05/2021,The Best Connection Group Ltd,829467,402.68,Casuals Waged-Agency Staff,Other Street Sweeping,Pay
04/05/2021,The Best Connection Group Ltd,829467,846.3,Casuals Waged-Agency Staff,Parks And Playing Fields,Pay
04/05/2021,W B Employment Ltd,827863,1939.2,Casuals Waged-Agency Staff,Childrens Play Areas,Pay
04/05/2021,W B Employment Ltd,829825,720.98,Casuals Waged-Agency Staff,Other Street Sweeping,Pay
04/05/2021,W B Employment Ltd,829825,520.65,Casuals Waged-Agency Staff,Parks And Playing Fields,Pay
04/05/2021,W B Employment Ltd,829825,280.42,Casuals Waged-Agency Staff,Public Conveniences,Pay
04/05/2021,W B Employment Ltd,829954,420.53,Casuals Waged-Agency Staff,Other Street Sweeping,Pay
04/05/2021,W B Employment Ltd,829954,413.85,Casuals Waged-Agency Staff,Parks And Playing Fields,Pay
04/05/2021,Wise Employment,826383,525.72,Casuals Waged-Agency Staff,Parks And Playing Fields,Pay
04/05/2021,Wise Employment,829840,525.72,Casuals Waged-Agency Staff,Parks And Playing Fields,Pay
04/05/2021,Wonford Community & Learning Centre,828495,500,Grants Issued,Covid 19 Community Initiatives,Supplies & Services
05/05/2021,Bloom Procurement Services,831723,1785,Project Work,Riverside,Supplies & Services
05/05/2021,Clc Contractors Ltd,830923,25540.46,Contract Payments,Door Replacements,Supplies & Services
05/05/2021,Clc Contractors Ltd,830923,10852.6,General Maintenance,Low Maint & Painting Flats,Premises
05/05/2021,Clc Contractors Ltd,830923,57167.81,Re-Roofing Houses,Programmed Re-Roofing,Supplies & Services
05/05/2021,Clc Contractors Ltd,830923,23045.32,Contract Payments,Structural Repairs,Supplies & Services
05/05/2021,Clc Contractors Ltd,830923,40475.17,Contract Payments,Window Replacements,Supplies & Services
05/05/2021,Clc Contractors Ltd,831470,2392,General Maintenance,Low Maint & Painting Flats,Premises
05/05/2021,Clc Contractors Ltd,831470,33488,Re-Roofing Houses,Programmed Re-Roofing,Supplies & Services
05/05/2021,Clc Contractors Ltd,831506,21620,General Maintenance,Low Maint & Painting Flats,Premises
05/05/2021,Clc Contractors Ltd,831506,35880,Re-Roofing Houses,Programmed Re-Roofing,Supplies & Services
05/05/2021,Concept Staffing Ltd,830726,989.91,Casuals Waged-Agency Staff,Other Street Sweeping,Pay
05/05/2021,Edf Energy Customers Ltd,828771,1409.71,Electricity,Edf Electricity Suspense,Premises
05/05/2021,European Asbestos Services Ltd,830788,1485.8,Asbestos Removal,Asbestos,Premises
05/05/2021,European Asbestos Services Ltd,831961,537.6,Asbestos Removal,Asbestos,Premises
05/05/2021,European Asbestos Services Ltd,831962,681,Asbestos Removal,Asbestos,Premises
05/05/2021,Exeter City Living,828324,7644,Consultants Fees,Cemeteries - Operational,Supplies & Services
05/05/2021,Learn To Finance Ltd,832197,845,Consultants Fees,Cash & Income Management,Supplies & Services
05/05/2021,Lyreco Uk Ltd,827154,3832.4,Other Expenses,District Council Elections,Supplies & Services
05/05/2021,M A Vernon Ltd,831649,550,General Maintenance,Repairs To Void Properties,Premises
05/05/2021,M A Vernon Ltd,831847,1850,General Maintenance,Repairs To Void Properties,Premises
05/05/2021,Mears Ltd,831521,143469.7,Mears - Ppp Repairs,General Maintenance,Premises
05/05/2021,Mears Ltd,831725,466.7,Mears - Communal Areas/Non-Ppp,General Maintenance,Premises
05/05/2021,Mears Ltd,831725,128.55,Mears - Rechargeable Works,General Maintenance,Premises
05/05/2021,Mears Ltd,831725,2789.92,Mears -Ppp Repairs(Exclusions),General Maintenance,Premises
05/05/2021,Mears Ltd,831726,47617.31,Mears - Ppv Voids (Inc & Excl),Repairs To Void Properties,Premises
05/05/2021,Renault Trucks Commercial Ltd,832286,500,Routine Maintenance,Refuse Collection,Transport
05/05/2021,Specialist Fleet Services Ltd,832060,7079.49,Routine Maintenance,Transport Management,Transport
05/05/2021,Venn Group Ltd,832061,814.05,Temp.Contract-Agency Staff,Legal Services,Pay
05/05/2021,Westcountry Fire Protection Ltd,832095,1830.95,Fire Alarm Testing,Service Contracts,Premises
05/05/2021,Westcountry Fire Protection Ltd,832096,5984,Emergency Light Testing,Service Contracts,Premises
06/05/2021,Advanced Business Solutions,832408,9562.5,Contract Payments,Finance System Upgrade,Supplies & Services
06/05/2021,Carrington West Ltd,832053,637.5,Consultants Fees,Planning,Supplies & Services
06/05/2021,Concept Staffing Ltd,827138,457.69,Casuals Waged-Agency Staff,Childrens Play Areas,Pay
06/05/2021,Concept Staffing Ltd,827139,505.05,Casuals Waged-Agency Staff,Childrens Play Areas,Pay
06/05/2021,Concept Staffing Ltd,829502,505.05,Casuals Waged-Agency Staff,Other Street Sweeping,Pay
06/05/2021,Concept Staffing Ltd,830782,648.7,Casuals Waged-Agency Staff,Other Street Sweeping,Pay
06/05/2021,Couch Perry & Wilkes Environmental Llp,831980,1000,Heating Repairs,Riverside Leisure Centre,Premises
06/05/2021,Couch Perry & Wilkes Environmental Llp,832283,2862.5,Contract Payments,Leisure Complex - Build,Supplies & Services
06/05/2021,Elite Training South West,832535,1500,Grants Issued,Kickstart Payments & Receipts,Supplies & Services
06/05/2021,Exeter Coachworks Ltd,831207,3412.38,Accident Repairs,Childrens Play Areas,Transport
06/05/2021,Glendale Grounds Management Ltd,831526,10806.53,Grounds Costs,Garden Assistance,Premises
06/05/2021,Kier Construction Ltd,832046,208956.49,Contract Payments,St Loyes Extracare Scheme,Supplies & Services
06/05/2021,Kone Plc,832276,2621.68,Door Entry Systems,Service Contracts,Premises
06/05/2021,M A Vernon Ltd,831648,700,General Maintenance,Repairs To Void Properties,Premises
06/05/2021,Masons Kings,829818,618.24,Reactive Repairs,Parks Operational Overheads,Transport
06/05/2021,Matching Staff Solutions,829452,493.95,Casuals Waged-Agency Staff,Other Street Sweeping,Pay
06/05/2021,Mears Ltd,832275,1560.08,Mears - Communal Areas/Non-Ppp,General Maintenance,Premises
06/05/2021,Mears Ltd,832275,61.23,Mears -Ppp Repairs(Exclusions),General Maintenance,Premises
06/05/2021,Reach Publishing Services,832520,4254.79,Advertising,Pcc - Area Returning Officer,Supplies & Services
06/05/2021,Renault Trucks Commercial Ltd,832282,500,Routine Maintenance,Refuse Collection,Transport
06/05/2021,Renault Trucks Commercial Ltd,832287,500,Equipment Tools And Materials,Refuse Collection,Supplies & Services
06/05/2021,Se3 Design Ltd,832200,2400,Contract Payments,Leisure Complex - Build,Supplies & Services
06/05/2021,South West Hire + Sales Ltd,826936,466,Materials,Parks And Playing Fields,Supplies & Services
06/05/2021,South West Hire + Sales Ltd,826937,466,Materials,Parks And Playing Fields,Supplies & Services
06/05/2021,South West Hire + Sales Ltd,826938,483,Materials,Parks And Playing Fields,Supplies & Services
06/05/2021,South West Hire + Sales Ltd,826940,483,Materials,Parks And Playing Fields,Supplies & Services
06/05/2021,South West Hire + Sales Ltd,829125,420,Materials,Parks And Playing Fields,Supplies & Services
06/05/2021,Specialist Fleet Services Ltd,829100,504.77,Fleet Supply & Maintenance,Fleet Contract Hire,Transport
06/05/2021,Specialist Fleet Services Ltd,829101,728.4,Fleet Supply & Maintenance,Fleet Contract Hire,Transport
06/05/2021,Specialist Fleet Services Ltd,829103,691.3,Fleet Supply & Maintenance,Fleet Contract Hire,Transport
06/05/2021,Specialist Fleet Services Ltd,832295,691.3,Fleet Supply & Maintenance,Fleet Contract Hire,Transport
06/05/2021,Specialist Fleet Services Ltd,832296,1158.08,Fleet Supply & Maintenance,Fleet Contract Hire,Transport
06/05/2021,Specialist Fleet Services Ltd,832297,1158.08,Fleet Supply & Maintenance,Fleet Contract Hire,Transport
06/05/2021,Specialist Fleet Services Ltd,832308,664.86,Fleet Supply & Maintenance,Fleet Contract Hire,Transport
06/05/2021,Specialist Fleet Services Ltd,832310,606.89,Fleet Supply & Maintenance,Fleet Contract Hire,Transport
06/05/2021,Specialist Fleet Services Ltd,832316,1450.93,Fleet Supply & Maintenance,Fleet Contract Hire,Transport
06/05/2021,Specialist Fleet Services Ltd,832317,647.64,Fleet Supply & Maintenance,Transport Management,Transport
06/05/2021,The Best Connection Group Ltd,830780,402.68,Casuals Waged-Agency Staff,Childrens Play Areas,Pay
06/05/2021,The Best Connection Group Ltd,830780,505.05,Casuals Waged-Agency Staff,Other Street Sweeping,Pay
06/05/2021,The Best Connection Group Ltd,830780,1064.7,Casuals Waged-Agency Staff,Parks And Playing Fields,Pay
06/05/2021,The Oyster Partnership Ltd,832066,952.38,Temp.Contract-Agency Staff,Monitoring Private Housing,Pay
06/05/2021,The Oyster Partnership Ltd,832070,1494.87,Temp.Contract-Agency Staff,Monitoring Private Housing,Pay
06/05/2021,The Oyster Partnership Ltd,832071,619.5,Temp.Contract-Agency Staff,Accountancy Services,Pay
06/05/2021,The Oyster Partnership Ltd,832073,1504.62,Temp.Contract-Agency Staff,Monitoring Private Housing,Pay
06/05/2021,The Oyster Partnership Ltd,832074,937.5,Temp.Contract-Agency Staff,Rough Sleeper Co-Ordinator,Pay
06/05/2021,The Oyster Partnership Ltd,832075,1449.63,Temp.Contract-Agency Staff,Monitoring Private Housing,Pay
06/05/2021,The Oyster Partnership Ltd,832077,1527.63,Temp.Contract-Agency Staff,Monitoring Private Housing,Pay
06/05/2021,Tool Care Hire,826945,704,Materials,Anti-Intrusion Measures,Supplies & Services
06/05/2021,Total Lockout (Safety) Ltd,826957,5469.05,Equipment Tools And Materials,Canal,Supplies & Services
06/05/2021,Uk Container Maintenance Ltd,832325,2917.44,Bring Bank Refurbishment,Trade Refuse & Recycling,Supplies & Services
06/05/2021,W B Employment Ltd,824956,592.07,Casuals Waged-Agency Staff,Other Street Sweeping,Pay
06/05/2021,W B Employment Ltd,824956,429.45,Casuals Waged-Agency Staff,Parks And Playing Fields,Pay
06/05/2021,Wise Employment,827233,431.36,Casuals Waged-Agency Staff,Parks And Playing Fields,Pay
06/05/2021,Wnw Digital,832533,1500,Grants Issued,Kickstart Payments & Receipts,Supplies & Services
06/05/2021,Wnw Digital,832534,1500,Grants Issued,Kickstart Payments & Receipts,Supplies & Services
07/05/2021,Astron Fire & Security Ltd,831051,3844.8,Maintenance Of Equipment,Materials Reclamation Facility,Supplies & Services
07/05/2021,Bam Construction Ltd - Site Solutions,827876,1274.4,"Clothing, Laundry, & Uniforms",Cleansing Overheads,Supplies & Services
07/05/2021,Bloom Procurement Services,831724,6300,Consultants Fees,Leisure Complex - Build,Supplies & Services
07/05/2021,Bloom Procurement Services,832444,1200,Contributions Received,Local Plan Evidence,Income
07/05/2021,Bluebird Graphics Ltd T/A Creative Solutions,832475,552.55,Hra Community Dev Projects,Tenant Participation & Liaison,Supplies & Services
07/05/2021,C & G Mobility Lifts T/A Hanover Lifts Ltd,832633,4825,Contract Payments,Adaptations,Supplies & Services
07/05/2021,Change Your Space,832752,1000,Consultants Fees,General Management,Supplies & Services
07/05/2021,Chartered Institute Of Housing,831523,1400,Staff Training,General Management,Pay
07/05/2021,Chubb Fire & Security Ltd,829260,887.12,Central Alarm Service,Isca Centre,Premises
07/05/2021,Chubb Fire & Security Ltd,829265,642.94,Central Alarm Service,Exeter Arena,Premises
07/05/2021,Concept Staffing Ltd,830728,698.48,Casuals Waged-Agency Staff,Other Street Sweeping,Pay
07/05/2021,Concept Staffing Ltd,830783,505.05,Casuals Waged-Agency Staff,Other Street Sweeping,Pay
07/05/2021,Concept Staffing Ltd,830784,457.69,Casuals Waged-Agency Staff,Childrens Play Areas,Pay
07/05/2021,Edf Energy,832480,614.24,Electricity,Reactive Repairs,Premises
07/05/2021,Edf Energy Customers Ltd,828358,1094.16,Electricity,Edf Electricity Suspense,Premises
07/05/2021,Energyserv Uk Ltd,832326,1361.65,General Maintenance,Service Contracts,Premises
07/05/2021,Exeter & District Funeral Service,831530,1013,Burial Expenses-Section 46,Cemeteries,Supplies & Services
07/05/2021,Glen Cleaning,830924,452.08,Cleaning,Underground Passages,Premises
07/05/2021,Glen Cleaning,830925,452.08,Cleaning,Underground Passages,Premises
07/05/2021,Global City Futures Ltd,829437,3658.11,Consultants Fees,Liveable Garden City,Supplies & Services
07/05/2021,Guy Rowsell,832642,975,Boat Maintenance,River Exe,Transport
07/05/2021,Hays Accountancy Personnel,822202,810.56,Temp.Contract-Agency Staff,Liveable Garden City,Pay
07/05/2021,Hays Accountancy Personnel,824348,949.9,Temp.Contract-Agency Staff,Liveable Garden City,Pay
07/05/2021,Hays Accountancy Personnel,826395,949.9,Temp.Contract-Agency Staff,Liveable Garden City,Pay
07/05/2021,Hays Accountancy Personnel,829257,759.92,Temp.Contract-Agency Staff,Liveable Garden City,Pay
07/05/2021,Hays Accountancy Personnel,829258,759.92,Temp.Contract-Agency Staff,Liveable Garden City,Pay
07/05/2021,Hurst Media Company Ltd,832514,750,Advertising,Visit Exeter,Supplies & Services
07/05/2021,Hurst Media Company Ltd,832515,750,Advertising,Visit Exeter,Supplies & Services
07/05/2021,Julian House,830930,50000,Other Expenses,Women & Prison Resettlement,Supplies & Services
07/05/2021,Kier Construction Ltd,832699,98064.39,Contract Payments,Riverside,Supplies & Services
07/05/2021,Lawyers In Local Government,832530,530,Professional Subscriptions,Legal Services,Pay
07/05/2021,Lyreco Uk Ltd,832270,2047.2,Other Expenses,Procurement,Supplies & Services
07/05/2021,Matching Staff Solutions,830776,493.95,Casuals Waged-Agency Staff,Other Street Sweeping,Pay
07/05/2021,Mears Ltd,832493,414.56,Mears - Communal Areas/Non-Ppp,General Maintenance,Premises
07/05/2021,Mears Ltd,832493,2924.52,Mears -Ppp Repairs(Exclusions),General Maintenance,Premises
07/05/2021,Mears Ltd,832496,3607.03,General Maintenance,General Maintenance,Premises
07/05/2021,Mears Ltd,832497,3327.27,Mears - Ppv Voids (Inc & Excl),Repairs To Void Properties,Premises
07/05/2021,Pear Uk West Ltd,832259,4900,Marketing,Visit Exeter,Supplies & Services
07/05/2021,Pear Uk West Ltd,832260,1200,Marketing,Visit Exeter,Supplies & Services
07/05/2021,Savills (Uk) Ltd,831301,4274.84,Service Charges,Exeter Visitor Information,Premises
07/05/2021,Savills (Uk) Ltd,831302,472.52,Service Charges,Underground Passages,Premises
07/05/2021,Savills (Uk) Ltd,831303,432.5,Service Charges,Exeter Visitor Information,Premises
07/05/2021,Scott Horner,830935,500,Solicitors And Legal Fees/Lics,Monitoring Private Housing,Supplies & Services
07/05/2021,Secureforce Uk Ltd,832710,719.17,Security Patrol,Livestock/Matford Centre,Premises
07/05/2021,Source For Business T/A Sw Water Business,832630,1121.79,Water,Pyramids Swim & Leisure Centre,Premises
07/05/2021,Source For Business T/A Sw Water Business,832631,1885.86,Water,Pyramids Swim & Leisure Centre,Premises
07/05/2021,Specialist Fleet Services Ltd,829102,647.13,Fleet Supply & Maintenance,Fleet Contract Hire,Transport
07/05/2021,Specialist Fleet Services Ltd,832301,1180.57,Fleet Supply & Maintenance,Fleet Contract Hire,Transport
07/05/2021,Specialist Fleet Services Ltd,832311,4162.82,Fleet Supply & Maintenance,Fleet Contract Hire,Transport
07/05/2021,Specialist Fleet Services Ltd,832312,4162.82,Fleet Supply & Maintenance,Fleet Contract Hire,Transport
07/05/2021,Specialist Fleet Services Ltd,832313,4162.82,Fleet Supply & Maintenance,Fleet Contract Hire,Transport
07/05/2021,Specialist Fleet Services Ltd,832314,903.57,Fleet Supply & Maintenance,Fleet Contract Hire,Transport
07/05/2021,Specialist Fleet Services Ltd,832315,604.28,Fleet Supply & Maintenance,Fleet Contract Hire,Transport
07/05/2021,Specialist Fleet Services Ltd,832318,903.57,Fleet Supply & Maintenance,Fleet Contract Hire,Transport
07/05/2021,Specialist Fleet Services Ltd,832327,4162.82,Other Expenses,Fleet Contract Hire,Supplies & Services
07/05/2021,Specialist Fleet Services Ltd,832329,604.28,Fleet Supply & Maintenance,Fleet Contract Hire,Transport
07/05/2021,Specialist Fleet Services Ltd,832331,604.28,Fleet Supply & Maintenance,Fleet Contract Hire,Transport
07/05/2021,Tam Marketing Ltd,831988,494.46,Materials,Public Conveniences,Supplies & Services
07/05/2021,The Boundary Expert Ltd,830936,750,Consultants Fees,Land Drainage - Water Courses,Supplies & Services
07/05/2021,The Oyster Partnership Ltd,832072,1462.5,Temp.Contract-Agency Staff,Monitoring Private Housing,Pay
07/05/2021,Thirsty Work Ltd,832494,612,Hospitality,Livestock/Matford Centre,Supplies & Services
07/05/2021,Venn Group Ltd,832056,127.5,Temp.Contract-Agency Staff,Business Regulation Team,Pay
07/05/2021,Venn Group Ltd,832056,127.5,Temp.Contract-Agency Staff,Environmental Quality Team,Pay
07/05/2021,Venn Group Ltd,832056,127.5,Temp.Contract-Agency Staff,Neighbourhood Team,Pay
07/05/2021,Venn Group Ltd,832056,127.5,Temp.Contract-Agency Staff,Premises Licensing,Pay
07/05/2021,Venn Group Ltd,832056,127.5,Temp.Contract-Agency Staff,Vehicles Licensing,Pay
07/05/2021,William Hackett Chains Ltd,830931,954,Maintenance Of Buoys,Mooring Repairs,Premises
10/05/2021,Baltimore Consulting Ltd,826112,2250,Consultants Fees,Planning,Supplies & Services
10/05/2021,Davitt Jones Bould Ltd,828777,20,Land Registry,Clifton Hill Demolition,Supplies & Services
10/05/2021,Davitt Jones Bould Ltd,828777,6193,Solicitors And Legal Fees/Lics,Clifton Hill Demolition,Supplies & Services
10/05/2021,Davitt Jones Bould Ltd,828780,1649,Solicitors And Legal Fees/Lics,Clifton Hill Demolition,Supplies & Services
10/05/2021,Dodd Group (South) Ltd,831216,4956.32,Electrical Testing - Blocks,Civic Centre,Premises
10/05/2021,Exeter City Living,825926,9938.07,Contract Payments,Hamlin Gardens,Supplies & Services
10/05/2021,James Andrews Recruitment Solutions Ltd,831285,561.6,Temp.Contract-Agency Staff,Premises Licensing,Pay
10/05/2021,James Andrews Recruitment Solutions Ltd,831285,842.4,Temp.Contract-Agency Staff,Vehicles Licensing,Pay
10/05/2021,Jtt Contracting Ltd,832036,1750,Sub-Contractors,Car Parks,Premises
10/05/2021,Kier Construction Ltd,832861,1181068.41,Contract Payments,Leisure Complex - Build,Supplies & Services
10/05/2021,Mears Ltd,832719,940.3,Mears - Communal Areas/Non-Ppp,General Maintenance,Premises
10/05/2021,Mears Ltd,832719,5081.8,Mears -Ppp Repairs(Exclusions),General Maintenance,Premises
10/05/2021,Mears Ltd,832720,10268.63,Mears - Ppv Voids (Inc & Excl),Repairs To Void Properties,Premises
10/05/2021,Pennington Choices Ltd,832721,1325,Fire Risk Assessment,Service Contracts,Premises
10/05/2021,Plexus Law,826985,0,Insurance Settlement - Fleet,Parks And Playing Fields,Income
10/05/2021,Service Gym,831318,500,Service & Maint Agreements,Wonford Sports Centre,Premises
10/05/2021,Simon Bastone Associates Ltd,833026,1348,Sub-Contractors,Exeter Quay Cellars Cliff Face,Premises
10/05/2021,Sonovate Ltd (Buckingham Futures),831397,2850,Temp.Contract-Agency Staff,Monitoring Private Housing,Pay
10/05/2021,Telstar Guest House Ltd,831999,1366.67,Bed And Breakfast,Bed And Breakfast,Premises
10/05/2021,Venn Group Ltd,822210,814.05,Temp.Contract-Agency Staff,Legal Services,Pay
10/05/2021,Venn Group Ltd,822211,814.05,Temp.Contract-Agency Staff,Legal Services,Pay
11/05/2021,C & G Mobility Lifts T/A Hanover Lifts Ltd,833096,4004.66,Lift Maintenance,Service Contracts,Premises
11/05/2021,C & G Mobility Lifts T/A Hanover Lifts Ltd,833097,438,Lift Maintenance,Service Contracts,Premises
11/05/2021,Claire Heale,833340,460,Spend To Save,Housing Access,Supplies & Services
11/05/2021,Claire Heale,833340,460,Spend To Save,Housing Advice,Supplies & Services
11/05/2021,Devon + Cornwall Liberal Democrats,830166,5000,Deposits & Guarantees,Police & Cc Election Deposits,Premises
11/05/2021,Dodd Group (South) Ltd,833113,14876.04,Domestic Electrical Testing,Elec Testing/Reactive,Premises
11/05/2021,Ear Knows & Throat Ltd,833216,1500,Grants Issued,Kickstart Payments & Receipts,Supplies & Services
11/05/2021,Ear Knows & Throat Ltd,833217,1500,Grants Issued,Kickstart Payments & Receipts,Supplies & Services
11/05/2021,Exeter Labour Party,830165,5000,Deposits & Guarantees,Police & Cc Election Deposits,Premises
11/05/2021,First Class Builders Ltd,832984,6839,General Maintenance,General Maintenance,Premises
11/05/2021,Green Party South West,830355,5000,Deposits & Guarantees,Police & Cc Election Deposits,Premises
11/05/2021,Judy Niner,832859,1500,Project Work,Museum Projects,Supplies & Services
11/05/2021,Mears Ltd,833018,768.29,Mears - Capital Response Costs,Adaptations,Premises
11/05/2021,Mears Ltd,833019,350.34,Mears - Communal Areas/Non-Ppp,General Maintenance,Premises
11/05/2021,Mears Ltd,833019,2293,Mears -Ppp Repairs(Exclusions),General Maintenance,Premises
11/05/2021,Mears Ltd,833020,723.69,General Maintenance,General Maintenance,Premises
11/05/2021,Paper High,833005,540.79,Goods For Resale,Museum Shop,Supplies & Services
11/05/2021,Pennington Choices Ltd,833218,39270,Fire Risk Assessment,Service Contracts,Premises
11/05/2021,South West Conservatives,830168,5000,Deposits & Guarantees,Police & Cc Election Deposits,Premises
11/05/2021,Stonewater Ltd,831396,4846.2,Serviced Accommodation,Serviced Accommodation,Premises
12/05/2021,Apex Scaffolding Services (Exeter) Ltd,831210,1080.57,Aim Lease Requirements,Miscellaneous Properties,Premises
12/05/2021,Asd Lighting Plc,833324,2024.96,Electrical Works - Communal,Prog'D Elec Re-Wiring General,Supplies & Services
12/05/2021,Asd Lighting Plc,833325,2441.64,Electrical Works - Communal,Prog'D Elec Re-Wiring General,Supplies & Services
12/05/2021,Asd Lighting Plc,833326,2441.64,Electrical Works - Communal,Prog'D Elec Re-Wiring General,Supplies & Services
12/05/2021,Bailey Partnership,832524,4625,Sub-Contractors,Car Parks,Premises
12/05/2021,Concept Staffing Ltd,830785,2479.23,Casuals Waged-Agency Staff,Waste Agency Costs,Pay
12/05/2021,Cranbrook Town Council,833345,12955.02,Contract Payments,Sport England Pathfinder,Supplies & Services
12/05/2021,Cranbrook Town Council,833345,5000,Grants Issued,Sport England Pathfinder,Supplies & Services
12/05/2021,Dodd Group (South) Ltd,833344,38083.59,Electrical Works - Domestic,Prog'D Elec Re-Wiring General,Supplies & Services
12/05/2021,Doorcare South West Ltd,825389,35481.96,Contract Payments,Fire Risk Assessment Works,Supplies & Services
12/05/2021,Edf Energy Customers Ltd,833522,498.54,Electricity,Exeter Corn Exchange,Premises
12/05/2021,Environment Agency,827904,2240,Licences,Materials Reclamation Facility,Supplies & Services
12/05/2021,European Asbestos Services Ltd,833312,927.6,Asbestos Removal,Asbestos,Premises
12/05/2021,European Asbestos Services Ltd,833313,672,Asbestos Removal,Asbestos,Premises
12/05/2021,European Asbestos Services Ltd,833322,913,Asbestos Removal,Asbestos,Premises
12/05/2021,European Asbestos Services Ltd,833343,1123,Asbestos Removal,Asbestos,Premises
12/05/2021,Integrated Water Services,831400,2229.33,Pmf Compliance,Property Maintenance,Premises
12/05/2021,Kier Construction Ltd,833279,89923.36,Contract Payments,Riverside,Supplies & Services
12/05/2021,Mears Ltd,833281,2994.63,General Maintenance,General Maintenance,Premises
12/05/2021,Mears Ltd,833282,870.73,Mears - Capital Response Costs,Adaptations,Premises
12/05/2021,Mears Ltd,833283,26037.72,Mears - Ppv Voids (Inc & Excl),Repairs To Void Properties,Premises
12/05/2021,Mears Ltd,833288,1089.22,General Maintenance,General Maintenance,Premises
12/05/2021,Mears Ltd,833476,121094.46,General Maintenance,General Maintenance,Premises
12/05/2021,Reach Publishing Services,833460,459.86,Advertising,Pcc - Area Returning Officer,Supplies & Services
12/05/2021,Secureforce Uk Ltd,832709,1152.6,Central Alarm Service,Ramm,Premises
12/05/2021,Secureforce Uk Ltd,832709,211,Central Alarm Service,"The Ark Museum Store, Exton Rd",Premises
12/05/2021,Sodexo Motivation Solutions Uk,832717,1900,Excel & Longservice Awards,Human Resources,Pay
12/05/2021,Sodexo Motivation Solutions Uk,832717,13.56,Other Expenses,Human Resources,Supplies & Services
12/05/2021,Source For Business T/A Sw Water Business,827907,849.49,Trade Effluent Charges,Refuse Collection,Premises
12/05/2021,Southern Electric,833092,786.38,Electricity,Commercial Properties,Premises
12/05/2021,Thomson Reuters,832707,1073.07,Publications/Leaflets,Legal Services,Supplies & Services
12/05/2021,West Country Vending Service Ltd,832523,1375.89,Equipment Rental,Civic Centre,Supplies & Services
12/05/2021,Young Devon,832635,24500,Young Persons Prevention Serv,Resettlement Strategy,Supplies & Services
13/05/2021,3c Payment Uk Ltd,832192,1324.4,Card Payment Charges,Car Parks,Supplies & Services
13/05/2021,Apse,832639,9360,Casuals Waged-Agency Staff,Refuse Collection,Pay
13/05/2021,Aquarius Solutions,833106,2310,Materials,Arg - Business Support,Supplies & Services
13/05/2021,Ar Land & Planning,832048,1750,Consultants Fees,Social Housing Delivery,Supplies & Services
13/05/2021,Canford Audio Plc,832991,1890,Equipment Tools And Materials,Vehicles Licensing,Supplies & Services
13/05/2021,Capita Ltd ,830730,845,Academy ( Capita ) System,Benefits Administration,Supplies & Services
13/05/2021,Carrington West Ltd,833058,650,Consultants Fees,Planning,Supplies & Services
13/05/2021,Clc Contractors Ltd,833631,1131.6,Asbestos Removal,Asbestos,Premises
13/05/2021,Clc Contractors Ltd,833631,26133.32,General Maintenance,Low Maint & Painting Flats,Premises
13/05/2021,Clc Contractors Ltd,833631,2508.97,Re-Roofing Flats,Programmed Re-Roofing,Supplies & Services
13/05/2021,Clc Contractors Ltd,833631,854.68,Re-Roofing Houses,Programmed Re-Roofing,Supplies & Services
13/05/2021,Debit Finance Collections Plc,827830,2959.5,Software Licences/Support,Leisure Facilities Contract,Supplies & Services
13/05/2021,Devon Tree Services,825433,480,Sub-Contractors,Arboricultural,Premises
13/05/2021,Driver Hire Exeter Ltd,828487,743.73,Casuals Waged-Agency Staff,Waste Agency Costs,Pay
13/05/2021,Driver Hire Exeter Ltd,831403,880.6,Casuals Waged-Agency Staff,Waste Agency Costs,Pay
13/05/2021,Echelon Consultancy Ltd,832730,750,Consultants Fees,Reactive Repairs,Supplies & Services
13/05/2021,Edp Drug & Alcohol Services,833421,8845,Other Expenses,Rapid Rehousing Pathway Fund,Supplies & Services
13/05/2021,First Class Builders Ltd,833528,792,Contract Payments,Adaptations,Supplies & Services
13/05/2021,Gellie T/A A1 Removals And Storage,833461,444.2,Tenant Decant Costs,Planned Works,Supplies & Services
13/05/2021,Gemma Lloyd,833425,1000,Museum - Temp Exhibitions,Museum Npo,Supplies & Services
13/05/2021,Greenham Trading Ltd,827908,2346.88,Equipment Tools And Materials,Reactive Repairs,Supplies & Services
13/05/2021,Hays Accountancy Personnel,832040,432.85,Temp.Contract-Agency Staff,Accountancy Services,Pay
13/05/2021,Hot Stuff Metal Works ,827582,1310,Sub-Contractors,Canal,Premises
13/05/2021,Impact Marketing + Publicity Ltd,832735,695,Advertising,Cemeteries - Operational,Supplies & Services
13/05/2021,Integrated Water Services,831399,3638.99,Legionella Testing,Service Contracts,Premises
13/05/2021,Integrated Water Services,833611,4808.92,Legionella Testing,Service Contracts,Premises
13/05/2021,Jtt Contracting Ltd,833310,1450,Ad-Hoc Maintenance,Riverside Leisure Centre,Premises
13/05/2021,M A Vernon Ltd,833287,750,General Maintenance,Repairs To Void Properties,Premises
13/05/2021,M A Vernon Ltd,833304,950,General Maintenance,Repairs To Void Properties,Premises
13/05/2021,M A Vernon Ltd,833305,750,General Maintenance,Repairs To Void Properties,Premises
13/05/2021,M W Gozna Services Ltd,833338,16917.45,Contract Payments,Adaptations,Supplies & Services
13/05/2021,Mears Ltd,833464,3273.39,Mears -Ppp Repairs(Exclusions),General Maintenance,Premises
13/05/2021,Network Merchants Ltd (Formerly Creditcall),832528,654.41,Card Payment Charges,Car Parks,Supplies & Services
13/05/2021,Nute Plumbing Services Ltd,833517,5407,Grants Issued,Disabled Facilities Grants,Supplies & Services
13/05/2021,Peter Stevens,832333,4050,Bed And Breakfast,Bed And Breakfast,Premises
13/05/2021,Real Life Psychology,832716,10865,Other Expenses,Mental Health,Supplies & Services
13/05/2021,Recruitment Solutions (Sw) Ltd,830790,1128.53,Casuals Waged-Agency Staff,Other Street Sweeping,Pay
13/05/2021,Recruitment Solutions (Sw) Ltd,830790,579.27,Casuals Waged-Agency Staff,Public Conveniences,Pay
13/05/2021,Royal Mail,832522,16381.31,Postage/Stamps,Mail,Supplies & Services
13/05/2021,Scheidt & Bachmann (Uk) Ltd,833615,5250,Equipment Tools And Materials,Car Parks,Supplies & Services
13/05/2021,Shaw & Sons Ltd,827594,428.45,Stationery,District Council Elections,Supplies & Services
13/05/2021,Sonovate Ltd (Buckingham Futures),832058,1200,Temp.Contract-Agency Staff,Monitoring Private Housing,Pay
13/05/2021,Source For Business T/A Sw Water Business,830743,502.25,Water,Belle Isle Depot Costs,Premises
13/05/2021,Venn Group Ltd,833067,127.5,Temp.Contract-Agency Staff,Business Regulation Team,Pay
13/05/2021,Venn Group Ltd,833067,127.5,Temp.Contract-Agency Staff,Environmental Quality Team,Pay
13/05/2021,Venn Group Ltd,833067,127.5,Temp.Contract-Agency Staff,Neighbourhood Team,Pay
13/05/2021,Venn Group Ltd,833067,127.5,Temp.Contract-Agency Staff,Premises Licensing,Pay
13/05/2021,Venn Group Ltd,833067,127.5,Temp.Contract-Agency Staff,Vehicles Licensing,Pay
13/05/2021,Versapak International Ltd,825921,2486.5,Equipment Tools And Materials,County Council Elections,Supplies & Services
13/05/2021,Versapak International Ltd,825921,58,Other Expenses,County Council Elections,Supplies & Services
13/05/2021,Versapak International Ltd,825921,2544.5,Equipment Tools And Materials,District Council Elections,Supplies & Services
13/05/2021,W B Employment Ltd,831289,570.76,Casuals Waged-Agency Staff,Other Street Sweeping,Pay
13/05/2021,W B Employment Ltd,831289,520.65,Casuals Waged-Agency Staff,Parks And Playing Fields,Pay
13/05/2021,Wales Environmental Ltd T/A Drainology,833618,2235,General Maintenance,General Maintenance,Premises
13/05/2021,Westcrete Precast Concrete Ltd,831500,435,Maintenance Of Buoys,Mooring Repairs,Premises
13/05/2021,Western Event Hire,832403,1266,Equipment Tools And Materials,Glenthorne Rd Emergency Resp,Supplies & Services
13/05/2021,Wise Employment,831401,525.72,Casuals Waged-Agency Staff,Parks And Playing Fields,Pay
14/05/2021,Apple Central Taxis Ltd,833285,563.4,Other Expenses,Rapid Rehousing Pathway Fund,Supplies & Services
14/05/2021,Approved Property Management (Apm P2 Ltd,833307,4114.32,Bed And Breakfast,Bed And Breakfast,Premises
14/05/2021,Approved Property Management (Apm P2 Ltd,833328,4114.32,Bed And Breakfast,Bed And Breakfast,Premises
14/05/2021,Astron Fire & Security Ltd,831052,6010,Maintenance Of Equipment,Materials Reclamation Facility,Supplies & Services
14/05/2021,Aw Jenkinson Transport Ltd,831395,700,Comingled Haulage Out,Materials Reclamation Facility,Transport
14/05/2021,Bowcom,830937,1448.01,Contract Payments,Parks And Playing Fields,Supplies & Services
14/05/2021,Building Recruitment Co Ltd,832321,602.37,Temp.Contract-Agency Staff,Community Safety Projects,Pay
14/05/2021,Carrington West Ltd,833768,581.25,Consultants Fees,Planning,Supplies & Services
14/05/2021,Cobwebs,831741,16606.5,Hra Routine Cleaning Contract,Tenancy Services,Premises
14/05/2021,Craemer Uk Ltd,832059,5250,Bins & Recycling Boxes,Refuse Collection,Supplies & Services
14/05/2021,Devon Commercial Stationers Ltd,831997,498,Equipment Tools And Materials,Nndr Collection,Supplies & Services
14/05/2021,Devon Tree Services,829433,1470,Sub-Contractors,Arboricultural,Premises
14/05/2021,Devon Tree Services,829434,2160,Sub-Contractors,Arboricultural,Premises
14/05/2021,Dodd Group (South) Ltd,833700,8853.69,Electrical Works - Communal,Prog'D Elec Re-Wiring General,Supplies & Services
14/05/2021,Dolphin Lifts South West,833511,2749,Grants Issued,Disabled Facilities Grants,Supplies & Services
14/05/2021,Dolphin Lifts South West,833677,1999,Grants Issued,Disabled Facilities Grants,Supplies & Services
14/05/2021,Dolphin Lifts South West,833679,4850,Grants Issued,Disabled Facilities Grants,Supplies & Services
14/05/2021,Dx Network Services Ltd,832732,496.76,Hays Dx / Britdocs Subscript.,Legal Services,Supplies & Services
14/05/2021,Experian Ltd,832017,544.67,Experian,Revenues Recovery,Supplies & Services
14/05/2021,First Class Builders Ltd,833875,9573,General Maintenance,General Maintenance,Premises
14/05/2021,Glen Cleaning,831080,581.26,Cleaning,Materials Reclamation Facility,Premises
14/05/2021,Guardian Security Company,833463,3250,Contract Payments,Adaptations,Supplies & Services
14/05/2021,Hydro-X Water Treatment Ltd,829461,478,Legionella Testing,Riverside Leisure Centre,Premises
14/05/2021,Hydro-X Water Treatment Ltd,829461,201,Supplies And Equipment,Riverside Leisure Centre,Supplies & Services
14/05/2021,Intercard Ltd,833060,465.69,Stationery,Income Recovery,Supplies & Services
14/05/2021,Irrv,831733,875,Miscellaneous Expenditure,Revenues Recovery,Supplies & Services
14/05/2021,James Andrews Recruitment Solutions Ltd,832411,1036,Temp.Contract-Agency Staff,Human Resources,Pay
14/05/2021,James Andrews Recruitment Solutions Ltd,833471,840,Temp.Contract-Agency Staff,Human Resources,Pay
14/05/2021,Jtt Contracting Ltd,826541,1500,Sub-Contractors,Car Park Resurfacing,Premises
14/05/2021,Jtt Contracting Ltd,826543,1550,Sub-Contractors,Car Park Resurfacing,Premises
14/05/2021,Jtt Contracting Ltd,826546,1950,Sub-Contractors,Allotments,Premises
14/05/2021,Jtt Contracting Ltd,826546,2000,Sub-Contractors,Footpaths Maint - Assets,Premises
14/05/2021,Mears Ltd,833671,1321,Mears - Communal Areas/Non-Ppp,General Maintenance,Premises
14/05/2021,Mears Ltd,833671,224.82,Mears - Ppp Repairs,General Maintenance,Premises
14/05/2021,Mears Ltd,833671,865.55,Mears -Ppp Repairs(Exclusions),General Maintenance,Premises
14/05/2021,Mears Ltd,833672,2566.12,Mears - Ppv Voids (Inc & Excl),Repairs To Void Properties,Premises
14/05/2021,Northern Municipal Spares,828743,1589.86,Materials,Other Street Sweeping,Supplies & Services
14/05/2021,Posturite (Uk) Ltd,833699,658.36,Staff Training,Learning & Development,Pay
14/05/2021,Propoint Southwest Ltd,833678,3400,General Maintenance,General Maintenance,Premises
14/05/2021,Protective Wear Supplies Ltd,830388,646.53,"Clothing, Laundry, & Uniforms",Parks And Playing Fields,Supplies & Services
14/05/2021,Protective Wear Supplies Ltd,830934,426.45,"Clothing, Laundry, & Uniforms",Parks And Playing Fields,Supplies & Services
14/05/2021,Rawle Gammon & Baker (Exeter) Ltd,827911,998.5,Materials,Childrens Play Areas,Supplies & Services
14/05/2021,Rd & E Nhs Foundation Trust,832725,1901.95,Medical Inspections,Human Resources,Pay
14/05/2021,Recruitment Solutions (Sw) Ltd,830786,769.96,Casuals Waged-Agency Staff,Materials Reclamation Facility,Pay
14/05/2021,Shaw & Sons Ltd,828762,600.3,Equipment Tools And Materials,District Council Elections,Supplies & Services
14/05/2021,Signs Express (Exeter),831061,2555,Decoration / Alterations,Arg - Business Support,Premises
14/05/2021,Sj Dark Ltd,833870,642.5,Fire Alarm Testing,Riverside Leisure Centre,Premises
14/05/2021,Source For Business T/A Sw Water Business,832006,956.47,Water,Public Conveniences,Premises
14/05/2021,Source For Business T/A Sw Water Business,832008,734.9,Water,Public Conveniences,Premises
14/05/2021,Source For Business T/A Sw Water Business,833703,544.66,Water,Oakwood House,Premises
14/05/2021,The Best Connection Group Ltd,831070,1394.4,Casuals Waged-Agency Staff,Materials Reclamation Facility,Pay
14/05/2021,The Japanese Shop Ltd,833975,486.75,Goods For Resale,Museum Shop,Supplies & Services
14/05/2021,The South West Research Company,829487,572,Marketing,Visit Exeter,Supplies & Services
14/05/2021,Tool Care Hire,832738,420,Materials,Parks And Playing Fields,Supplies & Services
14/05/2021,Venn Group Ltd,832052,495,Temp.Contract-Agency Staff,Legal Services 3rd Party Work,Pay
14/05/2021,Venn Group Ltd,833068,660,Temp.Contract-Agency Staff,Legal Services 3rd Party Work,Pay
15/05/2021,Travelodge,T00020,16708.87,Temporary Accommodation,Temporary Accommodation,Supplies & Services
17/05/2021,Airtech Humidity Controls Ltd T/A,834092,937.6,General Maintenance,General Maintenance,Premises
17/05/2021,Airtech Humidity Controls Ltd T/A,834093,984.06,General Maintenance,General Maintenance,Premises
17/05/2021,Association Of Electoral Administrators,823637,2438,Staff Training,Pcc - Area Returning Officer,Pay
17/05/2021,Devon County Council,827147,18418.08,Ecc Cleansing Extras,Car Parks,Supplies & Services
17/05/2021,Devon County Council,827147,39148,Sub-Contractors,Car Parks,Premises
17/05/2021,James Andrews Recruitment Solutions Ltd,831286,201.2,Temp.Contract-Agency Staff,Planned Works,Pay
17/05/2021,James Andrews Recruitment Solutions Ltd,831286,301.99,Temp.Contract-Agency Staff,Reactive Repairs,Pay
17/05/2021,James Andrews Recruitment Solutions Ltd,831287,307.1,Temp.Contract-Agency Staff,Planned Works,Pay
17/05/2021,James Andrews Recruitment Solutions Ltd,831287,460.65,Temp.Contract-Agency Staff,Reactive Repairs,Pay
17/05/2021,Mark Dunn Ltd,834211,515,Spend To Save,Housing Access,Supplies & Services
17/05/2021,Mark Dunn Ltd,834211,450,Spend To Save,Housing Advice,Supplies & Services
17/05/2021,Mears Ltd,833959,943.28,Mears - Communal Areas/Non-Ppp,General Maintenance,Premises
17/05/2021,Mears Ltd,833959,31.72,Mears - Rechargeable Works,General Maintenance,Premises
17/05/2021,Mears Ltd,833959,871.81,Mears -Ppp Repairs(Exclusions),General Maintenance,Premises
17/05/2021,Mears Ltd,833960,18890.07,Mears - Ppv Voids (Inc & Excl),Repairs To Void Properties,Premises
17/05/2021,Nute Plumbing Services Ltd,834097,4867,Bathroom Adaptations,Bathroom Replacements,Supplies & Services
17/05/2021,Nute Plumbing Services Ltd,834098,4867,Bathroom Adaptations,Bathroom Replacements,Supplies & Services
17/05/2021,Propoint Southwest Ltd,833710,1500,General Maintenance,General Maintenance,Premises
17/05/2021,Royal Mail,827391,9603.57,Postage/Stamps,County Council Elections,Supplies & Services
17/05/2021,Royal Mail,827391,9603.58,Postage/Stamps,District Council Elections,Supplies & Services
17/05/2021,Royal Mail,827391,9603.58,Postage/Stamps,Pcc Elections,Supplies & Services
17/05/2021,Source For Business T/A Sw Water Business,830748,899.36,Water,Allotments,Premises
17/05/2021,Venn Group Ltd,833965,814.05,Temp.Contract-Agency Staff,Legal Services,Pay
18/05/2021,Apse,834420,2512,Subscriptions,Corporate Costs,Supplies & Services
18/05/2021,C & G Mobility Lifts T/A Hanover Lifts Ltd,834307,1700,Contract Payments,Adaptations,Supplies & Services
18/05/2021,C & G Mobility Lifts T/A Hanover Lifts Ltd,834308,5000,Contract Payments,Adaptations,Supplies & Services
18/05/2021,C4yourself Productions,834447,1560.95,Filming,Sport England Pathfinder,Supplies & Services
18/05/2021,Cotswold Archaeology,832489,3441,Contract Payments,Leisure Complex - Build,Supplies & Services
18/05/2021,Exeter Community Initiatives,827893,45000,Contract Payments,Vcse Support Service (Eci/Loc),Supplies & Services
18/05/2021,Fellows Hairdressing Ltd,834240,1500,Grants Issued,Kickstart Payments & Receipts,Supplies & Services
18/05/2021,Mears Ltd,834199,1152.57,Mears - Communal Areas/Non-Ppp,General Maintenance,Premises
18/05/2021,Mears Ltd,834199,36.69,Mears - Rechargeable Works,General Maintenance,Premises
18/05/2021,Mears Ltd,834199,691.67,Mears -Ppp Repairs(Exclusions),General Maintenance,Premises
18/05/2021,Mears Ltd,834199,1971.67,Mears -Psl Properties(Non-Ppp),General Maintenance,Premises
18/05/2021,Propoint Southwest Ltd,834222,3720,General Maintenance,General Maintenance,Premises
18/05/2021,The Recycled Candle Company,834237,1500,Grants Issued,Kickstart Payments & Receipts,Supplies & Services
18/05/2021,The Recycled Candle Company,834238,1500,Grants Issued,Kickstart Payments & Receipts,Supplies & Services
18/05/2021,The Recycled Candle Company,834239,1500,Grants Issued,Kickstart Payments & Receipts,Supplies & Services
18/05/2021,Wsp Uk Ltd,833275,12833,Contract Payments,Leisure Complex - Build,Supplies & Services
19/05/2021,Blue Frog Cleaning Services,832193,6256.2,Cleaning,Civic Centre,Premises
19/05/2021,Carrington West Ltd,832032,525,Consultants Fees,Planning,Supplies & Services
19/05/2021,Carrington West Ltd,832033,550,Consultants Fees,Planning,Supplies & Services
19/05/2021,Carrington West Ltd,832034,581.25,Consultants Fees,Planning,Supplies & Services
19/05/2021,East Devon Radio Ltd,832634,2180,Marketing,Communications & Marketing,Supplies & Services
19/05/2021,James Andrews Recruitment Solutions Ltd,832409,540,Temp.Contract-Agency Staff,Premises Licensing,Pay
19/05/2021,James Andrews Recruitment Solutions Ltd,832409,810,Temp.Contract-Agency Staff,Vehicles Licensing,Pay
19/05/2021,M A Vernon Ltd,834290,550,General Maintenance,Repairs To Void Properties,Premises
19/05/2021,M A Vernon Ltd,834397,850,General Maintenance,Repairs To Void Properties,Premises
19/05/2021,M A Vernon Ltd,834398,675,General Maintenance,Repairs To Void Properties,Premises
19/05/2021,Melinda Humphrey,832708,1500,Project Work,Museum Projects,Supplies & Services
19/05/2021,Park Now Ltd,832746,2470.56,Paybyphone Charges,Car Parks,Supplies & Services
19/05/2021,Sonovate Ltd (Buckingham Futures),833057,900,Temp.Contract-Agency Staff,Monitoring Private Housing,Pay
19/05/2021,South West Compactor Services,832069,5012.89,Maintenance Of Equipment,Materials Reclamation Facility,Supplies & Services
19/05/2021,Streamline Corporate Ltd,831731,986.9,"Clothing, Laundry, & Uniforms",Cleansing Overheads,Supplies & Services
19/05/2021,Trade Refuse & Salvage Handlers (Trash),832067,1292.3,Paper Buy In,Materials & Goods For Resale,Supplies & Services
20/05/2021,Alpha Parking Ltd,833961,1230,Staff Training,Learning & Development,Pay
20/05/2021,Arco Ltd,833947,570,"Clothing, Laundry, & Uniforms",Other Street Sweeping,Supplies & Services
20/05/2021,Berry Recruitment,827879,541.88,Casuals Waged-Agency Staff,Waste Agency Costs,Pay
20/05/2021,Bloom Procurement Services,832926,7000,Consultants Fees,Leisure Complex - Build,Supplies & Services
20/05/2021,Bloom Procurement Services,832927,3360,Consultants Fees,Leisure Complex - Build,Supplies & Services
20/05/2021,Building Recruitment Co Ltd,832207,785.7,Temp.Contract-Agency Staff,Community Safety Projects,Pay
20/05/2021,Building Recruitment Co Ltd,833423,701.31,Temp.Contract-Agency Staff,Community Safety Projects,Pay
20/05/2021,Concept Staffing Ltd,834186,431.46,Temp.Contract-Agency Staff,Community Safety Projects,Pay
20/05/2021,Devon County Council,834394,7438,Devon County Council Consult.,Emergency Planning,Supplies & Services
20/05/2021,Devon Tree Services,834228,4080,Hra Shrubs & Trees - Communal,Estate Maintenance,Premises
20/05/2021,H & S Transport Ltd,834585,1661,Sub-Contractors,Land Drainage Water C - Assets,Premises
20/05/2021,Hags-Smp Playgrounds Ltd,833467,1984.4,Materials,Childrens Play Areas,Supplies & Services
20/05/2021,J & A Young (Leicester) Ltd,834205,3713,Materials,Litter Bins,Supplies & Services
20/05/2021,J P Lennard,833949,1073.56,Supplies And Equipment,Pyramids Swim & Leisure Centre,Supplies & Services
20/05/2021,James Andrews Recruitment Solutions Ltd,832410,321.62,Temp.Contract-Agency Staff,Planned Works,Pay
20/05/2021,James Andrews Recruitment Solutions Ltd,832410,482.44,Temp.Contract-Agency Staff,Reactive Repairs,Pay
20/05/2021,Kier Construction Ltd,834558,300832.3,Contract Payments,Leisure Complex - Build,Supplies & Services
20/05/2021,Lyreco Uk Ltd,832265,1800,Other Expenses,District Council Elections,Supplies & Services
20/05/2021,Mears Ltd,834563,37.95,Mears - Communal Areas/Non-Ppp,General Maintenance,Premises
20/05/2021,Mears Ltd,834563,551.25,Mears -Ppp Repairs(Exclusions),General Maintenance,Premises
20/05/2021,Mears Ltd,834564,434.5,Mears - Capital Response Costs,Adaptations,Premises
20/05/2021,Ministry Of Play,832307,2057,Sub-Contractors,Childrens Play Areas,Premises
20/05/2021,Ministry Of Play,834408,1135,Sub-Contractors,Childrens Play Areas,Premises
20/05/2021,P K Safety,833514,1789.95,"Clothing, Laundry, & Uniforms",Cleansing Overheads,Supplies & Services
20/05/2021,Protective Wear Supplies Ltd,834194,423.45,"Clothing, Laundry, & Uniforms",Parks And Playing Fields,Supplies & Services
20/05/2021,Recruitment Solutions (Sw) Ltd,832057,580.73,Casuals Waged-Agency Staff,Materials Reclamation Facility,Pay
20/05/2021,Rh Environmental Ltd,832983,3000,Subscriptions,Business Regulation Team,Supplies & Services
20/05/2021,Sherwoods (Sw) Ltd,833974,624,Heating Repairs,Pyramids Swim & Leisure Centre,Premises
20/05/2021,Sj Dark Ltd,834414,1482,Electrical Repairs,Riverside Leisure Centre,Premises
20/05/2021,Specialist Fleet Services Ltd,832289,419.66,Fleet Supply & Maintenance,Fleet Contract Hire,Transport
20/05/2021,Specialist Fleet Services Ltd,832290,773.63,Fleet Supply & Maintenance,Fleet Contract Hire,Transport
20/05/2021,Specialist Fleet Services Ltd,832291,773.63,Fleet Supply & Maintenance,Fleet Contract Hire,Transport
20/05/2021,Specialist Fleet Services Ltd,832292,773.63,Fleet Supply & Maintenance,Fleet Contract Hire,Transport
20/05/2021,Specialist Fleet Services Ltd,832293,903.23,Fleet Supply & Maintenance,Fleet Contract Hire,Transport
20/05/2021,Specialist Fleet Services Ltd,832302,491.48,Fleet Supply & Maintenance,Fleet Contract Hire,Transport
20/05/2021,Specialist Fleet Services Ltd,832303,3897.17,Fleet Supply & Maintenance,Fleet Contract Hire,Transport
20/05/2021,Specialist Fleet Services Ltd,832319,3897.17,Fleet Supply & Maintenance,Fleet Contract Hire,Transport
20/05/2021,Specialist Fleet Services Ltd,832322,691.3,Fleet Supply & Maintenance,Fleet Contract Hire,Transport
20/05/2021,Specialist Fleet Services Ltd,832632,20337.74,Fleet Supply & Maintenance,Fleet Contract Hire,Transport
20/05/2021,Specialist Fleet Services Ltd,834344,2218.22,Fleet Supply & Maintenance,Fleet Contract Hire,Transport
20/05/2021,Specialist Fleet Services Ltd,834345,1204.98,Fleet Supply & Maintenance,Fleet Contract Hire,Transport
20/05/2021,Specialist Fleet Services Ltd,834347,716.53,Fleet Supply & Maintenance,Fleet Contract Hire,Transport
20/05/2021,Specialist Fleet Services Ltd,834349,2339.33,Fleet Supply & Maintenance,Fleet Contract Hire,Transport
20/05/2021,Specialist Fleet Services Ltd,834350,810.7,Fleet Supply & Maintenance,Fleet Contract Hire,Transport
20/05/2021,Specialist Fleet Services Ltd,834362,482.46,Fleet Supply & Maintenance,Fleet Contract Hire,Transport
20/05/2021,Specialist Fleet Services Ltd,834366,691.3,Fleet Supply & Maintenance,Fleet Contract Hire,Transport
20/05/2021,Specialist Fleet Services Ltd,834367,691.3,Fleet Supply & Maintenance,Fleet Contract Hire,Transport
20/05/2021,Specialist Fleet Services Ltd,834368,691.3,Fleet Supply & Maintenance,Fleet Contract Hire,Transport
20/05/2021,Specialist Fleet Services Ltd,834369,691.3,Fleet Supply & Maintenance,Fleet Contract Hire,Transport
20/05/2021,Specialist Fleet Services Ltd,834370,691.3,Fleet Supply & Maintenance,Fleet Contract Hire,Transport
20/05/2021,Specialist Fleet Services Ltd,834371,691.3,Fleet Supply & Maintenance,Fleet Contract Hire,Transport
20/05/2021,Specialist Fleet Services Ltd,834372,2213.78,Fleet Supply & Maintenance,Fleet Contract Hire,Transport
20/05/2021,Specialist Fleet Services Ltd,834373,691.3,Fleet Supply & Maintenance,Fleet Contract Hire,Transport
20/05/2021,Specialist Fleet Services Ltd,834375,2339.33,Fleet Supply & Maintenance,Fleet Contract Hire,Transport
20/05/2021,Specialist Fleet Services Ltd,834379,751.4,Fleet Supply & Maintenance,Fleet Contract Hire,Transport
20/05/2021,Specialist Fleet Services Ltd,834380,488.45,Fleet Supply & Maintenance,Fleet Contract Hire,Transport
20/05/2021,Specialist Fleet Services Ltd,834382,618.55,Fleet Supply & Maintenance,Fleet Contract Hire,Transport
20/05/2021,Specialist Fleet Services Ltd,834383,618.55,Fleet Supply & Maintenance,Fleet Contract Hire,Transport
20/05/2021,Specialist Fleet Services Ltd,834384,626.51,Fleet Supply & Maintenance,Fleet Contract Hire,Transport
20/05/2021,Specialist Fleet Services Ltd,834385,626.51,Fleet Supply & Maintenance,Fleet Contract Hire,Transport
20/05/2021,Specialist Fleet Services Ltd,834387,511.33,Fleet Supply & Maintenance,Fleet Contract Hire,Transport
20/05/2021,Specialist Fleet Services Ltd,834388,728.4,Fleet Supply & Maintenance,Fleet Contract Hire,Transport
20/05/2021,Specialist Fleet Services Ltd,834389,511.33,Repairs,Transport Management,Transport
20/05/2021,Specialist Fleet Services Ltd,834390,504.77,Fleet Supply & Maintenance,Fleet Contract Hire,Transport
20/05/2021,Specialist Fleet Services Ltd,834392,504.77,Fleet Supply & Maintenance,Fleet Contract Hire,Transport
20/05/2021,Specialist Fleet Services Ltd,834393,511.33,Fleet Supply & Maintenance,Fleet Contract Hire,Transport
20/05/2021,Suez Recycling & Recovery Ltd,829505,1559.9,Comingled Haulage Out,Materials Reclamation Facility,Transport
20/05/2021,The Best Connection Group Ltd,832079,1075.68,Casuals Waged-Agency Staff,Materials Reclamation Facility,Pay
20/05/2021,The Oyster Partnership Ltd,833779,619.5,Temp.Contract-Agency Staff,Accountancy Services,Pay
20/05/2021,Vodafone,833892,2767.77,Data Line Rental,Strata Susp - Inv Paid By Ecc,Supplies & Services
20/05/2021,Wales Environmental Ltd T/A Drainology,833617,1780.84,Sub-Contractors,Oakwood House,Premises
20/05/2021,Wicksteed Leisure,826476,574.57,Materials,Childrens Play Areas,Supplies & Services
20/05/2021,Wilks,827705,578.49,Boat Maintenance,River Exe,Transport
21/05/2021,Aw Jenkinson Transport Ltd,832089,950,Comingled Haulage Out,Materials Reclamation Facility,Transport
21/05/2021,Berry Recruitment,832086,494.69,Casuals Waged-Agency Staff,Waste Agency Costs,Pay
21/05/2021,Bloom Procurement Services,834864,8561.35,Consultants Fees,Planned Works,Supplies & Services
21/05/2021,Carrington West Ltd,834728,587.5,Consultants Fees,Planning,Supplies & Services
21/05/2021,Cipd,834724,2045,Staff Training,Learning & Development,Pay
21/05/2021,Devon Tree Services,833333,810,Sub-Contractors,Arboricultural,Premises
21/05/2021,Devon Tree Services,833333,1350,Hra Shrubs & Trees - Communal,Estate Maintenance,Premises
21/05/2021,Devon Tree Services,834229,8159.1,Sub-Contractors,Arboricultural,Premises
21/05/2021,Edf Energy Customers Ltd,833508,10524.63,Electricity,Edf Electricity Suspense,Premises
21/05/2021,Edf Energy Customers Ltd,833524,2552.11,Electricity,Edf Electricity Suspense,Premises
21/05/2021,Edf Energy Customers Ltd,833525,3305.62,Electricity,Edf Electricity Suspense,Premises
21/05/2021,Edf Energy Customers Ltd,833526,559.07,Electricity,Edf Electricity Suspense,Premises
21/05/2021,Edf Energy Customers Ltd,833527,4451.55,Electricity,Edf Electricity Suspense,Premises
21/05/2021,Elite Training South West,834854,1500,Grants Issued,Kickstart Payments & Receipts,Supplies & Services
21/05/2021,Exeter & District Funeral Service,834416,1013,Burial Expenses-Section 46,Cemeteries,Supplies & Services
21/05/2021,Exeter & District Funeral Service,834423,1013,Burial Expenses-Section 46,Cemeteries,Supplies & Services
21/05/2021,Glen Cleaning,830395,583.51,Cleaning,Cleansing Overheads,Premises
21/05/2021,Glen Cleaning,833065,462.03,Cleaning,Underground Passages,Premises
21/05/2021,James Andrews Recruitment Solutions Ltd,833468,543.6,Temp.Contract-Agency Staff,Premises Licensing,Pay
21/05/2021,James Andrews Recruitment Solutions Ltd,833468,815.4,Temp.Contract-Agency Staff,Vehicles Licensing,Pay
21/05/2021,Jtt Contracting Ltd,825996,9974.7,Special Works,Cemeteries - Operational,Premises
21/05/2021,Jtt Contracting Ltd,830411,850,Sub-Contractors,Parks Infrastructure,Premises
21/05/2021,Kone Plc,834732,437.1,Door Entry Systems,Service Contracts,Premises
21/05/2021,Maker Coating Systems Ltd,834763,1045.81,Materials,Childrens Play Areas,Supplies & Services
21/05/2021,Room Service,832988,219.97,Catering,County Council Elections,Support Services
21/05/2021,Room Service,832988,219.96,Catering,District Council Elections,Support Services
21/05/2021,Room Service,832988,219.97,Catering,Pcc Elections,Support Services
21/05/2021,Specialist Fleet Services Ltd,829068,601.36,Fleet Supply & Maintenance,Fleet Contract Hire,Transport
21/05/2021,Specialist Fleet Services Ltd,832298,488.79,Fleet Supply & Maintenance,Fleet Contract Hire,Transport
21/05/2021,Specialist Fleet Services Ltd,832323,4162.82,Fleet Supply & Maintenance,Fleet Contract Hire,Transport
21/05/2021,Specialist Fleet Services Ltd,832330,903.57,Fleet Supply & Maintenance,Transport Management,Transport
21/05/2021,Specialist Fleet Services Ltd,834351,3901.38,Fleet Supply & Maintenance,Fleet Contract Hire,Transport
21/05/2021,Specialist Fleet Services Ltd,834352,3901.38,Fleet Supply & Maintenance,Fleet Contract Hire,Transport
21/05/2021,Specialist Fleet Services Ltd,834374,647.13,Fleet Supply & Maintenance,Fleet Contract Hire,Transport
21/05/2021,Specialist Fleet Services Ltd,834376,647.13,Fleet Supply & Maintenance,Fleet Contract Hire,Transport
21/05/2021,Specialist Fleet Services Ltd,834378,647.13,Fleet Supply & Maintenance,Fleet Contract Hire,Transport
21/05/2021,Specialist Fleet Services Ltd,834764,618.55,Fleet Supply & Maintenance,Fleet Contract Hire,Transport
21/05/2021,Suez Recycling & Recovery Ltd,831718,2766.4,Comingled Haulage Out,Materials & Goods For Resale,Transport
21/05/2021,Suez Recycling & Recovery Ltd,832745,2587.8,Comingled Haulage Out,Materials & Goods For Resale,Transport
21/05/2021,Suez Recycling & Recovery Ltd,833069,2762.6,Comingled Haulage Out,Materials & Goods For Resale,Transport
21/05/2021,Suez Recycling & Recovery Ltd,834583,2395.9,Comingled Haulage Out,Materials & Goods For Resale,Transport
21/05/2021,The Oyster Partnership Ltd,833778,1326,Temp.Contract-Agency Staff,Monitoring Private Housing,Pay
21/05/2021,The Purple Company (Uk) Ltd,834863,669.25,"Clothing, Laundry, & Uniforms",Northbrook Pool,Supplies & Services
21/05/2021,The Purple Company (Uk) Ltd,834863,669.25,"Clothing, Laundry, & Uniforms",Pyramids Swim & Leisure Centre,Supplies & Services
21/05/2021,Toco Digital,828506,925,Marketing,Building Greater Exeter,Supplies & Services
21/05/2021,Trump Engineering Ltd,832099,592,Maintenance Of Equipment,Materials Reclamation Facility,Supplies & Services
21/05/2021,University Of Exeter,834209,2079.22,Other Expenses,Building Greater Exeter,Supplies & Services
21/05/2021,Venn Group Ltd,834742,127.5,Temp.Contract-Agency Staff,Business Regulation Team,Pay
21/05/2021,Venn Group Ltd,834742,127.5,Temp.Contract-Agency Staff,Environmental Quality Team,Pay
21/05/2021,Venn Group Ltd,834742,127.5,Temp.Contract-Agency Staff,Neighbourhood Team,Pay
21/05/2021,Venn Group Ltd,834742,127.5,Temp.Contract-Agency Staff,Premises Licensing,Pay
21/05/2021,Venn Group Ltd,834742,127.5,Temp.Contract-Agency Staff,Vehicles Licensing,Pay
24/05/2021,Allstar Business Solutions,833674,308.65,Motor Fuel,Canal,Transport
24/05/2021,Allstar Business Solutions,833674,108.33,Motor Fuel,Cash Collection,Transport
24/05/2021,Allstar Business Solutions,833674,105.75,Motor Fuel,Cemeteries - Operational,Transport
24/05/2021,Allstar Business Solutions,833674,98.69,Motor Fuel,Cleansing Overheads,Transport
24/05/2021,Allstar Business Solutions,833674,30.23,Motor Fuel,Engineering & Construction,Transport
24/05/2021,Allstar Business Solutions,833674,139.51,Motor Fuel,Graffiti Cleaning,Transport
24/05/2021,Allstar Business Solutions,833674,2407.74,Motor Fuel,Green Waste Collection Service,Transport
24/05/2021,Allstar Business Solutions,833674,184.6,Motor Fuel,Housing Cleansing Round,Transport
24/05/2021,Allstar Business Solutions,833674,155.71,Motor Fuel,Litter Bins,Transport
24/05/2021,Allstar Business Solutions,833674,1191.99,Motor Fuel,Materials Reclamation Facility,Transport
24/05/2021,Allstar Business Solutions,833674,3295.31,Motor Fuel,Other Street Sweeping,Transport
24/05/2021,Allstar Business Solutions,833674,2891.32,Motor Fuel,Parks And Playing Fields,Transport
24/05/2021,Allstar Business Solutions,833674,1234.33,Motor Fuel,Parks Operational Overheads,Transport
24/05/2021,Allstar Business Solutions,833674,79.09,Motor Fuel,Property Assets - Builders,Transport
24/05/2021,Allstar Business Solutions,833674,95.01,Motor Fuel,Public Conveniences,Transport
24/05/2021,Allstar Business Solutions,833674,171.81,Motor Fuel,Ramm,Transport
24/05/2021,Allstar Business Solutions,833674,519.65,Motor Fuel,Reactive Team,Transport
24/05/2021,Allstar Business Solutions,833674,368.77,Motor Fuel,Recycling Round,Transport
24/05/2021,Allstar Business Solutions,833674,11094.25,Motor Fuel,Refuse Collection,Transport
24/05/2021,Allstar Business Solutions,833674,140.25,Motor Fuel,River Exe,Transport
24/05/2021,Allstar Business Solutions,833674,224.17,Motor Fuel,Special Collections,Transport
24/05/2021,Allstar Business Solutions,833674,3664.63,Motor Fuel,Trade Refuse & Recycling,Transport
24/05/2021,Berry Recruitment,829451,842.32,Casuals Waged-Agency Staff,Waste Agency Costs,Pay
24/05/2021,Concept Staffing Ltd,827137,719.11,Casuals Waged-Agency Staff,Other Street Sweeping,Pay
24/05/2021,Concept Staffing Ltd,833044,505.05,Casuals Waged-Agency Staff,Childrens Play Areas,Pay
24/05/2021,Concept Staffing Ltd,833045,505.05,Casuals Waged-Agency Staff,Other Street Sweeping,Pay
24/05/2021,Concept Staffing Ltd,833046,505.05,Casuals Waged-Agency Staff,Childrens Play Areas,Pay
24/05/2021,De Morgan Foundation,832729,4000,Museum Display Expenses,Ramm,Supplies & Services
24/05/2021,Edf Energy Customers Ltd,833518,5700.06,Electricity,Edf Electricity Suspense,Premises
24/05/2021,Matching Staff Solutions,832051,493.95,Casuals Waged-Agency Staff,Other Street Sweeping,Pay
24/05/2021,Matching Staff Solutions,832517,493.95,Casuals Waged-Agency Staff,Other Street Sweeping,Pay
24/05/2021,Matching Staff Solutions,834182,728,Casuals Waged-Agency Staff,Other Street Sweeping,Pay
24/05/2021,Real Life Psychology Cic (See 24955),833475,10865,Safesleep,Rough Sleeping Initiative,Supplies & Services
24/05/2021,Recruitment Solutions (Sw) Ltd,832035,1534.8,Casuals Waged-Agency Staff,Other Street Sweeping,Pay
24/05/2021,Recruitment Solutions (Sw) Ltd,832035,426.83,Casuals Waged-Agency Staff,Public Conveniences,Pay
24/05/2021,Recruitment Solutions (Sw) Ltd,833038,1077.83,Casuals Waged-Agency Staff,Other Street Sweeping,Pay
24/05/2021,Recruitment Solutions (Sw) Ltd,833038,569.1,Casuals Waged-Agency Staff,Public Conveniences,Pay
24/05/2021,South West Water,822882,1260.44,Water,Glencoe,Premises
24/05/2021,The Best Connection Group Ltd,830932,883.12,Casuals Waged-Agency Staff,Materials Reclamation Facility,Pay
24/05/2021,The Best Connection Group Ltd,833071,505.05,Casuals Waged-Agency Staff,Childrens Play Areas,Pay
24/05/2021,The Best Connection Group Ltd,833071,505.05,Casuals Waged-Agency Staff,Other Street Sweeping,Pay
24/05/2021,The Best Connection Group Ltd,833071,1064.7,Casuals Waged-Agency Staff,Parks And Playing Fields,Pay
24/05/2021,The Natural History Museum Trading Co,832039,8201,Museum - Temp Exhibitions,Ramm,Supplies & Services
24/05/2021,Tomra Sorting Ltd,797049,1130.7,Equipment Tools And Materials,Materials Reclamation Facility,Supplies & Services
24/05/2021,Young Devon,833332,7250,Young Persons Prevention Serv,Resettlement Strategy,Supplies & Services
25/05/2021,Airtech Humidity Controls Ltd T/A,835145,534.77,General Maintenance,General Maintenance,Premises
25/05/2021,Anne Priscott Associates Ltd,831515,4050,Consultants Fees,Planning,Supplies & Services
25/05/2021,Edf Energy Customers Ltd,833523,10738.75,Electricity,Ramm,Premises
25/05/2021,Great Western Hotel,834230,10404.78,Bed And Breakfast,Nsap,Premises
25/05/2021,Greendale Investments Ltd,833280,939.49,Insurance Premiums - Property,Safesleep,Premises
25/05/2021,John Kennard,835369,13163.93,Serviced Accommodation,Serviced Accommodation,Premises
25/05/2021,Jtt Contracting Ltd,834569,1410,Equipment Tools And Materials,Litter Bins,Supplies & Services
25/05/2021,Mears Ltd,835138,1510.33,Mears - Communal Areas/Non-Ppp,General Maintenance,Premises
25/05/2021,Mears Ltd,835138,470.96,Mears -Ppp Repairs(Exclusions),General Maintenance,Premises
25/05/2021,Mears Ltd,835138,101.34,Reactive Repairs To Property,Safesleep,Premises
25/05/2021,Mears Ltd,835140,16811.12,Mears - Ppv Voids (Inc & Excl),Repairs To Void Properties,Premises
25/05/2021,Mears Ltd,835294,1421.1,Mears - Communal Areas/Non-Ppp,General Maintenance,Premises
25/05/2021,Mears Ltd,835294,250.66,Mears -Ppp Repairs(Exclusions),General Maintenance,Premises
25/05/2021,Moonstone Associates Ltd,835349,450,Consultants Fees,Social Housing Delivery,Supplies & Services
25/05/2021,Mr M N Hassan,835200,17040.8,Serviced Accommodation,Serviced Accommodation,Premises
25/05/2021,Nute Plumbing Services Ltd,835198,5002,Bathroom Adaptations,Bathroom Replacements,Supplies & Services
25/05/2021,Pitney Bowes Finance Ltd,832982,665.29,Postage/Stamps,Mail,Supplies & Services
25/05/2021,Thomson Reuters,832712,26595.25,Publications/Leaflets,Legal Services,Supplies & Services
26/05/2021,Berry Recruitment,833056,494.69,Casuals Waged-Agency Staff,Waste Agency Costs,Pay
26/05/2021,Concept Staffing Ltd,832201,573.3,Casuals Waged-Agency Staff,Other Street Sweeping,Pay
26/05/2021,Concept Staffing Ltd,832202,505.05,Casuals Waged-Agency Staff,Other Street Sweeping,Pay
26/05/2021,Concept Staffing Ltd,832205,2539.12,Casuals Waged-Agency Staff,Waste Agency Costs,Pay
26/05/2021,Concept Staffing Ltd,833041,2546.48,Casuals Waged-Agency Staff,Waste Agency Costs,Pay
26/05/2021,Driver Hire Exeter Ltd,833040,675.25,Casuals Waged-Agency Staff,Waste Agency Costs,Pay
26/05/2021,Driver Hire Exeter Ltd,833613,743.73,Casuals Waged-Agency Staff,Waste Agency Costs,Pay
26/05/2021,Edf Energy,833939,1083.86,Electricity,Tenancy Services,Premises
26/05/2021,Gap Personnel,832477,457.32,Casuals Waged-Agency Staff,Waste Agency Costs,Pay
26/05/2021,Last House Media T/A Preston Street Films,833424,2242.5,Consultants Fees,Museum Npo,Supplies & Services
26/05/2021,Last House Media T/A Preston Street Films,833424,5000,Consultants Fees,Museum Projects,Supplies & Services
26/05/2021,Perfect Circle Jv Ltd,827884,3278.8,Aim Lease Requirements,Asset Imp & Maintenance Fund,Premises
26/05/2021,Purchase Power,833500,1020.77,Stationery,Mail,Supplies & Services
26/05/2021,Recruitment Solutions (Sw) Ltd,833772,621.48,Casuals Waged-Agency Staff,Waste Agency Costs,Pay
26/05/2021,The Best Connection Group Ltd,832083,505.05,Casuals Waged-Agency Staff,Childrens Play Areas,Pay
26/05/2021,The Best Connection Group Ltd,832083,505.05,Casuals Waged-Agency Staff,Other Street Sweeping,Pay
26/05/2021,The Best Connection Group Ltd,832083,1064.7,Casuals Waged-Agency Staff,Parks And Playing Fields,Pay
26/05/2021,University Of Exeter,834208,2034.12,Project Work,Museum Npo,Supplies & Services
26/05/2021,Wise Employment,832320,417.88,Casuals Waged-Agency Staff,Parks And Playing Fields,Pay
27/05/2021,Arque Ltd,798847,883.08,Contract Payments,Structural Repairs,Supplies & Services
27/05/2021,Arque Ltd,798848,819.86,Contract Payments,Structural Repairs,Supplies & Services
27/05/2021,Arque Ltd,801271,763.33,Contract Payments,Structural Repairs,Supplies & Services
27/05/2021,Asd Lighting Plc,835351,1048.04,Electrical Works - Communal,Prog'D Elec Re-Wiring General,Supplies & Services
27/05/2021,Asd Lighting Plc,835352,1098,Electrical Works - Communal,Prog'D Elec Re-Wiring General,Supplies & Services
27/05/2021,Asd Lighting Plc,835353,1220,Electrical Works - Communal,Prog'D Elec Re-Wiring General,Supplies & Services
27/05/2021,Asd Lighting Plc,835354,1074.16,Electrical Works - Communal,Prog'D Elec Re-Wiring General,Supplies & Services
27/05/2021,Asd Lighting Plc,835355,921,Electrical Works - Communal,Prog'D Elec Re-Wiring General,Supplies & Services
27/05/2021,Asd Lighting Plc,835356,998.16,Electrical Works - Communal,Prog'D Elec Re-Wiring General,Supplies & Services
27/05/2021,Asd Lighting Plc,835357,1305.48,Electrical Works - Communal,Prog'D Elec Re-Wiring General,Supplies & Services
27/05/2021,Asd Lighting Plc,835359,1457.48,Electrical Works - Communal,Prog'D Elec Re-Wiring General,Supplies & Services
27/05/2021,Asd Lighting Plc,835360,1419.48,Electrical Works - Communal,Prog'D Elec Re-Wiring General,Supplies & Services
27/05/2021,Asd Lighting Plc,835361,1419.48,Electrical Works - Communal,Prog'D Elec Re-Wiring General,Supplies & Services
27/05/2021,Asd Lighting Plc,835363,1343.48,Electrical Works - Communal,Prog'D Elec Re-Wiring General,Supplies & Services
27/05/2021,Asd Lighting Plc,835366,1296.82,Electrical Works - Communal,Prog'D Elec Re-Wiring General,Supplies & Services
27/05/2021,Aw Jenkinson Transport Ltd,833273,700,Comingled Haulage Out,Materials Reclamation Facility,Transport
27/05/2021,Berry Recruitment,833970,535.2,Casuals Waged-Agency Staff,Waste Agency Costs,Pay
27/05/2021,Colt International Limited,835542,686,Fire Alarm Testing,Service Contracts,Premises
27/05/2021,Concept Staffing Ltd,834095,2900.34,Casuals Waged-Agency Staff,Waste Agency Costs,Pay
27/05/2021,Devon Tree Services,835212,480,Sub-Contractors,Arboricultural,Premises
27/05/2021,Devon Tree Services,835538,1200,Sub-Contractors,Arboricultural,Premises
27/05/2021,Digital Id Picture Systems,834979,590,Equipment Tools And Materials,Civic Centre,Supplies & Services
27/05/2021,Dolphin Lifts South West,834856,2335,Grants Issued,Disabled Facilities Grants,Supplies & Services
27/05/2021,Dolphin Lifts South West,834958,2279,Grants Issued,Disabled Facilities Grants,Supplies & Services
27/05/2021,Dolphin Lifts South West,834959,2466.5,Grants Issued,Disabled Facilities Grants,Supplies & Services
27/05/2021,Dolphin Lifts South West,834960,1999,Grants Issued,Disabled Facilities Grants,Supplies & Services
27/05/2021,Envirovent Ltd,835297,573.57,General Maintenance,General Maintenance,Premises
27/05/2021,Exeter & District Funeral Service,834862,1013,Burial Expenses-Section 46,Cemeteries,Supplies & Services
27/05/2021,Faac (Uk) Ltd,835194,14956.85,Maintenance Of Equipment,Car Parks,Supplies & Services
27/05/2021,G B Sport & Leisure,831522,1650,Materials,Childrens Play Areas,Supplies & Services
27/05/2021,Gae Smith Holdings Ltd T/A Casepak,833953,3060.09,Processing Comingled Materials,Materials Reclamation Facility,Supplies & Services
27/05/2021,H & S Transport Ltd,834582,2796,Sub-Contractors,Allotments,Premises
27/05/2021,James Andrews Recruitment Solutions Ltd,833470,736.63,Temp.Contract-Agency Staff,General Management,Pay
27/05/2021,James Andrews Recruitment Solutions Ltd,834568,1036,Temp.Contract-Agency Staff,Human Resources,Pay
27/05/2021,Jones Lang Lasalle Ltd,832001,2500,Consultants Fees,New Build Site Investigations,Supplies & Services
27/05/2021,Larac,835536,445,Subscriptions,Recycling Management /Strategy,Supplies & Services
27/05/2021,Ministry Of Play,834978,1870,Sub-Contractors,Childrens Play Areas,Premises
27/05/2021,Nicholas Rowell Haulage Ltd,832994,2400,Comingled Haulage Out,Materials Reclamation Facility,Transport
27/05/2021,Recruitment Solutions (Sw) Ltd,833021,952.66,Casuals Waged-Agency Staff,Materials Reclamation Facility,Pay
27/05/2021,Source For Business T/A Sw Water Business,821151,2946.19,Water,Exeter Arena,Premises
27/05/2021,Source For Business T/A Sw Water Business,828556,678.35,Water,Public Conveniences,Premises
27/05/2021,South West Compactor Services,832993,889.21,Maintenance Of Equipment,Materials Reclamation Facility,Supplies & Services
27/05/2021,Southern Electric,830920,1719.37,Electricity,S Electric A/C 75840 98115,Premises
27/05/2021,Southern Electric,834928,8525.93,Electricity,S Electric A/C 75840 98115,Premises
27/05/2021,Specialist Fleet Services Ltd,829087,2198,Fleet Supply & Maintenance,Fleet Contract Hire,Transport
27/05/2021,Specialist Fleet Services Ltd,832299,478.11,Fleet Supply & Maintenance,Fleet Contract Hire,Transport
27/05/2021,Specialist Fleet Services Ltd,832309,606.89,Fleet Supply & Maintenance,Fleet Contract Hire,Transport
27/05/2021,Suez Recycling & Recovery Ltd,835510,2688.5,Comingled Haulage Out,Materials & Goods For Resale,Transport
27/05/2021,Teletrac Navman Uk Ltd,834929,447,Routine Maintenance,Parks And Playing Fields,Transport
27/05/2021,The Best Connection Group Ltd,833105,710.48,Casuals Waged-Agency Staff,Materials Reclamation Facility,Pay
27/05/2021,Turner Locker Barnfield,835549,461.81,Service Charges,Car Parks,Premises
27/05/2021,University Of Exeter,834425,2500,Other Expenses,Growth Projects,Supplies & Services
27/05/2021,William Hackett Chains Ltd,834506,1962.95,Maintenance Of Buoys,Mooring Repairs,Premises
28/05/2021,A1 Electrics,834204,490.5,Aim Reactive Repairs,Property Maintenance,Premises
28/05/2021,Ablou Facilities Ltd,833321,144,Event Security,County Council Elections,Supplies & Services
28/05/2021,Ablou Facilities Ltd,833321,144,Event Security,District Council Elections,Supplies & Services
28/05/2021,Ablou Facilities Ltd,833321,144,Event Security,Pcc Elections,Supplies & Services
28/05/2021,Apex Scaffolding Services (Exeter) Ltd,827588,740,Sub-Contractors,Canal,Premises
28/05/2021,Astley Media,835869,1500,Grants Issued,Kickstart Payments & Receipts,Supplies & Services
28/05/2021,Astley Media,835870,1500,Grants Issued,Kickstart Payments & Receipts,Supplies & Services
28/05/2021,Berry Recruitment,833066,534.8,Casuals Waged-Agency Staff,Other Street Sweeping,Pay
28/05/2021,Berry Recruitment,833971,842.32,Casuals Waged-Agency Staff,Other Street Sweeping,Pay
28/05/2021,Bournemouth Churches Housing Assn (Bcha),833758,39188.75,Miscellaneous Expenditure,Rough Sleeping Initiative,Supplies & Services
28/05/2021,Carrington West Ltd,835663,556.25,Consultants Fees,Planning,Supplies & Services
28/05/2021,Concept Staffing Ltd,834183,844.1,Casuals Waged-Agency Staff,Other Street Sweeping,Pay
28/05/2021,Concept Staffing Ltd,834185,602.93,Casuals Waged-Agency Staff,Other Street Sweeping,Pay
28/05/2021,Corona Energy,827073,576.95,Water,Wonford Sports Centre,Premises
28/05/2021,Corona Energy,833708,1809.08,Gas,Pyramids Swim & Leisure Centre,Premises
28/05/2021,Corona Energy,833721,1743.1,Gas,Pyramids Swim & Leisure Centre,Premises
28/05/2021,Corona Energy,833728,1119.78,Gas,Riverside Leisure Centre,Premises
28/05/2021,Corona Energy,833731,417.46,Gas,Isca Centre,Premises
28/05/2021,Corona Energy,833734,1972.49,Gas,Pyramids Swim & Leisure Centre,Premises
28/05/2021,Debit Finance Collections Plc,835881,1180,Software Licences/Support,Leisure Facilities Contract,Supplies & Services
28/05/2021,Dennis James & Co Client Acc,835531,305.77,Spend To Save,Housing Access,Supplies & Services
28/05/2021,Dennis James & Co Client Acc,835531,305.77,Spend To Save,Housing Advice,Supplies & Services
28/05/2021,Devon Tree Services,835728,3446.87,Sub-Contractors,Arboricultural,Premises
28/05/2021,European Asbestos Services Ltd,835709,438,Asbestos Removal,Asbestos,Premises
28/05/2021,European Asbestos Services Ltd,835710,610,Asbestos Removal,Asbestos,Premises
28/05/2021,European Asbestos Services Ltd,835711,508.6,Asbestos Removal,Asbestos,Premises
28/05/2021,Glen Cleaning,835335,583.51,Cleaning,Oakwood House,Premises
28/05/2021,H & S Transport Ltd,834579,1645.62,Sub-Contractors,Anti-Intrusion Measures,Premises
28/05/2021,Hydro-X Water Treatment Ltd,835826,630,Water Sampling,Exeter Arena,Premises
28/05/2021,Inexeter Ltd,834940,4966.74,Contract Payments,Exeter Bid Company,Supplies & Services
28/05/2021,Inexeter Ltd,834942,251114.26,Contract Payments,Exeter Bid Company - From 2020,Supplies & Services
28/05/2021,Inexeter Ltd,835726,80000,Contributions,Arg - Business Support,Supplies & Services
28/05/2021,Integrated Water Services,833521,1904.14,Pmf Compliance,Property Maintenance,Premises
28/05/2021,James Andrews Recruitment Solutions Ltd,833469,244.85,Temp.Contract-Agency Staff,Planned Works,Pay
28/05/2021,James Andrews Recruitment Solutions Ltd,833469,367.28,Temp.Contract-Agency Staff,Reactive Repairs,Pay
28/05/2021,James Andrews Recruitment Solutions Ltd,835435,736.63,Temp.Contract-Agency Staff,General Management,Pay
28/05/2021,Jazmine Miles-Long,835289,875,Equipment Tools And Materials,Museum Projects,Supplies & Services
28/05/2021,Leisure Net Solutions Ltd,835526,1542,Miscellaneous Grants,Leisure Facilities Contract,Supplies & Services
28/05/2021,M A Vernon Ltd,835544,850,General Maintenance,Repairs To Void Properties,Premises
28/05/2021,M A Vernon Ltd,835545,550,General Maintenance,Repairs To Void Properties,Premises
28/05/2021,Marine & Civil Solutions Ltd,832700,46141.34,Sub-Contractors,Salmonpool Swing Bridge,Premises
28/05/2021,Matching Staff Solutions,833773,493.95,Casuals Waged-Agency Staff,Other Street Sweeping,Pay
28/05/2021,Mcqueenie Mulholland,834505,24000,Advertising,Arg - Business Support,Supplies & Services
28/05/2021,Ppm South West Ltd,835871,1010.75,Grants Issued,Kickstart Payments & Receipts,Supplies & Services
28/05/2021,Protective Wear Supplies Ltd,832989,477.41,"Clothing, Laundry, & Uniforms",Parks And Playing Fields,Supplies & Services
28/05/2021,Rainbow Plants,833512,540.21,Materials,Cemeteries - Operational,Supplies & Services
28/05/2021,Rps Service Ltd,827892,995,Maintenance Of Equipment,Conservation Laboratory,Supplies & Services
28/05/2021,Sj Dark Ltd,834412,5480,Fire Alarm Testing,Riverside Leisure Centre,Premises
28/05/2021,Sonovate Ltd (Buckingham Futures),833963,900,Temp.Contract-Agency Staff,Monitoring Private Housing,Pay
28/05/2021,Sonovate Ltd (Buckingham Futures),834922,1050,Temp.Contract-Agency Staff,Monitoring Private Housing,Pay
28/05/2021,Sonovate Ltd (Buckingham Futures),835828,1050,Temp.Contract-Agency Staff,Monitoring Private Housing,Pay
28/05/2021,Source For Business T/A Sw Water Business,833888,3721.86,Water,Older Persons Accommodation,Premises
28/05/2021,South West Water,833889,1411.69,Water,Capital payment,Premises
28/05/2021,South West Water,833890,1411.69,Water,Tenancy Services,Premises
28/05/2021,Southern Electric,830401,811.85,Electricity,Older Persons Accommodation,Premises
28/05/2021,Southern Electric,833943,642.64,Electricity,Tenancy Services,Premises
28/05/2021,Specialist Fleet Services Ltd,835291,12183.88,Routine Maintenance,Transport Management,Transport
28/05/2021,Stagecoach Services Ltd,833880,603.45,Public Transport,Green Travel Plan,Transport
28/05/2021,Stalite Signs Ltd,835524,714,Project Work,Ramm,Supplies & Services
28/05/2021,Sw Testing Services Ltd,835441,490,Maintenance Of Equipment,Ramm,Supplies & Services
28/05/2021,Technical Safety Products Ltd,835128,628.77,Equipment Tools And Materials,Museum Npo,Supplies & Services
28/05/2021,The Best Connection Group Ltd,825739,812.18,Casuals Waged-Agency Staff,Childrens Play Areas,Pay
28/05/2021,The Best Connection Group Ltd,825739,1064.7,Casuals Waged-Agency Staff,Other Street Sweeping,Pay
28/05/2021,The Oyster Partnership Ltd,835722,590,Temp.Contract-Agency Staff,Accountancy Services,Pay
28/05/2021,Tpas,834747,1450,Subscriptions,General Management,Supplies & Services
28/05/2021,Venn Group Ltd,833876,206.64,Temp.Contract-Agency Staff,Planned Works,Pay
28/05/2021,Venn Group Ltd,833876,309.96,Temp.Contract-Agency Staff,Reactive Repairs,Pay
28/05/2021,Venn Group Ltd,835884,119,Temp.Contract-Agency Staff,Business Regulation Team,Pay
28/05/2021,Venn Group Ltd,835884,119,Temp.Contract-Agency Staff,Contaminated Land Survey,Pay
28/05/2021,Venn Group Ltd,835884,119,Temp.Contract-Agency Staff,Environmental Quality Team,Pay
28/05/2021,Venn Group Ltd,835884,119,Temp.Contract-Agency Staff,Neighbourhood Team,Pay
28/05/2021,Venn Group Ltd,835884,119,Temp.Contract-Agency Staff,Vehicles Licensing,Pay
28/05/2021,W B Employment Ltd,833732,300.38,Casuals Waged-Agency Staff,Other Street Sweeping,Pay
28/05/2021,W B Employment Ltd,833732,654.17,Casuals Waged-Agency Staff,Parks And Playing Fields,Pay
28/05/2021,Westcountry Fire Protection Ltd,835658,687.5,Contract Payments,Fire Risk Assessment Works,Supplies & Services
28/05/2021,Westcountry Fire Protection Ltd,835659,687.5,Contract Payments,Fire Risk Assessment Works,Supplies & Services
28/05/2021,Westcountry Fire Protection Ltd,835660,687.5,Contract Payments,Fire Risk Assessment Works,Supplies & Services
28/05/2021,Westcountry Fire Protection Ltd,835695,1830.95,Fire Alarm Testing,Service Contracts,Premises
28/05/2021,Westcountry Fire Protection Ltd,835696,5984,Emergency Light Testing,Service Contracts,Premises
28/05/2021,Wise Employment,833612,835.76,Casuals Waged-Agency Staff,Parks And Playing Fields,Pay
28/05/2021,Zurich Municipal,835668,8000,Liability Insurance Premiums,Public Liability Insurance,Pay
28/05/2021,Zurich Municipal,835669,25371.83,Liability Insurance Premiums,Public Liability Insurance,Pay
28/05/2021,Zurich Municipal,835670,10783.3,Insurance Premiums - Property,Commercial Properties,Premises
28/05/2021,Zurich Municipal,835671,1255.86,Insurance Premiums - Property,Commercial Properties,Premises
28/05/2021,Zurich Municipal,835672,918.41,Liability Insurance Premiums,Exeter City Living Ltd,Pay
28/05/2021,Zurich Municipal,835689,10965.43,Liability Insurance Premiums,Public Liability Insurance,Pay
28/05/2021,Zurich Municipal,835690,587287.7,Liability Insurance Premiums,Public Liability Insurance,Pay
01/06/2021,Aquarius Solutions,826030,909,Materials,Graffiti Cleaning,Supplies & Services
01/06/2021,Asd Lighting Plc,835625,1381.48,Electrical Works - Communal,Prog'D Elec Re-Wiring General,Supplies & Services
01/06/2021,Asd Lighting Plc,835626,1381.48,Electrical Works - Communal,Prog'D Elec Re-Wiring General,Supplies & Services
01/06/2021,Bloom Procurement Services,833986,1680,Project Work,Riverside,Supplies & Services
01/06/2021,Devon Norse Ltd,834302,536.64,Cleaning,Cctv Control Room,Premises
01/06/2021,Dfr Roofing Ltd,833983,4082,Contract Payments,Ramm Roof,Supplies & Services
01/06/2021,Gap Personnel,832045,457.32,Casuals Waged-Agency Staff,Waste Agency Costs,Pay
01/06/2021,H & S Transport Ltd,835914,2142,Sub-Contractors,Land Drainage Water C - Assets,Premises
01/06/2021,Learn To Finance Ltd,836258,920,Consultants Fees,Cash & Income Management,Supplies & Services
01/06/2021,Lex Autolease,835906,4399.92,Car Leasing,Mayoralty,Transport
01/06/2021,Liberty Gas Group Ltd,835939,24660.83,Gas & Central Heating,Service Contracts,Premises
01/06/2021,Liberty Gas Group Ltd,835940,17202.12,Gas & Central Heating,Service Contracts,Premises
01/06/2021,Liberty Gas Group Ltd,835945,1835.43,Gas & Central Heating,Service Contracts,Premises
01/06/2021,Meltwater (Uk) Ltd,836240,20000,Licences,Sport England Pathfinder,Supplies & Services
01/06/2021,Philip Steele Building Equipment Ltd,832097,910.71,Aim Lease Requirements,Miscellaneous Properties,Premises
01/06/2021,Recruitment Solutions (Sw) Ltd,833762,1388.76,Casuals Waged-Agency Staff,Other Street Sweeping,Pay
01/06/2021,Recruitment Solutions (Sw) Ltd,833762,433.6,Casuals Waged-Agency Staff,Public Conveniences,Pay
01/06/2021,Sherwoods (Sw) Ltd,835199,1673.03,General Maintenance,Riverside Leisure Centre,Premises
01/06/2021,Southern Electric,830389,11770.74,Electricity,S Electric A/C 04748 69417,Premises
01/06/2021,Strata Service Solutions Ltd,834419,4295.55,Payment To Strata,Mobile Device Chgs For Rechge,Supplies & Services
01/06/2021,The Housing Ombudsman,834410,12644.64,Subscriptions,General Management,Supplies & Services
01/06/2021,The Oyster Partnership Ltd,833780,937.5,Temp.Contract-Agency Staff,Rough Sleeper Co-Ordinator,Pay
01/06/2021,West Coast Windows,834188,2846,Aim Reactive Repairs,Property Maintenance,Premises
02/06/2021,Apex Photo Agency Limited,836465,520,Photographic Contract/Work,Mayoralty,Supplies & Services
02/06/2021,Exeter City Living,834305,4247.2,Contract Payments,Hamlin Gardens,Supplies & Services
02/06/2021,Glendale Countryside Ltd,835719,10806.53,Grounds Costs,Garden Assistance,Premises
02/06/2021,H & S Transport Ltd,835916,771,Sub-Contractors,Parks Infrastructure,Premises
02/06/2021,Integrated Water Services,836407,4808.92,Legionella Testing,Service Contracts,Premises
02/06/2021,James Andrews Recruitment Solutions Ltd,834565,767.75,Temp.Contract-Agency Staff,General Management,Pay
02/06/2021,John Kennard,836288,5040,Bed And Breakfast,Bed And Breakfast,Premises
02/06/2021,John Kennard,836289,5580,Bed And Breakfast,Bed And Breakfast,Premises
02/06/2021,Kier Construction Ltd,836267,179387.13,Contract Payments,St Loyes Extracare Scheme,Supplies & Services
02/06/2021,Kier Construction Ltd,836460,93001.59,Contract Payments,Bus Station Construction,Supplies & Services
02/06/2021,Liberty Gas Group Ltd,835943,2585.37,Gas Equip Replacement,General Maintenance,Premises
02/06/2021,Mears Ltd,835885,1469.74,General Maintenance,General Maintenance,Premises
02/06/2021,Mears Ltd,835887,5057.95,Mears - Communal Areas/Non-Ppp,General Maintenance,Premises
02/06/2021,Mears Ltd,835887,2943.68,Mears -Ppp Repairs(Exclusions),General Maintenance,Premises
02/06/2021,Mears Ltd,835887,23.05,Mears -Psl Properties(Non-Ppp),General Maintenance,Premises
02/06/2021,Mears Ltd,835888,47412.22,Mears - Ppv Voids (Inc & Excl),Repairs To Void Properties,Premises
02/06/2021,Mi-Space (Uk) Ltd,836242,1680,Asbestos Surveys - Planned,Asbestos,Premises
02/06/2021,Moorland Fuels,834727,1170,Motor Fuel,Materials Reclamation Facility,Transport
02/06/2021,Moorland Fuels,834729,1872,Targeted Savings,Materials Reclamation Facility,Transport
03/06/2021,Aquarius Solutions,835918,606,Materials,Graffiti Cleaning,Supplies & Services
03/06/2021,Aquarius Solutions,835918,909,Cleaning Materials,Rhss & Welcome Back Funds,Premises
03/06/2021,Austin Energy Services,833048,795,Service Charges,Bradninch Place,Premises
03/06/2021,Aylwyn Bowen (Dha Bowen),835548,1985,Marketing,Leisure Facilities Contract,Supplies & Services
03/06/2021,Bartec Auto Id Ltd,836302,3800,Equipment Tools And Materials,Trade Refuse & Recycling,Supplies & Services
03/06/2021,Concept Staffing Ltd,832518,887.26,Temp.Contract-Agency Staff,Rapid Rehousing Pathway Fund,Pay
03/06/2021,Couch Perry & Wilkes Environmental Llp,836112,3500,Heating Repairs,Riverside Leisure Centre,Premises
03/06/2021,Devon County Council,835504,2942,Devon County Council Consult.,Land Charges,Supplies & Services
03/06/2021,Devon Mediation Service,835729,1000,Family Mediation Service,Community Safety Partnerships,Supplies & Services
03/06/2021,Future Industrial Services Ltd,835691,1328.03,Sub-Contractors,Oakwood House,Premises
03/06/2021,Kendall Kingscott Ltd,835823,4600,Contract Payments,Laings Refurbishments,Supplies & Services
03/06/2021,Morgan Hunt Uk Ltd,833513,479.86,Temp.Contract-Agency Staff,Revenues Recovery,Pay
03/06/2021,Morgan Hunt Uk Ltd,835665,479.86,Temp.Contract-Agency Staff,Revenues Recovery,Pay
03/06/2021,Patronus Security Uk Ltd,836450,1997.5,Other Expenses,Serviced Accommodation,Supplies & Services
03/06/2021,Patronus Security Uk Ltd,836453,2014.5,Other Expenses,Serviced Accommodation,Supplies & Services
03/06/2021,Patronus Security Uk Ltd,836454,2006,Other Expenses,Serviced Accommodation,Supplies & Services
03/06/2021,Patronus Security Uk Ltd,836455,2320.5,Other Expenses,Serviced Accommodation,Supplies & Services
03/06/2021,Patronus Security Uk Ltd,836457,2006,Other Expenses,Serviced Accommodation,Supplies & Services
03/06/2021,Patronus Security Uk Ltd,836458,2006,Other Expenses,Serviced Accommodation,Supplies & Services
03/06/2021,Patronus Security Uk Ltd,836459,2057,Other Expenses,Serviced Accommodation,Supplies & Services
03/06/2021,Pennington Choices Ltd,833426,1390,Fire Risk Assessment,Exeter Arena,Premises
03/06/2021,Pennington Choices Ltd,833426,795,Fire Risk Assessment,Isca Centre,Premises
03/06/2021,Pennington Choices Ltd,833426,695,Fire Risk Assessment,Northbrook Pool,Premises
03/06/2021,Pennington Choices Ltd,833426,995,Fire Risk Assessment,Wonford Sports Centre,Premises
03/06/2021,Prosigns + Graphics South West,836602,536,Equipment Tools And Materials,Exeter Corn Exchange,Supplies & Services
03/06/2021,Roberts Limbrick Ltd,836305,1775,Consultants Fees,Leisure Complex - Build,Supplies & Services
03/06/2021,Se3 Design Ltd,835882,1800,Contract Payments,Leisure Complex - Build,Supplies & Services
03/06/2021,Spektrix Ltd,836591,878.18,Event Promotion,Exeter Corn Exchange,Supplies & Services
03/06/2021,Sports Turf Research Institute,835829,1063.5,Sub-Contractors,Pinhoe Playing Field Upgrades,Premises
03/06/2021,Telstar Guest House Ltd,836263,1580.95,Bed And Breakfast,Bed And Breakfast,Premises
03/06/2021,Telstar Guest House Ltd,836264,1066.67,Bed And Breakfast,Bed And Breakfast,Premises
03/06/2021,Telstar Guest House Ltd,836265,1066.67,Bed And Breakfast,Bed And Breakfast,Premises
03/06/2021,Telstar Guest House Ltd,836266,1109.52,Bed And Breakfast,Bed And Breakfast,Premises
03/06/2021,Westward Housing,836668,600,Spend To Save,Housing Advice,Supplies & Services
03/06/2021,Whizz Kids Toys Community Interest Company,836612,1500,Grants Issued,Kickstart Payments & Receipts,Supplies & Services
03/06/2021,Wider Plan Ltd,835371,8.27,Commission,Payroll,Supplies & Services
03/06/2021,William Hackett Chains Ltd,834858,1930,Equipment Tools And Materials,Canal,Supplies & Services
04/06/2021,Adt Fire And Security,833087,785.87,Equipment Tools And Materials,Underground Passages,Supplies & Services
04/06/2021,Advanced Business Solutions,836753,19167.5,Contract Payments,Finance System Upgrade,Supplies & Services
04/06/2021,Airtech Humidity Controls Ltd T/A,836643,805.93,General Maintenance,General Maintenance,Premises
04/06/2021,Approved Property Management (Apm P2 Ltd,836614,1175.4,Bed And Breakfast,Bed And Breakfast,Premises
04/06/2021,Asd Lighting Plc,836640,1965,Electrical Works - Communal,Prog'D Elec Re-Wiring General,Supplies & Services
04/06/2021,Asd Lighting Plc,836642,1457.48,Electrical Works - Communal,Prog'D Elec Re-Wiring General,Supplies & Services
04/06/2021,Clc Contractors Ltd,836764,12613.38,Re-Roofing Houses,Programmed Re-Roofing,Supplies & Services
04/06/2021,Clc Contractors Ltd,836769,710,General Maintenance,Low Maint & Painting Flats,Premises
04/06/2021,Clc Contractors Ltd,836769,6657.24,General Maintenance,Re-Pointing,Premises
04/06/2021,Clc Contractors Ltd,836776,5320,General Maintenance,Low Maint & Painting Flats,Premises
04/06/2021,Concept Staffing Ltd,833053,655.18,Temp.Contract-Agency Staff,Community Safety Projects,Pay
04/06/2021,Corona Energy,833742,2665.69,Gas,Pyramids Swim & Leisure Centre,Premises
04/06/2021,Croft Surveyors,836669,700,Contract Payments,Structural Repairs,Supplies & Services
04/06/2021,Devon Tree Services,833984,1410,Sub-Contractors,Arboricultural,Premises
04/06/2021,Edf Energy Customers Ltd,834947,1259.05,Electricity,Northbrook Pool,Premises
04/06/2021,Edf Energy Customers Ltd,834949,1043.92,Electricity,Edf Electricity Suspense,Premises
04/06/2021,Edf Energy Customers Ltd,834950,1760.82,Electricity,Edf Electricity Suspense,Premises
04/06/2021,Edf Energy Customers Ltd,834951,461.96,Electricity,Edf Electricity Suspense,Premises
04/06/2021,Edf Energy Customers Ltd,834953,3072.61,Electricity,Older Persons Accommodation,Premises
04/06/2021,Edf Energy Customers Ltd,834954,6215.32,Electricity,Edf Electricity Suspense,Premises
04/06/2021,Edf Energy Customers Ltd,834957,710.43,Electricity,Edf Electricity Suspense,Premises
04/06/2021,Enelco Ltd,835824,114492.42,Contract Payments,Laings Refurbishments,Supplies & Services
04/06/2021,European Asbestos Services Ltd,836620,823.2,Asbestos Removal,Asbestos,Premises
04/06/2021,European Asbestos Services Ltd,836628,480,Asbestos Removal,Asbestos,Premises
04/06/2021,European Asbestos Services Ltd,836631,1837.2,Asbestos Removal,Asbestos,Premises
04/06/2021,European Asbestos Services Ltd,836773,480,Asbestos Removal,Asbestos,Premises
04/06/2021,European Asbestos Services Ltd,836774,705.6,Asbestos Removal,Asbestos,Premises
04/06/2021,Glen Cleaning,836277,462.03,Cleaning,Underground Passages,Premises
04/06/2021,I J Cannings & Son Limited,832990,62.24,Service Charges,Bradninch Place,Premises
04/06/2021,I J Cannings & Son Limited,832990,206.4,Aim Lease Requirements,Commercial Properties,Premises
04/06/2021,I J Cannings & Son Limited,832990,79.4,Sub-Contractors,Ecqt Suspense,Premises
04/06/2021,I J Cannings & Son Limited,832990,190.6,Aim Lease Requirements,Miscellaneous Properties,Premises
04/06/2021,I J Cannings & Son Limited,832990,1474.76,Pmf Compliance,Property Maintenance,Premises
04/06/2021,I J Cannings & Son Limited,834181,907.65,Pmf Compliance,Property Maintenance,Premises
04/06/2021,Integrated Water Services,833495,2160.65,Pmf Compliance,Property Maintenance,Premises
04/06/2021,Integrated Water Services,835350,731.04,Legionella Testing,Engineering & Construction,Premises
04/06/2021,James Andrews Recruitment Solutions Ltd,835445,1036,Temp.Contract-Agency Staff,Human Resources,Pay
04/06/2021,James Andrews Recruitment Solutions Ltd,836665,632.88,Temp.Contract-Agency Staff,General Management,Pay
04/06/2021,James Andrews Recruitment Solutions Ltd,836666,1036,Temp.Contract-Agency Staff,Human Resources,Pay
04/06/2021,John Kennard,836617,5580,Bed And Breakfast,Bed And Breakfast,Premises
04/06/2021,Jrc Consulting Engineers Ltd,836748,1150,Contract Payments,Adaptations,Supplies & Services
04/06/2021,Keychange Charity,835181,2230,Bed And Breakfast,Bed And Breakfast,Premises
04/06/2021,Kone Plc,836613,793.31,Door Entry Systems,Service Contracts,Premises
04/06/2021,Lyreco Uk Ltd,836651,367.2,Other Expenses,District Council Elections,Supplies & Services
04/06/2021,Lyreco Uk Ltd,836651,64.8,Other Expenses,Procurement,Supplies & Services
04/06/2021,Mears Ltd,836547,7032.09,Mears - Capital Response Costs,Adaptations,Premises
04/06/2021,Mears Ltd,836548,1181.27,Mears - Communal Areas/Non-Ppp,General Maintenance,Premises
04/06/2021,Mears Ltd,836548,1047.74,Mears -Ppp Repairs(Exclusions),General Maintenance,Premises
04/06/2021,Mears Ltd,836549,1437.97,General Maintenance,General Maintenance,Premises
04/06/2021,Mears Ltd,836551,1789.1,General Maintenance,Repairs To Void Properties,Premises
04/06/2021,Mears Ltd,836551,6628.26,Mears - Ppv Voids (Inc & Excl),Repairs To Void Properties,Premises
04/06/2021,Mears Ltd,836659,199.21,Mears - Communal Areas/Non-Ppp,General Maintenance,Premises
04/06/2021,Mears Ltd,836659,66.11,Mears - Rechargeable Works,General Maintenance,Premises
04/06/2021,Mears Ltd,836659,221.64,Mears -Ppp Repairs(Exclusions),General Maintenance,Premises
04/06/2021,Mears Ltd,836659,61.75,Mears -Psl Properties(Non-Ppp),General Maintenance,Premises
04/06/2021,Mercury Construction (South West) Ltd,835362,6288.19,Aim Reactive Repairs,Property Maintenance,Premises
04/06/2021,Peter Stevens,836615,3555,Bed And Breakfast,Bed And Breakfast,Premises
04/06/2021,Propoint Southwest Ltd,836635,495,General Maintenance,General Maintenance,Premises
04/06/2021,Rd & E Nhs Foundation Trust,835717,81727.76,Miscellaneous Recharge Income,Paris Suspense,Income
04/06/2021,Royal Mail,833972,584.06,Postage/Stamps,Electoral Registration,Supplies & Services
04/06/2021,Savills (Uk) Ltd,836256,566.75,Service Charges,Underground Passages,Premises
04/06/2021,Schneider Electric Ltd,833103,2561.67,Aim Reactive Repairs,Property Maintenance,Premises
04/06/2021,Shield Environmental Services,833520,1036,Pmf Compliance,Property Maintenance,Premises
04/06/2021,South West Hire + Sales Ltd,832742,462,Materials,Parks And Playing Fields,Supplies & Services
04/06/2021,South West Hire + Sales Ltd,832751,462,Materials,Parks And Playing Fields,Supplies & Services
04/06/2021,South West Water,832483,548.89,Water,Reactive Repairs,Premises
04/06/2021,South West Water,833936,968.36,Water,Extralet,Premises
04/06/2021,Southern Electric,834931,636.16,Electricity,S Electric A/C 63013 09118,Premises
04/06/2021,Stonewater Ltd,835072,4890.4,Serviced Accommodation,Serviced Accommodation,Premises
04/06/2021,Stq Vantage,835737,688,Pmf Compliance,Property Maintenance,Premises
04/06/2021,Stq Vantage,835931,463,Service Charges,Bradninch Place,Premises
04/06/2021,W J Mathews (Exeter) Ltd,835714,917.2,Aim Reactive Repairs,Property Maintenance,Premises
04/06/2021,Wales Environmental Ltd T/A Drainology,836751,1495,General Maintenance,General Maintenance,Premises
04/06/2021,Wemco Ltd,835442,371.44,Sub-Contractors,Ecqt Suspense,Premises
04/06/2021,Wemco Ltd,835442,2162.49,Aim Service & Maintenance,Property Maintenance,Premises
04/06/2021,Wemco Ltd,835443,6688.34,Aim Reactive Repairs,Property Maintenance,Premises
04/06/2021,Whistl Uk Ltd,834207,579.64,Postage/Stamps,Mail,Supplies & Services
04/06/2021,Wsp Uk Ltd,834293,546.13,Contract Payments,Leisure Complex - Build,Supplies & Services
07/06/2021,Association Of Electoral Administrators,835347,725.16,Training,County Council Elections,Support Services
07/06/2021,Association Of Electoral Administrators,835347,725.17,Training,District Council Elections,Support Services
07/06/2021,Association Of Electoral Administrators,835347,725.17,Training,Pcc Elections,Support Services
07/06/2021,Devon & Dorset Bathrooms,835522,3343.2,Grants Issued,Disabled Facilities Grants,Supplies & Services
07/06/2021,Exeter City Community Trust,835446,10677.56,Other Expenses,Lord Mayors Charity,Supplies & Services
07/06/2021,Gemini Consultants Ltd,835705,5323.28,Mortgage Administration,Accountancy Services,Supplies & Services
07/06/2021,Greendale Investments Ltd,835721,7500,Rents,Safesleep,Premises
07/06/2021,Information Commissioner,836558,2900,Subscriptions,Corporate Costs,Supplies & Services
07/06/2021,James Andrews Recruitment Solutions Ltd,835434,298.8,Temp.Contract-Agency Staff,Planned Works,Pay
07/06/2021,James Andrews Recruitment Solutions Ltd,835434,448.2,Temp.Contract-Agency Staff,Reactive Repairs,Pay
07/06/2021,Liberty Gas Group Ltd,835944,110358.69,Contract Payments,Boiler Replacement Programme,Supplies & Services
07/06/2021,Lnrs Data Services Ltd T/A Lexis Nexis Uk,836301,1362,Subscriptions,Human Resources,Supplies & Services
07/06/2021,Richard Penn Consultancy,831493,1700,Consultants Fees,Chief Executive & Growth Dir,Supplies & Services
07/06/2021,Strata Service Solutions Ltd,835739,12277.28,Payment To Strata,Recharges From Strata,Supplies & Services
07/06/2021,Strata Service Solutions Ltd,835924,1218.24,Payment To Strata,Recharges From Strata,Supplies & Services
07/06/2021,Strata Service Solutions Ltd,835925,1218.24,Payment To Strata,Recharges From Strata,Supplies & Services
07/06/2021,Stratton Creber Commercial,836660,2534.25,Rents,Ramm,Premises
07/06/2021,Stratton Creber Commercial,836660,347,Service Charges,Ramm,Premises
07/06/2021,The Oyster Partnership Ltd,834734,937.5,Temp.Contract-Agency Staff,Rough Sleeper Co-Ordinator,Pay
07/06/2021,The Oyster Partnership Ltd,835723,937.5,Temp.Contract-Agency Staff,Rough Sleeper Co-Ordinator,Pay
07/06/2021,The Oyster Partnership Ltd,835724,937.5,Temp.Contract-Agency Staff,Rough Sleeper Co-Ordinator,Pay
07/06/2021,Venn Group Ltd,836873,637.5,Temp.Contract-Agency Staff,Environmental Quality Team,Pay
07/06/2021,Whistl Uk Ltd,837083,430.9,Postage/Stamps,Mail,Supplies & Services
08/06/2021,3c Payment Uk Ltd,836771,2101.28,Card Payment Charges,Car Parks,Supplies & Services
08/06/2021,Age Uk Exeter,834754,5000,Grants Issued,Community Buildings,Supplies & Services
08/06/2021,Alphington Community Association,834577,5000,Grants Issued,Community Buildings,Supplies & Services
08/06/2021,Aw Jenkinson Transport Ltd,834436,700,Comingled Haulage Out,Materials Reclamation Facility,Transport
08/06/2021,Berry Recruitment,830773,421.16,Casuals Waged-Agency Staff,Other Street Sweeping,Pay
08/06/2021,Clc Contractors Ltd,837102,618,Contract Payments,Door Replacements,Supplies & Services
08/06/2021,Clc Contractors Ltd,837102,10162.34,General Maintenance,Low Maint & Painting Flats,Premises
08/06/2021,Clc Contractors Ltd,837102,15816.2,Contract Payments,Window Replacements,Supplies & Services
08/06/2021,Concept Staffing Ltd,836647,505.05,Casuals Waged-Agency Staff,Childrens Play Areas,Pay
08/06/2021,Cooksleys Sales Ltd,835667,2020,Hra Non Rtb Dwellings,Ecc Balance Sheet,Usable Capital Receipts
08/06/2021,Croft Surveyors,837276,1235,Contract Payments,Structural Repairs,Supplies & Services
08/06/2021,European Asbestos Services Ltd,836622,838.8,Asbestos Removal,Asbestos,Premises
08/06/2021,European Asbestos Services Ltd,836629,1192.2,Asbestos Removal,Asbestos,Premises
08/06/2021,European Asbestos Services Ltd,836827,2013,Asbestos Removal,Asbestos,Premises
08/06/2021,Exeter City Living,834857,1440,Contract Payments,Wonford Health & Wellbeing Hub,Supplies & Services
08/06/2021,Exeter Phoenix,834439,500,Grants Issued,Covid 19 Community Initiatives,Supplies & Services
08/06/2021,Freemoovement Uk Cic,837112,4800,Training,Sport England Pathfinder,Support Services
08/06/2021,Haymarket Media  Ltd,836463,3805,Subscriptions,Planning,Supplies & Services
08/06/2021,Inclusive Exeter Cic,834752,5000,Grants Issued,Community Buildings,Supplies & Services
08/06/2021,Integrated Water Services,837002,649.6,Planned Maintenance,Ramm,Premises
08/06/2021,Kier Construction Ltd,835877,63833.73,Contract Payments,Riverside,Supplies & Services
08/06/2021,Lnrs Data Services Ltd T/A Lexis Nexis Uk,837115,1499,Publications/Leaflets,Electoral Registration,Supplies & Services
08/06/2021,M A Vernon Ltd,836599,750,General Maintenance,Repairs To Void Properties,Premises
08/06/2021,M A Vernon Ltd,836601,1250,General Maintenance,Repairs To Void Properties,Premises
08/06/2021,M A Vernon Ltd,836603,850,General Maintenance,Repairs To Void Properties,Premises
08/06/2021,Mears Ltd,835886,143469.7,Mears - Ppp Repairs,General Maintenance,Premises
08/06/2021,Mears Ltd,837090,607.62,Mears - Communal Areas/Non-Ppp,General Maintenance,Premises
08/06/2021,Mears Ltd,837090,1537.23,Mears -Ppp Repairs(Exclusions),General Maintenance,Premises
08/06/2021,Mears Ltd,837090,134.14,Mears -Psl Properties(Non-Ppp),General Maintenance,Premises
08/06/2021,Mears Ltd,837095,209.57,Mears - Communal Areas/Non-Ppp,General Maintenance,Premises
08/06/2021,Mears Ltd,837095,1705.28,Mears -Ppp Repairs(Exclusions),General Maintenance,Premises
08/06/2021,Newcourt Community Association,834755,5000,Grants Issued,Community Buildings,Supplies & Services
08/06/2021,Pennington Choices Ltd,837253,1095,Fire Risk Assessment,Riverside Leisure Centre,Premises
08/06/2021,Pinhoe Pantomime Society,834440,500,Grants Issued,Covid 19 Community Initiatives,Supplies & Services
08/06/2021,Recruitment Solutions (Sw) Ltd,835697,1334,Casuals Waged-Agency Staff,Other Street Sweeping,Pay
08/06/2021,Recruitment Solutions (Sw) Ltd,835697,426.83,Casuals Waged-Agency Staff,Public Conveniences,Pay
08/06/2021,Recruitment Solutions (Sw) Ltd,835697,437.18,Casuals Waged-Agency Staff,Rhss & Welcome Back Funds,Pay
08/06/2021,Secureforce Uk Ltd,837094,621.6,Central Alarm Service,Ramm,Premises
08/06/2021,Secureforce Uk Ltd,837110,601.49,Security Patrol,Livestock/Matford Centre,Premises
08/06/2021,Spcfa - Sylvania Play + Community Facility,834758,2000,Grants Issued,Community Buildings,Supplies & Services
08/06/2021,St Sidwells Centre,834757,5000,Grants Issued,Community Buildings,Supplies & Services
08/06/2021,The Best Connection Group Ltd,834212,402.68,Casuals Waged-Agency Staff,Childrens Play Areas,Pay
08/06/2021,The Best Connection Group Ltd,834212,402.68,Casuals Waged-Agency Staff,Other Street Sweeping,Pay
08/06/2021,The Best Connection Group Ltd,834212,846.3,Casuals Waged-Agency Staff,Parks And Playing Fields,Pay
08/06/2021,The Club,834756,5000,Grants Issued,Community Buildings,Supplies & Services
08/06/2021,Topsham Community Association,835537,5000,Grants Issued,Community Buildings,Supplies & Services
08/06/2021,Venn Group Ltd,829421,814.05,Temp.Contract-Agency Staff,Legal Services,Pay
08/06/2021,Venn Group Ltd,829425,814.05,Temp.Contract-Agency Staff,Legal Services,Pay
08/06/2021,Warp & Weft Cic,834441,705,Grants Issued,Covid 19 Community Initiatives,Supplies & Services
